Workbook

Sheet Main
B10: 2020-09-15
B12: Sheet No. | C12: Template Name | D12: Summary
B13: 1 | C13: Future Intra | D13: For Intraday trading in F&O segment
B14: 2 | C14: Cash Intra | D14: For Intraday trading in cash market segment
B15: 3 | C15: Mid-cap Intra | D15: For Intraday trading in Mid-cap stocks
B16: 4 | C16: Bulk Deals | D16: Reveals Bulk Deals carried on NSE & BSE
B17: 5 | C17: Call Tracker
K27: `

Sheet Future Intra
M5: Back to Main Page
A6: FOR INTRA DAY TRADING | L6: =Main!B10 -> 2020-09-15
A9: Sr.no | B9: Sector | C9: Scrip | D9: CLOSE RATE | E9: Pivot Point | F9: Supports | I9: Resistances
B10: Sector | D10: Point | E10: Point | F10: S1 | G10: S2 | H10: S3 | I10: R1 | J10: R2 | K10: R3 | L10: HIGH | M10: LOW | N10: OI | O10: % Change in OI
A11: 1 | B11: Index | C11: BANKNIFTY | D11: 22190.15 | E11: 22371.88 | F11: 21923.27 | G11: 21656.38 | H11: 21207.77 | I11: 22638.77 | J11: 23087.38 | K11: 23354.27 | L11: 22820.5 | M11: 22105 | N11: 1991200 | O11: 18.12%
A12: 2 | B12: Index | C12: NIFTY | D12: 11451.95 | E12: 11471.97 | F12: 11374.98 | G12: 11298.02 | H12: 11201.03 | I12: 11548.93 | J12: 11645.92 | K12: 11722.88 | L12: 11568.95 | M12: 11395 | N12: 12099150 | O12: 4.69%
A13: 3 | B13: Cement | C13: ACC | D13: 1367.50 | E13: 1366.78 | F13: 1349.72 | G13: 1331.93 | H13: 1314.87 | I13: 1384.57 | J13: 1401.63 | K13: 1419.42 | L13: 1383.85 | M13: 1349 | N13: 2272000 | O13: -3.24%
A14: 4 | B14: Others | C14: ADANIENT | D14: 294.60 | E14: 297.03 | F14: 290.57 | G14: 286.53 | H14: 280.07 | I14: 301.07 | J14: 307.53 | K14: 311.57 | L14: 303.5 | M14: 293 | N14: 18112000 | O14: -6.39%
A15: 5 | B15: Others | C15: ADANIPORTS | D15: 351.80 | E15: 349.80 | F15: 345.90 | G15: 340.00 | H15: 336.10 | I15: 355.70 | J15: 359.60 | K15: 365.50 | L15: 353.7 | M15: 343.9 | N15: 29252500 | O15: -0.32%
A16: 6 | B16: Automobile | C16: AMARAJABAT | D16: 764.05 | E16: 765.57 | F16: 747.98 | G16: 731.92 | H16: 714.33 | I16: 781.63 | J16: 799.22 | K16: 815.28 | L16: 783.15 | M16: 749.5 | N16: 1141000 | O16: 5.45%
A17: 7 | B17: Cement | C17: AMBUJACEM | D17: 211.65 | E17: 213.33 | F17: 208.97 | G17: 206.28 | H17: 201.92 | I17: 216.02 | J17: 220.38 | K17: 223.07 | L17: 217.7 | M17: 210.65 | N17: 13458000 | O17: -3.13%
A18: 8 | B18: Others | C18: APOLLOHOSP | D18: 1627.75 | E18: 1626.62 | F18: 1595.33 | G18: 1562.92 | H18: 1531.63 | I18: 1659.03 | J18: 1690.32 | K18: 1722.73 | L18: 1657.9 | M18: 1594.2 | N18: 1276000 | O18: 14.39%
A19: 9 | B19: Automobile | C19: APOLLOTYRE | D19: 125.25 | E19: 122.23 | F19: 118.52 | G19: 111.78 | H19: 108.07 | I19: 128.97 | J19: 132.68 | K19: 139.42 | L19: 125.95 | M19: 115.5 | N19: 9420000 | O19: -25.97%
A20: 10 | B20: Automobile | C20: ASHOKLEY | D20: 74.80 | E20: 73.20 | F20: 70.95 | G20: 67.10 | H20: 64.85 | I20: 77.05 | J20: 79.30 | K20: 83.15 | L20: 75.45 | M20: 69.35 | N20: 36981000 | O20: -1.39%
A21: 11 | B21: FMCG | C21: ASIANPAINT | D21: 2037.65 | E21: 2035.85 | F21: 2013.80 | G21: 1989.95 | H21: 1967.90 | I21: 2059.70 | J21: 2081.75 | K21: 2105.60 | L21: 2057.9 | M21: 2012 | N21: 3682200 | O21: -1.63%
A22: 12 | B22: Pharma | C22: AUROPHARMA | D22: 797.45 | E22: 802.88 | F22: 787.77 | G22: 778.08 | H22: 762.97 | I22: 812.57 | J22: 827.68 | K22: 837.37 | L22: 818 | M22: 793.2 | N22: 14973400 | O22: 1.55%
A23: 13 | B23: Banking | C23: AXISBANK | D23: 441.10 | E23: 445.55 | F23: 434.55 | G23: 428.00 | H23: 417.00 | I23: 452.10 | J23: 463.10 | K23: 469.65 | L23: 456.55 | M23: 439 | N23: 54102000 | O23: 0.98%
A24: 14 | B24: Automobile | C24: BAJAJ-AUTO | D24: 2961.90 | E24: 2953.43 | F24: 2909.47 | G24: 2857.03 | H24: 2813.07 | I24: 3005.87 | J24: 3049.83 | K24: 3102.27 | L24: 2997.4 | M24: 2901 | N24: 1609250 | O24: -2.91%
A25: 15 | B25: Finance | C25: BAJAJFINSV | D25: 6122.45 | E25: 6146.65 | F25: 6080.45 | G25: 6038.45 | H25: 5972.25 | I25: 6188.65 | J25: 6254.85 | K25: 6296.85 | L25: 6212.85 | M25: 6104.65 | N25: 750875 | O25: -2.89%
A26: 16 | B26: Finance | C26: BAJFINANCE | D26: 3445.80 | E26: 3481.18 | F26: 3395.37 | G26: 3344.93 | H26: 3259.12 | I26: 3531.62 | J26: 3617.43 | K26: 3667.87 | L26: 3567 | M26: 3430.75 | N26: 5604750 | O26: 10.08%
A27: 17 | B27: Automobile | C27: BALKRISIND | D27: 1372.50 | E27: 1352.93 | F27: 1324.67 | G27: 1276.83 | H27: 1248.57 | I27: 1400.77 | J27: 1429.03 | K27: 1476.87 | L27: 1381.2 | M27: 1305.1 | N27: 1684800 | O27: -9.22%
A28: 18 | B28: Banking | C28: BANDHANBNK | D28: 301.85 | E28: 306.43 | F28: 293.47 | G28: 285.08 | H28: 272.12 | I28: 314.82 | J28: 327.78 | K28: 336.17 | L28: 319.4 | M28: 298.05 | N28: 18315000 | O28: -2.70%
A29: 19 | B29: Banking | C29: BANKBARODA | D29: 46.50 | E29: 46.48 | F29: 46.17 | G29: 45.83 | H29: 45.52 | I29: 46.82 | J29: 47.13 | K29: 47.47 | L29: 46.8 | M29: 46.15 | N29: 51635400 | O29: -3.38%
A30: 20 | B30: FMCG | C30: BATAINDIA | D30: 1335.35 | E30: 1319.32 | F30: 1292.63 | G30: 1249.92 | H30: 1223.23 | I30: 1362.03 | J30: 1388.72 | K30: 1431.43 | L30: 1346 | M30: 1276.6 | N30: 2277550 | O30: -1.40%
A31: 21 | B31: Capital_Goods | C31: BEL | D31: 105.85 | E31: 106.00 | F31: 103.30 | G31: 100.75 | H31: 98.05 | I31: 108.55 | J31: 111.25 | K31: 113.80 | L31: 108.7 | M31: 103.45 | N31: 35256400 | O31: -7.46%
A32: 22 | B32: FMCG | C32: BERGEPAINT | D32: 578.75 | E32: 576.32 | F32: 569.43 | G32: 560.12 | H32: 553.23 | I32: 585.63 | J32: 592.52 | K32: 601.83 | L32: 583.2 | M32: 567 | N32: 3121800 | O32: 4.57%
A33: 23 | B33: Automobile | C33: BHARATFORG | D33: 477.70 | E33: 476.50 | F33: 469.60 | G33: 461.50 | H33: 454.60 | I33: 484.60 | J33: 491.50 | K33: 499.60 | L33: 483.4 | M33: 468.4 | N33: 6463500 | O33: 5.15%
A34: 24 | B34: Telecom | C34: BHARTIARTL | D34: 477.50 | E34: 482.27 | F34: 465.63 | G34: 453.77 | H34: 437.13 | I34: 494.13 | J34: 510.77 | K34: 522.63 | L34: 498.9 | M34: 470.4 | N34: 139215561 | O34: 10.15%
A35: 25 | B35: Capital_Goods | C35: BHEL | D35: 36.25 | E35: 36.53 | F35: 35.72 | G35: 35.18 | H35: 34.37 | I35: 37.07 | J35: 37.88 | K35: 38.42 | L35: 37.35 | M35: 36 | N35: 59283000 | O35: -1.57%
A36: 26 | B36: Pharma | C36: BIOCON | D36: 430.05 | E36: 433.03 | F36: 424.07 | G36: 418.08 | H36: 409.12 | I36: 439.02 | J36: 447.98 | K36: 453.97 | L36: 442 | M36: 427.05 | N36: 13563100 | O36: -2.30%
A37: 27 | B37: Automobile | C37: BOSCHLTD | D37: 12895.05 | E37: 12989.13 | F37: 12653.62 | G37: 12412.18 | H37: 12076.67 | I37: 13230.57 | J37: 13566.08 | K37: 13807.52 | L37: 13324.65 | M37: 12747.7 | N37: 99250 | O37: 5.53%
A38: 28 | B38: Oil_Gas | C38: BPCL | D38: 417.75 | E38: 421.22 | F38: 411.83 | G38: 405.92 | H38: 396.53 | I38: 427.13 | J38: 436.52 | K38: 442.43 | L38: 430.6 | M38: 415.3 | N38: 23446800 | O38: -1.41%
A39: 29 | B39: FMCG | C39: BRITANNIA | D39: 3734.10 | E39: 3748.42 | F39: 3707.73 | G39: 3681.37 | H39: 3640.68 | I39: 3774.78 | J39: 3815.47 | K39: 3841.83 | L39: 3789.1 | M39: 3722.05 | N39: 1093800 | O39: 4.15%
A40: 30 | B40: Pharma | C40: CADILAHC | D40: 369.05 | E40: 369.57 | F40: 365.73 | G40: 362.42 | H40: 358.58 | I40: 372.88 | J40: 376.72 | K40: 380.03 | L40: 373.4 | M40: 366.25 | N40: 10364200 | O40: -2.97%
A41: 31 | B41: Banking | C41: CANBK | D41: 100.80 | E41: 100.85 | F41: 99.45 | G41: 98.10 | H41: 96.70 | I41: 102.20 | J41: 103.60 | K41: 104.95 | L41: 102.25 | M41: 99.5 | N41: 12510000 | O41: -5.83%
A42: 32 | B42: Finance | C42: CHOLAFIN | D42: 232.25 | E42: 231.58 | F42: 226.17 | G42: 220.08 | H42: 214.67 | I42: 237.67 | J42: 243.08 | K42: 249.17 | L42: 237 | M42: 225.5 | N42: 5307500 | O42: -4.37%
A43: 33 | B43: Pharma | C43: CIPLA | D43: 723.45 | E43: 724.90 | F43: 717.75 | G43: 712.05 | H43: 704.90 | I43: 730.60 | J43: 737.75 | K43: 743.45 | L43: 732.05 | M43: 719.2 | N43: 14723800 | O43: -0.32%
A44: 34 | B44: Others | C44: COALINDIA | D44: 125.50 | E44: 125.82 | F44: 124.38 | G44: 123.27 | H44: 121.83 | I44: 126.93 | J44: 128.37 | K44: 129.48 | L44: 127.25 | M44: 124.7 | N44: 38272800 | O44: 0.02%
A45: 35 | B45: Technology | C45: COFORGE | D45: 2161.25 | E45: 2145.05 | F45: 2093.10 | G45: 2024.95 | H45: 1973.00 | I45: 2213.20 | J45: 2265.15 | K45: 2333.30 | L45: 2197 | M45: 2076.9 | N45: 579375 | O45: -0.45%
A46: 36 | B46: FMCG | C46: COLPAL | D46: 1418.00 | E46: 1416.33 | F46: 1402.67 | G46: 1387.33 | H46: 1373.67 | I46: 1431.67 | J46: 1445.33 | K46: 1460.67 | L46: 1430 | M46: 1401 | N46: 2671900 | O46: -7.08%
A47: 37 | B47: Others | C47: CONCOR | D47: 382.65 | E47: 382.60 | F47: 376.20 | G47: 369.75 | H47: 363.35 | I47: 389.05 | J47: 395.45 | K47: 401.90 | L47: 389 | M47: 376.15 | N47: 7205430 | O47: 0.63%
A48: 38 | B48: Capital_Goods | C48: CUMMINSIND | D48: 473.30 | E48: 471.47 | F48: 454.03 | G48: 434.77 | H48: 417.33 | I48: 490.73 | J48: 508.17 | K48: 527.43 | L48: 488.9 | M48: 452.2 | N48: 1939200 | O48: -3.69%
A49: 39 | B49: FMCG | C49: DABUR | D49: 504.90 | E49: 506.45 | F49: 498.15 | G49: 491.40 | H49: 483.10 | I49: 513.20 | J49: 521.50 | K49: 528.25 | L49: 514.75 | M49: 499.7 | N49: 10141250 | O49: -0.76%
A50: 40 | B50: Pharma | C50: DIVISLAB | D50: 3171.55 | E50: 3184.80 | F50: 3134.75 | G50: 3097.95 | H50: 3047.90 | I50: 3221.60 | J50: 3271.65 | K50: 3308.45 | L50: 3234.85 | M50: 3148 | N50: 3132000 | O50: -0.52%
A51: 41 | B51: Realty | C51: DLF | D51: 155.25 | E51: 156.05 | F51: 153.20 | G51: 151.15 | H51: 148.30 | I51: 158.10 | J51: 160.95 | K51: 163.00 | L51: 158.9 | M51: 154 | N51: 30270900 | O51: 0.05%
A52: 42 | B52: Pharma | C52: DRREDDY | D52: 4382.85 | E52: 4389.40 | F52: 4348.55 | G52: 4314.25 | H52: 4273.40 | I52: 4423.70 | J52: 4464.55 | K52: 4498.85 | L52: 4430.25 | M52: 4355.1 | N52: 2908000 | O52: 2.49%
A53: 43 | B53: Automobile | C53: EICHERMOT | D53: 2168.60 | E53: 2177.42 | F53: 2147.03 | G53: 2125.47 | H53: 2095.08 | I53: 2198.98 | J53: 2229.37 | K53: 2250.93 | L53: 2207.8 | M53: 2155.85 | N53: 2309650 | O53: 0.15%
A54: 44 | B54: Automobile | C54: ESCORTS | D54: 1250.60 | E54: 1242.75 | F54: 1207.85 | G54: 1165.10 | H54: 1130.20 | I54: 1285.50 | J54: 1320.40 | K54: 1363.15 | L54: 1277.65 | M54: 1200 | N54: 3127300 | O54: 21.50%
A55: 45 | B55: Automobile | C55: EXIDEIND | D55: 160.60 | E55: 160.27 | F55: 157.88 | G55: 155.17 | H55: 152.78 | I55: 162.98 | J55: 165.37 | K55: 168.08 | L55: 162.65 | M55: 157.55 | N55: 9910800 | O55: 0.73%
A56: 46 | B56: Banking | C56: FEDERALBNK | D56: 53.50 | E56: 53.78 | F56: 52.32 | G56: 51.13 | H56: 49.67 | I56: 54.97 | J56: 56.43 | K56: 57.62 | L56: 55.25 | M56: 52.6 | N56: 91468500 | O56: -0.20%
A57: 47 | B57: Oil_Gas | C57: GAIL | D57: 92.20 | E57: 92.37 | F57: 90.83 | G57: 89.47 | H57: 87.93 | I57: 93.73 | J57: 95.27 | K57: 96.63 | L57: 93.9 | M57: 91 | N57: 26742400 | O57: -0.34%
A58: 48 | B58: Pharma | C58: GLENMARK | D58: 481.05 | E58: 482.27 | F58: 473.28 | G58: 465.52 | H58: 456.53 | I58: 490.03 | J58: 499.02 | K58: 506.78 | L58: 491.25 | M58: 474.5 | N58: 7134600 | O58: 0.45%
A59: 49 | B59: Infrastructure | C59: GMRINFRA | D59: 23.80 | E59: 23.92 | F59: 23.48 | G59: 23.17 | H59: 22.73 | I59: 24.23 | J59: 24.67 | K59: 24.98 | L59: 24.35 | M59: 23.6 | N59: 81180000 | O59: -0.11%
A60: 50 | B60: FMCG | C60: GODREJCP | D60: 693.90 | E60: 691.00 | F60: 683.00 | G60: 672.10 | H60: 664.10 | I60: 701.90 | J60: 709.90 | K60: 720.80 | L60: 699 | M60: 680.1 | N60: 4637000 | O60: 4.93%
A61: 51 | B61: Others | C61: GODREJPROP | D61: 906.60 | E61: 904.93 | F61: 885.92 | G61: 865.23 | H61: 846.22 | I61: 925.62 | J61: 944.63 | K61: 965.32 | L61: 923.95 | M61: 884.25 | N61: 762450 | O61: -7.13%
A62: 52 | B62: Cement | C62: GRASIM | D62: 710.35 | E62: 717.65 | F62: 698.10 | G62: 685.85 | H62: 666.30 | I62: 729.90 | J62: 749.45 | K62: 761.70 | L62: 737.2 | M62: 705.4 | N62: 18424300 | O62: -2.38%
A63: 53 | B63: Others | C63: HAVELLS | D63: 668.85 | E63: 664.35 | F63: 656.80 | G63: 644.75 | H63: 637.20 | I63: 676.40 | J63: 683.95 | K63: 696.00 | L63: 671.9 | M63: 652.3 | N63: 5258000 | O63: 0.13%
A64: 54 | B64: Technology | C64: HCLTECH | D64: 795.30 | E64: 782.17 | F64: 758.33 | G64: 721.37 | H64: 697.53 | I64: 819.13 | J64: 842.97 | K64: 879.93 | L64: 806 | M64: 745.2 | N64: 15895600 | O64: 7.70%
A65: 55 | B65: Finance | C65: HDFC | D65: 1742.80 | E65: 1757.77 | F65: 1718.03 | G65: 1693.27 | H65: 1653.53 | I65: 1782.53 | J65: 1822.27 | K65: 1847.03 | L65: 1797.5 | M65: 1733 | N65: 27802800 | O65: 2.84%
A66: 56 | B66: Banking | C66: HDFCBANK | D66: 1062.20 | E66: 1071.42 | F66: 1047.73 | G66: 1033.27 | H66: 1009.58 | I66: 1085.88 | J66: 1109.57 | K66: 1124.03 | L66: 1095.1 | M66: 1056.95 | N66: 42695400 | O66: -1.33%
A67: 57 | B67: Finance | C67: HDFCLIFE | D67: 599.95 | E67: 601.62 | F67: 593.48 | G67: 587.02 | H67: 578.88 | I67: 608.08 | J67: 616.22 | K67: 622.68 | L67: 609.75 | M67: 595.15 | N67: 10140900 | O67: -2.31%
A68: 58 | B68: Automobile | C68: HEROMOTOCO | D68: 3031.90 | E68: 3009.38 | F68: 2980.57 | G68: 2929.23 | H68: 2900.42 | I68: 3060.72 | J68: 3089.53 | K68: 3140.87 | L68: 3038.2 | M68: 2958.05 | N68: 1842000 | O68: 0.20%
A69: 59 | B69: Metals | C69: HINDALCO | D69: 176.45 | E69: 177.50 | F69: 174.15 | G69: 171.85 | H69: 168.50 | I69: 179.80 | J69: 183.15 | K69: 185.45 | L69: 180.85 | M69: 175.2 | N69: 28530500 | O69: 3.57%
A70: 60 | B70: Oil_Gas | C70: HINDPETRO | D70: 196.85 | E70: 197.92 | F70: 194.43 | G70: 192.02 | H70: 188.53 | I70: 200.33 | J70: 203.82 | K70: 206.23 | L70: 201.4 | M70: 195.5 | N70: 33334200 | O70: -0.96%
A71: 61 | B71: FMCG | C71: HINDUNILVR | D71: 2130.85 | E71: 2142.65 | F71: 2109.30 | G71: 2087.75 | H71: 2054.40 | I71: 2164.20 | J71: 2197.55 | K71: 2219.10 | L71: 2176 | M71: 2121.1 | N71: 14557800 | O71: 1.07%
A72: 62 | B72: Finance | C72: IBULHSGFIN | D72: 189.30 | E72: 191.43 | F72: 183.87 | G72: 178.43 | H72: 170.87 | I72: 196.87 | J72: 204.43 | K72: 209.87 | L72: 199 | M72: 186 | N72: 15766600 | O72: -2.47%
A73: 63 | B73: Banking | C73: ICICIBANK | D73: 365.10 | E73: 366.80 | F73: 358.80 | G73: 352.50 | H73: 344.50 | I73: 373.10 | J73: 381.10 | K73: 387.40 | L73: 374.8 | M73: 360.5 | N73: 120377125 | O73: 1.61%
A74: 64 | B74: Finance | C74: ICICIPRULI | D74: 432.00 | E74: 436.02 | F74: 426.03 | G74: 420.07 | H74: 410.08 | I74: 441.98 | J74: 451.97 | K74: 457.93 | L74: 446 | M74: 430.05 | N74: 8056500 | O74: 2.07%
A75: 65 | B75: Telecom | C75: IDEA | D75: 11.55 | E75: 11.47 | F75: 11.18 | G75: 10.82 | H75: 10.53 | I75: 11.83 | J75: 12.12 | K75: 12.48 | L75: 11.75 | M75: 11.1 | N75: 335720000 | O75: -2.28%
A76: 66 | B76: Banking | C76: IDFCFIRSTB | D76: 30.90 | E76: 31.03 | F76: 30.37 | G76: 29.83 | H76: 29.17 | I76: 31.57 | J76: 32.23 | K76: 32.77 | L76: 31.7 | M76: 30.5 | N76: 175845000 | O76: 2.29%
A77: 67 | B77: Oil_Gas | C77: IGL | D77: 407.45 | E77: 406.38 | F77: 401.12 | G77: 394.78 | H77: 389.52 | I77: 412.72 | J77: 417.98 | K77: 424.32 | L77: 411.65 | M77: 400.05 | N77: 7078500 | O77: -7.53%
A78: 68 | B78: Others | C78: INDIGO | D78: 1311.95 | E78: 1302.98 | F78: 1286.97 | G78: 1261.98 | H78: 1245.97 | I78: 1327.97 | J78: 1343.98 | K78: 1368.97 | L78: 1319 | M78: 1278 | N78: 3384500 | O78: 23.18%
A79: 69 | B79: Banking | C79: INDUSINDBK | D79: 609.80 | E79: 612.23 | F79: 601.92 | G79: 594.03 | H79: 583.72 | I79: 620.12 | J79: 630.43 | K79: 638.32 | L79: 622.55 | M79: 604.35 | N79: 28881600 | O79: -1.30%
A80: 70 | B80: Telecom | C80: INFRATEL | D80: 203.05 | E80: 203.00 | F80: 199.75 | G80: 196.45 | H80: 193.20 | I80: 206.30 | J80: 209.55 | K80: 212.85 | L80: 206.25 | M80: 199.7 | N80: 16850400 | O80: -0.79%
A81: 71 | B81: Technology | C81: INFY | D81: 979.85 | E81: 974.48 | F81: 955.12 | G81: 930.38 | H81: 911.02 | I81: 999.22 | J81: 1018.58 | K81: 1043.32 | L81: 993.85 | M81: 949.75 | N81: 45477600 | O81: 6.14%
A82: 72 | B82: Oil_Gas | C82: IOC | D82: 82.95 | E82: 83.17 | F82: 82.33 | G82: 81.72 | H82: 80.88 | I82: 83.78 | J82: 84.62 | K82: 85.23 | L82: 84 | M82: 82.55 | N82: 63133200 | O82: -1.65%
A83: 73 | B83: FMCG | C83: ITC | D83: 184.10 | E83: 184.37 | F83: 182.93 | G83: 181.77 | H83: 180.33 | I83: 185.53 | J83: 186.97 | K83: 188.13 | L83: 185.8 | M83: 183.2 | N83: 103340800 | O83: 1.84%
A84: 74 | B84: Metals | C84: JINDALSTEL | D84: 209.35 | E84: 207.78 | F84: 204.57 | G84: 199.78 | H84: 196.57 | I84: 212.57 | J84: 215.78 | K84: 220.57 | L84: 211 | M84: 203 | N84: 22660000 | O84: -1.48%
A85: 75 | B85: Metals | C85: JSWSTEEL | D85: 290.00 | E85: 290.33 | F85: 286.17 | G85: 282.33 | H85: 278.17 | I85: 294.17 | J85: 298.33 | K85: 302.17 | L85: 294.5 | M85: 286.5 | N85: 43551000 | O85: 0.54%
A86: 76 | B86: Others | C86: JUBLFOOD | D86: 2341.40 | E86: 2339.95 | F86: 2318.80 | G86: 2296.20 | H86: 2275.05 | I86: 2362.55 | J86: 2383.70 | K86: 2406.30 | L86: 2361.1 | M86: 2317.35 | N86: 2405500 | O86: 1.33%
A87: 77 | B87: Banking | C87: KOTAKBANK | D87: 1307.35 | E87: 1318.63 | F87: 1290.97 | G87: 1274.58 | H87: 1246.92 | I87: 1335.02 | J87: 1362.68 | K87: 1379.07 | L87: 1346.3 | M87: 1302.25 | N87: 12640800 | O87: -0.52%
A88: 78 | B88: Finance | C88: L&TFH | D88: 63.80 | E88: 63.67 | F88: 62.63 | G88: 61.47 | H88: 60.43 | I88: 64.83 | J88: 65.87 | K88: 67.03 | L88: 64.7 | M88: 62.5 | N88: 31511200 | O88: 5.41%
A89: 79 | B89: Finance | C89: LICHSGFIN | D89: 295.15 | E89: 294.82 | F89: 290.43 | G89: 285.72 | H89: 281.33 | I89: 299.53 | J89: 303.92 | K89: 308.63 | L89: 299.2 | M89: 290.1 | N89: 9652000 | O89: -5.63%
A90: 80 | B90: Capital_Goods | C90: LT | D90: 905.75 | E90: 910.88 | F90: 897.87 | G90: 889.98 | H90: 876.97 | I90: 918.77 | J90: 931.78 | K90: 939.67 | L90: 923.9 | M90: 903 | N90: 14407800 | O90: 3.76%
A91: 81 | B91: Pharma | C91: LUPIN | D91: 968.55 | E91: 966.80 | F91: 959.95 | G91: 951.35 | H91: 944.50 | I91: 975.40 | J91: 982.25 | K91: 990.85 | L91: 973.65 | M91: 958.2 | N91: 6716700 | O91: -1.97%
A92: 82 | B92: Automobile | C92: M&M | D92: 617.55 | E92: 621.32 | F92: 611.23 | G92: 604.92 | H92: 594.83 | I92: 627.63 | J92: 637.72 | K92: 644.03 | L92: 631.4 | M92: 615 | N92: 14929600 | O92: 4.81%
A93: 83 | B93: Finance | C93: M&MFIN | D93: 133.80 | E93: 133.78 | F93: 131.57 | G93: 129.33 | H93: 127.12 | I93: 136.02 | J93: 138.23 | K93: 140.47 | L93: 136 | M93: 131.55 | N93: 16493316 | O93: 3.73%
A94: 84 | B94: Finance | C94: MANAPPURAM | D94: 159.40 | E94: 160.55 | F94: 157.60 | G94: 155.80 | H94: 152.85 | I94: 162.35 | J94: 165.30 | K94: 167.10 | L94: 163.5 | M94: 158.75 | N94: 16926000 | O94: 1.47%
A95: 85 | B95: FMCG | C95: MARICO | D95: 371.05 | E95: 369.88 | F95: 367.87 | G95: 364.68 | H95: 362.67 | I95: 373.07 | J95: 375.08 | K95: 378.27 | L95: 371.9 | M95: 366.7 | N95: 8896000 | O95: -0.18%
A96: 86 | B96: Automobile | C96: MARUTI | D96: 7156.25 | E96: 7173.53 | F96: 7097.07 | G96: 7037.88 | H96: 6961.42 | I96: 7232.72 | J96: 7309.18 | K96: 7368.37 | L96: 7250 | M96: 7114.35 | N96: 2045300 | O96: 1.51%
A97: 87 | B97: FMCG | C97: MCDOWELL-N | D97: 547.65 | E97: 549.30 | F97: 543.00 | G97: 538.35 | H97: 532.05 | I97: 553.95 | J97: 560.25 | K97: 564.90 | L97: 555.6 | M97: 544.65 | N97: 15772500 | O97: -0.68%
A98: 88 | B98: Finance | C98: MFSL | D98: 622.15 | E98: 620.43 | F98: 607.72 | G98: 593.28 | H98: 580.57 | I98: 634.87 | J98: 647.58 | K98: 662.02 | L98: 633.15 | M98: 606 | N98: 2030600 | O98: 6.33%
A99: 89 | B99: Oil_Gas | C99: MGL | D99: 906.40 | E99: 905.73 | F99: 888.27 | G99: 870.13 | H99: 852.67 | I99: 923.87 | J99: 941.33 | K99: 959.47 | L99: 923.2 | M99: 887.6 | N99: 1848000 | O99: -9.44%
A100: 90 | B100: Technology | C100: MINDTREE | D100: 1226.40 | E100: 1223.83 | F100: 1202.67 | G100: 1178.93 | H100: 1157.77 | I100: 1247.57 | J100: 1268.73 | K100: 1292.47 | L100: 1245 | M100: 1200.1 | N100: 2255200 | O100: 21.14%
A101: 91 | B101: Automobile | C101: MOTHERSUMI | D101: 116.40 | E101: 116.40 | F101: 112.90 | G101: 109.40 | H101: 105.90 | I101: 119.90 | J101: 123.40 | K101: 126.90 | L101: 119.9 | M101: 112.9 | N101: 25389000 | O101: 5.34%
A102: 92 | B102: Automobile | C102: MRF | D102: 58764.85 | E102: 59037.50 | F102: 58145.00 | G102: 57525.15 | H102: 56632.65 | I102: 59657.35 | J102: 60549.85 | K102: 61169.70 | L102: 59930 | M102: 58417.65 | N102: 43590 | O102: 1.37%
A103: 93 | B103: Finance | C103: MUTHOOTFIN | D103: 1127.00 | E103: 1130.80 | F103: 1112.35 | G103: 1097.70 | H103: 1079.25 | I103: 1145.45 | J103: 1163.90 | K103: 1178.55 | L103: 1149.25 | M103: 1116.15 | N103: 4073250 | O103: -2.43%
A104: 94 | B104: Metals | C104: NATIONALUM | D104: 35.40 | E104: 35.65 | F104: 34.75 | G104: 34.10 | H104: 33.20 | I104: 36.30 | J104: 37.20 | K104: 37.85 | L104: 36.55 | M104: 35 | N104: 41327000 | O104: 2.96%
A105: 95 | B105: Others | C105: NAUKRI | D105: 3442.00 | E105: 3432.57 | F105: 3401.13 | G105: 3360.27 | H105: 3328.83 | I105: 3473.43 | J105: 3504.87 | K105: 3545.73 | L105: 3464 | M105: 3391.7 | N105: 615750 | O105: -3.03%
A106: 96 | B106: FMCG | C106: NESTLEIND | D106: 16133.30 | E106: 16202.55 | F106: 15999.05 | G106: 15864.80 | H106: 15661.30 | I106: 16336.80 | J106: 16540.30 | K106: 16674.55 | L106: 16406.05 | M106: 16068.3 | N106: 442550 | O106: 1.34%
A107: 97 | B107: Metals | C107: NMDC | D107: 90.05 | E107: 90.40 | F107: 89.15 | G107: 88.25 | H107: 87.00 | I107: 91.30 | J107: 92.55 | K107: 93.45 | L107: 91.65 | M107: 89.5 | N107: 33567000 | O107: 0.78%
A108: 98 | B108: Power | C108: NTPC | D108: 90.95 | E108: 90.92 | F108: 89.78 | G108: 88.62 | H108: 87.48 | I108: 92.08 | J108: 93.22 | K108: 94.38 | L108: 92.05 | M108: 89.75 | N108: 49230900 | O108: -2.05%
A109: 99 | B109: Oil_Gas | C109: ONGC | D109: 73.85 | E109: 74.07 | F109: 73.08 | G109: 72.32 | H109: 71.33 | I109: 74.83 | J109: 75.82 | K109: 76.58 | L109: 75.05 | M109: 73.3 | N109: 60275600 | O109: -2.36%
A110: 100 | B110: Textile | C110: PAGEIND | D110: 19214.80 | E110: 19189.85 | F110: 18614.90 | G110: 18015.00 | H110: 17440.05 | I110: 19789.75 | J110: 20364.70 | K110: 20964.60 | L110: 19764.8 | M110: 18589.95 | N110: 140670 | O110: -0.95%
A111: 101 | B111: Pharma | C111: PEL | D111: 1328.05 | E111: 1332.77 | F111: 1312.88 | G111: 1297.72 | H111: 1277.83 | I111: 1347.93 | J111: 1367.82 | K111: 1382.98 | L111: 1352.65 | M111: 1317.6 | N111: 3351700 | O111: 0.36%
A112: 102 | B112: Oil_Gas | C112: PETRONET | D112: 237.50 | E112: 237.58 | F112: 235.37 | G112: 233.23 | H112: 231.02 | I112: 239.72 | J112: 241.93 | K112: 244.07 | L112: 239.8 | M112: 235.45 | N112: 10551000 | O112: 1.68%
A113: 103 | B113: Finance | C113: PFC | D113: 92.40 | E113: 92.95 | F113: 91.25 | G113: 90.10 | H113: 88.40 | I113: 94.10 | J113: 95.80 | K113: 96.95 | L113: 94.65 | M113: 91.8 | N113: 48434400 | O113: 2.22%
A114: 104 | B114: FMCG | C114: PIDILITIND | D114: 1484.65 | E114: 1487.10 | F114: 1469.25 | G114: 1453.85 | H114: 1436.00 | I114: 1502.50 | J114: 1520.35 | K114: 1535.75 | L114: 1504.95 | M114: 1471.7 | N114: 3074500 | O114: -0.34%
A115: 105 | B115: Banking | C115: PNB | D115: 33.95 | E115: 33.83 | F115: 33.52 | G115: 33.08 | H115: 32.77 | I115: 34.27 | J115: 34.58 | K115: 35.02 | L115: 34.15 | M115: 33.4 | N115: 49378000 | O115: -2.94%
A116: 106 | B116: Power | C116: POWERGRID | D116: 172.25 | E116: 173.28 | F116: 170.52 | G116: 168.78 | H116: 166.02 | I116: 175.02 | J116: 177.78 | K116: 179.52 | L116: 176.05 | M116: 171.55 | N116: 13164000 | O116: 3.59%
A117: 107 | B117: Media | C117: PVR | D117: 1299.50 | E117: 1288.37 | F117: 1265.73 | G117: 1231.97 | H117: 1209.33 | I117: 1322.13 | J117: 1344.77 | K117: 1378.53 | L117: 1311 | M117: 1254.6 | N117: 1847373 | O117: 4.88%
A118: 108 | B118: Cement | C118: RAMCOCEM | D118: 722.40 | E118: 718.88 | F118: 709.87 | G118: 697.33 | H118: 688.32 | I118: 731.42 | J118: 740.43 | K118: 752.97 | L118: 727.9 | M118: 706.35 | N118: 1223150 | O118: -2.77%
A119: 109 | B119: Banking | C119: RBLBANK | D119: 180.80 | E119: 182.75 | F119: 177.45 | G119: 174.10 | H119: 168.80 | I119: 186.10 | J119: 191.40 | K119: 194.75 | L119: 188.05 | M119: 179.4 | N119: 20646600 | O119: -3.30%
A120: 110 | B120: Power | C120: RECLTD | D120: 107.55 | E120: 108.32 | F120: 106.28 | G120: 105.02 | H120: 102.98 | I120: 109.58 | J120: 111.62 | K120: 112.88 | L120: 110.35 | M120: 107.05 | N120: 17094000 | O120: 0.14%
A121: 111 | B121: Oil_Gas | C121: RELIANCE | D121: 2303.75 | E121: 2316.63 | F121: 2271.97 | G121: 2240.18 | H121: 2195.52 | I121: 2348.42 | J121: 2393.08 | K121: 2424.87 | L121: 2361.3 | M121: 2284.85 | N121: 33492105 | O121: -2.84%
A122: 112 | B122: Metals | C122: SAIL | D122: 39.70 | E122: 39.75 | F122: 39.20 | G122: 38.70 | H122: 38.15 | I122: 40.25 | J122: 40.80 | K122: 41.30 | L122: 40.3 | M122: 39.25 | N122: 47462000 | O122: 4.65%
A123: 113 | B123: Finance | C123: SBILIFE | D123: 858.00 | E123: 862.12 | F123: 846.23 | G123: 834.47 | H123: 818.58 | I123: 873.88 | J123: 889.77 | K123: 901.53 | L123: 878 | M123: 850.35 | N123: 6463500 | O123: -1.43%
A124: 114 | B124: Banking | C124: SBIN | D124: 199.55 | E124: 201.52 | F124: 196.33 | G124: 193.12 | H124: 187.93 | I124: 204.73 | J124: 209.92 | K124: 213.13 | L124: 206.7 | M124: 198.3 | N124: 119097000 | O124: 3.67%
A125: 115 | B125: Cement | C125: SHREECEM | D125: 19809.05 | E125: 19795.47 | F125: 19540.93 | G125: 19272.82 | H125: 19018.28 | I125: 20063.58 | J125: 20318.12 | K125: 20586.23 | L125: 20050 | M125: 19527.35 | N125: 194400 | O125: -0.10%
A126: 116 | B126: Capital_Goods | C126: SIEMENS | D126: 1235.30 | E126: 1230.15 | F126: 1220.30 | G126: 1205.30 | H126: 1195.45 | I126: 1245.15 | J126: 1255.00 | K126: 1270.00 | L126: 1240 | M126: 1215.15 | N126: 1635700 | O126: -1.56%
A127: 117 | B127: Textile | C127: SRF | D127: 4346.80 | E127: 4321.57 | F127: 4255.23 | G127: 4163.67 | H127: 4097.33 | I127: 4413.13 | J127: 4479.47 | K127: 4571.03 | L127: 4387.9 | M127: 4230 | N127: 615000 | O127: -3.72%
A128: 118 | B128: Finance | C128: SRTRANSFIN | D128: 639.25 | E128: 641.42 | F128: 630.98 | G128: 622.72 | H128: 612.28 | I128: 649.68 | J128: 660.12 | K128: 668.38 | L128: 651.85 | M128: 633.15 | N128: 5376687 | O128: 2.27%
A129: 119 | B129: Pharma | C129: SUNPHARMA | D129: 497.75 | E129: 501.22 | F129: 492.13 | G129: 486.52 | H129: 477.43 | I129: 506.83 | J129: 515.92 | K129: 521.53 | L129: 510.3 | M129: 495.6 | N129: 36493800 | O129: 1.25%
A130: 120 | B130: Media | C130: SUNTV | D130: 501.20 | E130: 501.12 | F130: 493.08 | G130: 484.97 | H130: 476.93 | I130: 509.23 | J130: 517.27 | K130: 525.38 | L130: 509.15 | M130: 493 | N130: 4731000 | O130: -4.97%
A131: 121 | B131: Fertilisers | C131: TATACHEM | D131: 304.90 | E131: 302.75 | F131: 297.00 | G131: 289.10 | H131: 283.35 | I131: 310.65 | J131: 316.40 | K131: 324.30 | L131: 308.5 | M131: 294.85 | N131: 7986000 | O131: 1.14%
A132: 122 | B132: Others | C132: TATACONSUM | D132: 548.65 | E132: 550.17 | F132: 544.03 | G132: 539.42 | H132: 533.28 | I132: 554.78 | J132: 560.92 | K132: 565.53 | L132: 556.3 | M132: 545.55 | N132: 14056200 | O132: 1.76%
A133: 123 | B133: Automobile | C133: TATAMOTORS | D133: 148.65 | E133: 148.70 | F133: 145.65 | G133: 142.65 | H133: 139.60 | I133: 151.70 | J133: 154.75 | K133: 157.75 | L133: 151.75 | M133: 145.7 | N133: 78637200 | O133: 1.53%
A134: 124 | B134: Power | C134: TATAPOWER | D134: 57.15 | E134: 57.38 | F134: 56.32 | G134: 55.48 | H134: 54.42 | I134: 58.22 | J134: 59.28 | K134: 60.12 | L134: 58.45 | M134: 56.55 | N134: 72049500 | O134: -6.40%
A135: 125 | B135: Metals | C135: TATASTEEL | D135: 406.15 | E135: 408.15 | F135: 401.35 | G135: 396.55 | H135: 389.75 | I135: 412.95 | J135: 419.75 | K135: 424.55 | L135: 414.95 | M135: 403.35 | N135: 24199500 | O135: 2.55%
A136: 126 | B136: Technology | C136: TCS | D136: 2500.75 | E136: 2467.58 | F136: 2421.17 | G136: 2341.58 | H136: 2295.17 | I136: 2547.17 | J136: 2593.58 | K136: 2673.17 | L136: 2514 | M136: 2388 | N136: 11017200 | O136: 5.41%
A137: 127 | B137: Technology | C137: TECHM | D137: 794.55 | E137: 788.65 | F137: 777.55 | G137: 760.55 | H137: 749.45 | I137: 805.65 | J137: 816.75 | K137: 833.75 | L137: 799.75 | M137: 771.65 | N137: 11151600 | O137: 13.54%
A138: 128 | B138: FMCG | C138: TITAN | D138: 1187.80 | E138: 1182.60 | F138: 1173.45 | G138: 1159.10 | H138: 1149.95 | I138: 1196.95 | J138: 1206.10 | K138: 1220.45 | L138: 1191.75 | M138: 1168.25 | N138: 5562750 | O138: -4.14%
A139: 129 | B139: Pharma | C139: TORNTPHARM | D139: 2799.65 | E139: 2813.65 | F139: 2769.30 | G139: 2738.95 | H139: 2694.60 | I139: 2844.00 | J139: 2888.35 | K139: 2918.70 | L139: 2858 | M139: 2783.3 | N139: 892500 | O139: -4.03%
A140: 130 | B140: Power | C140: TORNTPOWER | D140: 327.75 | E140: 328.42 | F140: 324.33 | G140: 320.92 | H140: 316.83 | I140: 331.83 | J140: 335.92 | K140: 339.33 | L140: 332.5 | M140: 325 | N140: 2304000 | O140: 3.23%
A141: 131 | B141: Automobile | C141: TVSMOTOR | D141: 457.20 | E141: 454.47 | F141: 449.28 | G141: 441.37 | H141: 436.18 | I141: 462.38 | J141: 467.57 | K141: 475.48 | L141: 459.65 | M141: 446.55 | N141: 5679800 | O141: -0.56%
A142: 132 | B142: FMCG | C142: UBL | D142: 1058.10 | E142: 1063.35 | F142: 1042.80 | G142: 1027.50 | H142: 1006.95 | I142: 1078.65 | J142: 1099.20 | K142: 1114.50 | L142: 1083.9 | M142: 1048.05 | N142: 1272600 | O142: 12.01%
A143: 133 | B143: Cement | C143: ULTRACEMCO | D143: 3924.15 | E143: 3934.05 | F143: 3890.10 | G143: 3856.05 | H143: 3812.10 | I143: 3968.10 | J143: 4012.05 | K143: 4046.10 | L143: 3978 | M143: 3900 | N143: 1959400 | O143: -0.05%
A144: 134 | B144: Fertilisers | C144: UPL | D144: 515.95 | E144: 513.10 | F144: 505.30 | G144: 494.65 | H144: 486.85 | I144: 523.75 | J144: 531.55 | K144: 542.20 | L144: 520.9 | M144: 502.45 | N144: 9373000 | O144: -6.99%
A145: 135 | B145: Metals | C145: VEDL | D145: 130.05 | E145: 130.47 | F145: 128.23 | G145: 126.42 | H145: 124.18 | I145: 132.28 | J145: 134.52 | K145: 136.33 | L145: 132.7 | M145: 128.65 | N145: 129127400 | O145: -1.67%
A146: 136 | B146: Capital_Goods | C146: VOLTAS | D146: 687.70 | E146: 684.55 | F146: 667.45 | G146: 647.20 | H146: 630.10 | I146: 704.80 | J146: 721.90 | K146: 742.15 | L146: 701.65 | M146: 664.3 | N146: 2439000 | O146: 16.31%
A147: 137 | B147: Technology | C147: WIPRO | D147: 307.35 | E147: 303.15 | F147: 297.85 | G147: 288.35 | H147: 283.05 | I147: 312.65 | J147: 317.95 | K147: 327.45 | L147: 308.45 | M147: 293.65 | N147: 29084800 | O147: 2.63%
A148: 138 | B148: Media | C148: ZEEL | D148: 217.00 | E148: 218.92 | F148: 213.03 | G148: 209.07 | H148: 203.18 | I148: 222.88 | J148: 228.77 | K148: 232.73 | L148: 224.8 | M148: 214.95 | N148: 28014000 | O148: -0.02%
A149: 139
A150: 140
A151: 141
A152: 142
A153: 143
A154: 144
A155: 145
A156: 146
A157: 147
A175: Pivot Point: This is trigger point for intra day buy/sell based on the price range of the previous day
A176: As per the tool,the trader should take BUY position just above Pivot and keep the stop loss of pivot point and the first target would be Resistance 1(R1)
A177: If R1 is crossed then R2 becomes the next target with stop loss of at R1
A178: Similarly if price goes below pivot point then the trader should sell and keep a stop loss of pivot point and the first target would be S1
A179: If S1 is crossed then S2 becomes the next target with stop loss of at S1
A181: Disclaimer:
A182: This document has been prepared by the Retail Research Desk of Asit C Mehta
A183: Investment Intermediates Ltd. and is meant for use of the recipient only
A184: and is not for circulation. This document is not to be reported or
A185: copied or made available to others. It should not be considered to be
A186: taken as an offer to sell or a solicitation to buy any security. The
A187: information contained herein is from sources believed reliable. We do
A188: not represent that it is accurate or complete and it should not be
A189: relied upon as such. We may from time to time have positions in and buy
A190: and sell securities referred to herein

Sheet Cash Intra
M5: Back to Main Page
A6: FOR INTRA DAY TRADING | K6: =Main!B10 -> 2020-09-15
A8: Sr.no | B8: Scrip | C8: CLOSE RATE | D8: Pivot Point | E8: Supports | H8: Resistances
C9: Point | E9: S1 | F9: S2 | G9: S3 | H9: R1 | I9: R2 | J9: R3 | K9: HIGH | L9: LOW | M9: Total Trade Quanity in Lakhs
A10: 1 | B10: Nifty 50 | C10: 11440.05 | D10: 11464.17 | E10: 11359.43 | F10: 11278.82 | G10: 11174.08 | H10: 11544.78 | I10: 11649.52 | J10: 11730.13 | K10: 11568.9 | L10: 11383.55
A11: 2 | B11: Nifty Bank | C11: 22101.25 | D11: 22295.57 | E11: 21833.83 | F11: 21566.42 | G11: 21104.68 | H11: 22562.98 | I11: 23024.72 | J11: 23292.13 | K11: 22757.3 | L11: 22028.15
A12: 3 | B12: Nifty CPSE | C12: 1415.1 | D12: 1420.32 | E12: 1406.58 | F12: 1398.07 | G12: 1384.33 | H12: 1428.83 | I12: 1442.57 | J12: 1451.08 | K12: 1434.05 | L12: 1411.8
A13: 4 | B13: Nifty Infra | C13: 3182.1 | D13: 3193.58 | E13: 3156.87 | F13: 3131.63 | G13: 3094.92 | H13: 3218.82 | I13: 3255.53 | J13: 3280.77 | K13: 3230.3 | L13: 3168.35
A14: 5 | B14: Nifty IT | C14: 19505.1 | D14: 19298.98 | E14: 19005.67 | F14: 18506.23 | G14: 18212.92 | H14: 19798.42 | I14: 20091.73 | J14: 20591.17 | K14: 19592.3 | L14: 18799.55
A15: 6 | B15: Nifty PSE | C15: 2458.75 | D15: 2467.03 | E15: 2443.47 | F15: 2428.18 | G15: 2404.62 | H15: 2482.32 | I15: 2505.88 | J15: 2521.17 | K15: 2490.6 | L15: 2451.75
A16: 7 | B16: Nifty Midcap 50 | C16: 4740.1 | D16: 4734.38 | E16: 4694.97 | F16: 4649.83 | G16: 4610.42 | H16: 4779.52 | I16: 4818.93 | J16: 4864.07 | K16: 4773.8 | L16: 4689.25
A17: 8 | B17: AARTIIND | C17: 1057.05 | D17: 1062.00 | E17: 1026.05 | F17: 995.05 | G17: 959.10 | H17: 1093.00 | I17: 1128.95 | J17: 1159.95 | K17: 1097.95 | L17: 1031 | M17: 5.48493
A18: 9 | B18: ABBOTINDIA | C18: 16516.15 | D18: 16629.72 | E18: 16361.43 | F18: 16206.72 | G18: 15938.43 | H18: 16784.43 | I18: 17052.72 | J18: 17207.43 | K18: 16898 | L18: 16475 | M18: 0.11509
A19: 10 | B19: ABCAPITAL | C19: 70.8 | D19: 71.15 | E19: 69.90 | F19: 69.00 | G19: 67.75 | H19: 72.05 | I19: 73.30 | J19: 74.20 | K19: 72.4 | L19: 70.25 | M19: 30.67286
A20: 11 | B20: ABFRL | C20: 136 | D20: 136.97 | E20: 132.53 | F20: 129.07 | G20: 124.63 | H20: 140.43 | I20: 144.87 | J20: 148.33 | K20: 141.4 | L20: 133.5 | M20: 39.58209
A21: 12 | B21: ACC | C21: 1367.35 | D21: 1364.63 | E21: 1346.02 | F21: 1324.68 | G21: 1306.07 | H21: 1385.97 | I21: 1404.58 | J21: 1425.92 | K21: 1383.25 | L21: 1343.3 | M21: 17.17693
A22: 13 | B22: ADANIGAS | C22: 204.25 | D22: 207.12 | E22: 199.23 | F22: 194.22 | G22: 186.33 | H22: 212.13 | I22: 220.02 | J22: 225.03 | K22: 215 | L22: 202.1 | M22: 45.84508
A23: 14 | B23: ADANIPORTS | C23: 351.65 | D23: 349.57 | E23: 345.53 | F23: 339.42 | G23: 335.38 | H23: 355.68 | I23: 359.72 | J23: 365.83 | K23: 353.6 | L23: 343.45 | M23: 42.21864
A24: 15 | B24: ADANIPOWER | C24: 37.25 | D24: 37.38 | E24: 36.97 | F24: 36.68 | G24: 36.27 | H24: 37.67 | I24: 38.08 | J24: 38.37 | K24: 37.8 | L24: 37.1 | M24: 14.19964
A25: 16 | B25: ADANITRANS | C25: 268.1 | D25: 270.33 | E25: 262.87 | F25: 257.63 | G25: 250.17 | H25: 275.57 | I25: 283.03 | J25: 288.27 | K25: 277.8 | L25: 265.1 | M25: 4.58042
A26: 17 | B26: AJANTPHARM | C26: 1524.9 | D26: 1532.05 | E26: 1500.10 | F26: 1475.30 | G26: 1443.35 | H26: 1556.85 | I26: 1588.80 | J26: 1613.60 | K26: 1564 | L26: 1507.25 | M26: 1.55275
A27: 18 | B27: ALKEM | C27: 2909.2 | D27: 2913.48 | E27: 2886.97 | F27: 2864.73 | G27: 2838.22 | H27: 2935.72 | I27: 2962.23 | J27: 2984.47 | K27: 2940 | L27: 2891.25 | M27: 1.8581
A28: 19 | B28: AMARAJABAT | C28: 761.5 | D28: 764.68 | E28: 746.37 | F28: 731.23 | G28: 712.92 | H28: 779.82 | I28: 798.13 | J28: 813.27 | K28: 783 | L28: 749.55 | M28: 23.48582
A29: 20 | B29: AMBUJACEM | C29: 211.1 | D29: 212.63 | E29: 208.27 | F29: 205.43 | G29: 201.07 | H29: 215.47 | I29: 219.83 | J29: 222.67 | K29: 217 | L29: 209.8 | M29: 45.94264
A30: 21 | B30: APOLLOHOSP | C30: 1623.7 | D30: 1622.35 | E30: 1591.50 | F30: 1559.30 | G30: 1528.45 | H30: 1654.55 | I30: 1685.40 | J30: 1717.60 | K30: 1653.2 | L30: 1590.15 | M30: 10.94575
A31: 22 | B31: APOLLOTYRE | C31: 125.55 | D31: 122.95 | E31: 119.40 | F31: 113.25 | G31: 109.70 | H31: 129.10 | I31: 132.65 | J31: 138.80 | K31: 126.5 | L31: 116.8 | M31: 152.1265
A32: 23 | B32: ASHOKLEY | C32: 74.8 | D32: 73.12 | E32: 70.78 | F32: 66.77 | G32: 64.43 | H32: 77.13 | I32: 79.47 | J32: 83.48 | K32: 75.45 | L32: 69.1 | M32: 918.62696
A33: 24 | B33: ASIANPAINT | C33: 2031.2 | D33: 2030.07 | E33: 2006.13 | F33: 1981.07 | G33: 1957.13 | H33: 2055.13 | I33: 2079.07 | J33: 2104.13 | K33: 2054 | L33: 2005 | M33: 21.42458
A34: 25 | B34: AUBANK | C34: 700.9 | D34: 703.67 | E34: 688.63 | F34: 676.37 | G34: 661.33 | H34: 715.93 | I34: 730.97 | J34: 743.23 | K34: 718.7 | L34: 691.4 | M34: 9.16606
A35: 26 | B35: AUROPHARMA | C35: 796.15 | D35: 800.80 | E35: 786.60 | F35: 777.05 | G35: 762.85 | H35: 810.35 | I35: 824.55 | J35: 834.10 | K35: 815 | L35: 791.25 | M35: 24.38228
A36: 27 | B36: AXISBANK | C36: 440.55 | D36: 444.52 | E36: 434.03 | F36: 427.52 | G36: 417.03 | H36: 451.03 | I36: 461.52 | J36: 468.03 | K36: 455 | L36: 438 | M36: 176.24795
A37: 28 | B37: BAJAJ-AUTO | C37: 2957.7 | D37: 2946.90 | E37: 2905.80 | F37: 2853.90 | G37: 2812.80 | H37: 2998.80 | I37: 3039.90 | J37: 3091.80 | K37: 2988 | L37: 2895 | M37: 11.85693
A38: 29 | B38: BAJAJFINSV | C38: 6112.15 | D38: 6132.38 | E38: 6070.77 | F38: 6029.38 | G38: 5967.77 | H38: 6173.77 | I38: 6235.38 | J38: 6276.77 | K38: 6194 | L38: 6091 | M38: 4.16142
A39: 30 | B39: BAJAJHLDNG | C39: 2470.6 | D39: 2475.28 | E39: 2452.27 | F39: 2433.93 | G39: 2410.92 | H39: 2493.62 | I39: 2516.63 | J39: 2534.97 | K39: 2498.3 | L39: 2456.95 | M39: 0.1706
A40: 31 | B40: BAJFINANCE | C40: 3440.7 | D40: 3478.58 | E40: 3382.12 | F40: 3323.53 | G40: 3227.07 | H40: 3537.17 | I40: 3633.63 | J40: 3692.22 | K40: 3575.05 | L40: 3420 | M40: 45.31611
A41: 32 | B41: BALKRISIND | C41: 1370.75 | D41: 1351.13 | E41: 1323.82 | F41: 1276.88 | G41: 1249.57 | H41: 1398.07 | I41: 1425.38 | J41: 1472.32 | K41: 1378.45 | L41: 1304.2 | M41: 13.1753
A42: 33 | B42: BANDHANBNK | C42: 301.4 | D42: 305.80 | E42: 293.20 | F42: 285.00 | G42: 272.40 | H42: 314.00 | I42: 326.60 | J42: 334.80 | K42: 318.4 | L42: 297.6 | M42: 143.94768
A43: 34 | B43: BANKBARODA | C43: 46.15 | D43: 46.27 | E43: 45.88 | F43: 45.62 | G43: 45.23 | H43: 46.53 | I43: 46.92 | J43: 47.18 | K43: 46.65 | L43: 46 | M43: 155.48159
A44: 35 | B44: BANKINDIA | C44: 47.25 | D44: 47.42 | E44: 46.53 | F44: 45.82 | G44: 44.93 | H44: 48.13 | I44: 49.02 | J44: 49.73 | K44: 48.3 | L44: 46.7 | M44: 25.49198
A45: 36 | B45: BATAINDIA | C45: 1330.65 | D45: 1314.50 | E45: 1286.20 | F45: 1241.75 | G45: 1213.45 | H45: 1358.95 | I45: 1387.25 | J45: 1431.70 | K45: 1342.8 | L45: 1270.05 | M45: 12.3951
A46: 37 | B46: BBTC | C46: 1397.9 | D46: 1398.65 | E46: 1371.65 | F46: 1345.40 | G46: 1318.40 | H46: 1424.90 | I46: 1451.90 | J46: 1478.15 | K46: 1425.65 | L46: 1372.4 | M46: 1.87087
A47: 38 | B47: BEL | C47: 107.05 | D47: 107.03 | E47: 104.42 | F47: 101.78 | G47: 99.17 | H47: 109.67 | I47: 112.28 | J47: 114.92 | K47: 109.65 | L47: 104.4 | M47: 178.50819
A48: 39 | B48: BERGEPAINT | C48: 577.85 | D48: 575.65 | E48: 568.20 | F48: 558.55 | G48: 551.10 | H48: 585.30 | I48: 592.75 | J48: 602.40 | K48: 583.1 | L48: 566 | M48: 18.43031
A49: 40 | B49: BHARATFORG | C49: 475.6 | D49: 474.15 | E49: 466.45 | F49: 457.30 | G49: 449.60 | H49: 483.30 | I49: 491.00 | J49: 500.15 | K49: 481.85 | L49: 465 | M49: 41.73115
A50: 41 | B50: BHARTIARTL | C50: 474.1 | D50: 479.88 | E50: 462.52 | F50: 450.93 | G50: 433.57 | H50: 491.47 | I50: 508.83 | J50: 520.42 | K50: 497.25 | L50: 468.3 | M50: 520.56004
A51: 42 | B51: BHEL | C51: 36.25 | D51: 36.57 | E51: 35.68 | F51: 35.12 | G51: 34.23 | H51: 37.13 | I51: 38.02 | J51: 38.58 | K51: 37.45 | L51: 36 | M51: 377.83076
A52: 43 | B52: BIOCON | C52: 430 | D52: 432.12 | E52: 424.23 | F52: 418.47 | G52: 410.58 | H52: 437.88 | I52: 445.77 | J52: 451.53 | K52: 440 | L52: 426.35 | M52: 29.12856
A53: 44 | B53: BOSCHLTD | C53: 12853.55 | D53: 12970.47 | E53: 12642.93 | F53: 12432.32 | G53: 12104.78 | H53: 13181.08 | I53: 13508.62 | J53: 13719.23 | K53: 13298 | L53: 12759.85 | M53: 0.76633
A54: 45 | B54: BPCL | C54: 417.15 | D54: 420.27 | E54: 411.03 | F54: 404.92 | G54: 395.68 | H54: 426.38 | I54: 435.62 | J54: 441.73 | K54: 429.5 | L54: 414.15 | M54: 60.25431
A55: 46 | B55: BRITANNIA | C55: 3719.5 | D55: 3742.17 | E55: 3688.33 | F55: 3657.17 | G55: 3603.33 | H55: 3773.33 | I55: 3827.17 | J55: 3858.33 | K55: 3796 | L55: 3711 | M55: 3.97741
A56: 47 | B56: CADILAHC | C56: 368.55 | D56: 369.08 | E56: 364.97 | F56: 361.38 | G56: 357.27 | H56: 372.67 | I56: 376.78 | J56: 380.37 | K56: 373.2 | L56: 365.5 | M56: 28.43408
A57: 48 | B57: CANBK | C57: 100.4 | D57: 101.05 | E57: 99.20 | F57: 98.00 | G57: 96.15 | H57: 102.25 | I57: 104.10 | J57: 105.30 | K57: 102.9 | L57: 99.85 | M57: 54.04409
A58: 49 | B58: CASTROLIND | C58: 120.2 | D58: 121.42 | E58: 118.33 | F58: 116.47 | G58: 113.38 | H58: 123.28 | I58: 126.37 | J58: 128.23 | K58: 124.5 | L58: 119.55 | M58: 14.10543
A59: 50 | B59: CESC | C59: 652.7 | D59: 646.40 | E59: 636.80 | F59: 620.90 | G59: 611.30 | H59: 662.30 | I59: 671.90 | J59: 687.80 | K59: 656 | L59: 630.5 | M59: 5.004
A60: 51 | B60: CHOLAFIN | C60: 232.1 | D60: 231.60 | E60: 227.00 | F60: 221.90 | G60: 217.30 | H60: 236.70 | I60: 241.30 | J60: 246.40 | K60: 236.2 | L60: 226.5 | M60: 103.05644
A61: 52 | B61: CIPLA | C61: 721.6 | D61: 723.20 | E61: 716.15 | F61: 710.70 | G61: 703.65 | H61: 728.65 | I61: 735.70 | J61: 741.15 | K61: 730.25 | L61: 717.75 | M61: 31.04687
A62: 53 | B62: COALINDIA | C62: 124.95 | D62: 125.30 | E62: 123.75 | F62: 122.55 | G62: 121.00 | H62: 126.50 | I62: 128.05 | J62: 129.25 | K62: 126.85 | L62: 124.1 | M62: 123.97189
A63: 54 | B63: COFORGE | C63: 2154.7 | D63: 2135.88 | E63: 2081.62 | F63: 2008.53 | G63: 1954.27 | H63: 2208.97 | I63: 2263.23 | J63: 2336.32 | K63: 2190.15 | L63: 2062.8 | M63: 10.91182
A64: 55 | B64: COLPAL | C64: 1416.6 | D64: 1415.18 | E64: 1402.47 | F64: 1388.33 | G64: 1375.62 | H64: 1429.32 | I64: 1442.03 | J64: 1456.17 | K64: 1427.9 | L64: 1401.05 | M64: 7.55429
A65: 56 | B65: CONCOR | C65: 384.2 | D65: 384.08 | E65: 377.17 | F65: 370.13 | G65: 363.22 | H65: 391.12 | I65: 398.03 | J65: 405.07 | K65: 391 | L65: 377.05 | M65: 23.24824
A66: 57 | B66: COROMANDEL | C66: 790.4 | D66: 780.15 | E66: 762.30 | F66: 734.20 | G66: 716.35 | H66: 808.25 | I66: 826.10 | J66: 854.20 | K66: 798 | L66: 752.05 | M66: 7.48822
A67: 58 | B67: CROMPTON | C67: 267.9 | D67: 267.90 | E67: 257.00 | F67: 246.10 | G67: 235.20 | H67: 278.80 | I67: 289.70 | J67: 300.60 | K67: 278.8 | L67: 257 | M67: 22.12457
A68: 59 | B68: CUB | C68: 143.65 | D68: 143.38 | E68: 136.27 | F68: 128.88 | G68: 121.77 | H68: 150.77 | I68: 157.88 | J68: 165.27 | K68: 150.5 | L68: 136 | M68: 75.98796
A69: 60 | B69: CUMMINSIND | C69: 471.55 | D69: 471.80 | E69: 455.85 | F69: 440.15 | G69: 424.20 | H69: 487.50 | I69: 503.45 | J69: 519.15 | K69: 487.75 | L69: 456.1 | M69: 32.58132
A70: 61 | B70: DABUR | C70: 504.2 | D70: 505.72 | E70: 496.73 | F70: 489.27 | G70: 480.28 | H70: 513.18 | I70: 522.17 | J70: 529.63 | K70: 514.7 | L70: 498.25 | M70: 42.33224
A71: 62 | B71: DALBHARAT | C71: 731.45 | D71: 729.50 | E71: 714.20 | F71: 696.95 | G71: 681.65 | H71: 746.75 | I71: 762.05 | J71: 779.30 | K71: 744.8 | L71: 712.25 | M71: 1.49263
A72: 63 | B72: DIVISLAB | C72: 3164.8 | D72: 3175.38 | E72: 3123.12 | F72: 3081.43 | G72: 3029.17 | H72: 3217.07 | I72: 3269.33 | J72: 3311.02 | K72: 3227.65 | L72: 3133.7 | M72: 7.73894
A73: 64 | B73: DLF | C73: 155.7 | D73: 156.50 | E73: 153.70 | F73: 151.70 | G73: 148.90 | H73: 158.50 | I73: 161.30 | J73: 163.30 | K73: 159.3 | L73: 154.5 | M73: 105.67394
A74: 65 | B74: DMART | C74: 2162.7 | D74: 2190.57 | E74: 2122.18 | F74: 2081.67 | G74: 2013.28 | H74: 2231.08 | I74: 2299.47 | J74: 2339.98 | K74: 2258.95 | L74: 2150.05 | M74: 9.02088
A75: 66 | B75: DRREDDY | C75: 4364.1 | D75: 4374.58 | E75: 4325.52 | F75: 4286.93 | G75: 4237.87 | H75: 4413.17 | I75: 4462.23 | J75: 4500.82 | K75: 4423.65 | L75: 4336 | M75: 5.84911
A76: 67 | B76: EDELWEISS | C76: 74.05 | D76: 74.93 | E76: 72.67 | F76: 71.28 | G76: 69.02 | H76: 76.32 | I76: 78.58 | J76: 79.97 | K76: 77.2 | L76: 73.55 | M76: 74.16528
A77: 68 | B77: EICHERMOT | C77: 2159.4 | D77: 2168.57 | E77: 2139.13 | F77: 2118.87 | G77: 2089.43 | H77: 2188.83 | I77: 2218.27 | J77: 2238.53 | K77: 2198 | L77: 2148.3 | M77: 11.80377
A78: 69 | B78: EMAMILTD | C78: 395.15 | D78: 392.43 | E78: 383.97 | F78: 372.78 | G78: 364.32 | H78: 403.62 | I78: 412.08 | J78: 423.27 | K78: 400.9 | L78: 381.25 | M78: 6.22702
A79: 70 | B79: ENDURANCE | C79: 1146.4 | D79: 1122.15 | E79: 1094.30 | F79: 1042.20 | G79: 1014.35 | H79: 1174.25 | I79: 1202.10 | J79: 1254.20 | K79: 1150 | L79: 1070.05 | M79: 1.21739
A80: 71 | B80: ESCORTS | C80: 1246.5 | D80: 1240.00 | E80: 1204.00 | F80: 1161.50 | G80: 1125.50 | H80: 1282.50 | I80: 1318.50 | J80: 1361.00 | K80: 1276 | L80: 1197.5 | M80: 52.97033
A81: 72 | B81: EXIDEIND | C81: 160.25 | D81: 159.68 | E81: 156.97 | F81: 153.68 | G81: 150.97 | H81: 162.97 | I81: 165.68 | J81: 168.97 | K81: 162.4 | L81: 156.4 | M81: 51.89534
A82: 73 | B82: FEDERALBNK | C82: 53.35 | D82: 53.55 | E82: 52.10 | F82: 50.85 | G82: 49.40 | H82: 54.80 | I82: 56.25 | J82: 57.50 | K82: 55 | L82: 52.3 | M82: 482.7763
A83: 74 | B83: FORTIS | C83: 132.9 | D83: 133.58 | E83: 130.92 | F83: 128.93 | G83: 126.27 | H83: 135.57 | I83: 138.23 | J83: 140.22 | K83: 136.25 | L83: 131.6 | M83: 8.43084
A84: 75 | B84: FRETAIL | C84: 101.1 | D84: 103.22 | E84: 98.98 | F84: 96.87 | G84: 92.63 | H84: 105.33 | I84: 109.57 | J84: 111.68 | K84: 107.45 | L84: 101.1 | M84: 93.6406
A85: 76 | B85: GAIL | C85: 91.95 | D85: 92.13 | E85: 90.62 | F85: 89.28 | G85: 87.77 | H85: 93.47 | I85: 94.98 | J85: 96.32 | K85: 93.65 | L85: 90.8 | M85: 163.0072
A86: 77 | B86: GICRE | C86: 134.05 | D86: 134.77 | E86: 132.68 | F86: 131.32 | G86: 129.23 | H86: 136.13 | I86: 138.22 | J86: 139.58 | K86: 136.85 | L86: 133.4 | M86: 3.26813
A87: 78 | B87: GLENMARK | C87: 482.85 | D87: 483.68 | E87: 475.17 | F87: 467.48 | G87: 458.97 | H87: 491.37 | I87: 499.88 | J87: 507.57 | K87: 492.2 | L87: 476 | M87: 17.51893
A88: 79 | B88: GMRINFRA | C88: 23.7 | D88: 23.82 | E88: 23.38 | F88: 23.07 | G88: 22.63 | H88: 24.13 | I88: 24.57 | J88: 24.88 | K88: 24.25 | L88: 23.5 | M88: 137.99568
A89: 80 | B89: GODREJAGRO | C89: 498.75 | D89: 500.43 | E89: 489.32 | F89: 479.88 | G89: 468.77 | H89: 509.87 | I89: 520.98 | J89: 530.42 | K89: 511.55 | L89: 491 | M89: 2.37555
A90: 81 | B90: GODREJCP | C90: 691.55 | D90: 688.90 | E90: 680.10 | F90: 668.65 | G90: 659.85 | H90: 700.35 | I90: 709.15 | J90: 720.60 | K90: 697.7 | L90: 677.45 | M90: 11.2141
A91: 82 | B91: GODREJIND | C91: 419.6 | D91: 419.20 | E91: 409.40 | F91: 399.20 | G91: 389.40 | H91: 429.40 | I91: 439.20 | J91: 449.40 | K91: 429 | L91: 409 | M91: 1.51047
A92: 83 | B92: GODREJPROP | C92: 905.7 | D92: 901.87 | E92: 883.83 | F92: 861.97 | G92: 843.93 | H92: 923.73 | I92: 941.77 | J92: 963.63 | K92: 919.9 | L92: 880 | M92: 8.46758
A93: 84 | B93: GRASIM | C93: 707 | D93: 715.32 | E93: 694.68 | F93: 682.37 | G93: 661.73 | H93: 727.63 | I93: 748.27 | J93: 760.58 | K93: 735.95 | L93: 703 | M93: 30.44866
A94: 85 | B94: GSPL | C94: 214.65 | D94: 211.28 | E94: 205.67 | F94: 196.68 | G94: 191.07 | H94: 220.27 | I94: 225.88 | J94: 234.87 | K94: 216.9 | L94: 202.3 | M94: 21.78305
A95: 86 | B95: GUJGASLTD | C95: 299 | D95: 300.33 | E95: 295.77 | F95: 292.53 | G95: 287.97 | H95: 303.57 | I95: 308.13 | J95: 311.37 | K95: 304.9 | L95: 297.1 | M95: 5.64339
A96: 87 | B96: HAVELLS | C96: 669.05 | D96: 664.35 | E96: 656.70 | F96: 644.35 | G96: 636.70 | H96: 676.70 | I96: 684.35 | J96: 696.70 | K96: 672 | L96: 652 | M96: 32.4501
A97: 88 | B97: HCLTECH | C97: 794.95 | D97: 788.07 | E97: 751.03 | F97: 707.12 | G97: 670.08 | H97: 831.98 | I97: 869.02 | J97: 912.93 | K97: 825.1 | L97: 744.15 | M97: 323.12531
A98: 89 | B98: HDFC | C98: 1738 | D98: 1754.42 | E98: 1711.98 | F98: 1685.97 | G98: 1643.53 | H98: 1780.43 | I98: 1822.87 | J98: 1848.88 | K98: 1796.85 | L98: 1728.4 | M98: 40.61493
A99: 90 | B99: HDFCAMC | C99: 2350 | D99: 2358.33 | E99: 2326.67 | F99: 2303.33 | G99: 2271.67 | H99: 2381.67 | I99: 2413.33 | J99: 2436.67 | K99: 2390 | L99: 2335 | M99: 3.32717
A100: 91 | B100: HDFCBANK | C100: 1057.95 | D100: 1068.10 | E100: 1042.20 | F100: 1026.45 | G100: 1000.55 | H100: 1083.85 | I100: 1109.75 | J100: 1125.50 | K100: 1094 | L100: 1052.35 | M100: 108.25874
A101: 92 | B101: HDFCLIFE | C101: 599.45 | D101: 601.55 | E101: 593.10 | F101: 586.75 | G101: 578.30 | H101: 607.90 | I101: 616.35 | J101: 622.70 | K101: 610 | L101: 595.2 | M101: 22.69786
A102: 93 | B102: HEROMOTOCO | C102: 3028.5 | D102: 3007.83 | E102: 2976.67 | F102: 2924.83 | G102: 2893.67 | H102: 3059.67 | I102: 3090.83 | J102: 3142.67 | K102: 3039 | L102: 2956 | M102: 15.37248
A103: 94 | B103: HEXAWARE | C103: 424.95 | D103: 421.35 | E103: 413.10 | F103: 401.25 | G103: 393.00 | H103: 433.20 | I103: 441.45 | J103: 453.30 | K103: 429.6 | L103: 409.5 | M103: 29.6992
A104: 95 | B104: HINDALCO | C104: 175.8 | D104: 176.97 | E104: 173.43 | F104: 171.07 | G104: 167.53 | H104: 179.33 | I104: 182.87 | J104: 185.23 | K104: 180.5 | L104: 174.6 | M104: 116.06088
A105: 96 | B105: HINDPETRO | C105: 196.05 | D105: 197.45 | E105: 193.75 | F105: 191.45 | G105: 187.75 | H105: 199.75 | I105: 203.45 | J105: 205.75 | K105: 201.15 | L105: 195.15 | M105: 45.51591
A106: 97 | B106: HINDUNILVR | C106: 2123.5 | D106: 2136.07 | E106: 2102.43 | F106: 2081.37 | G106: 2047.73 | H106: 2157.13 | I106: 2190.77 | J106: 2211.83 | K106: 2169.7 | L106: 2115 | M106: 20.96976
A107: 98 | B107: HINDZINC | C107: 223.95 | D107: 228.30 | E107: 218.15 | F107: 212.35 | G107: 202.20 | H107: 234.10 | I107: 244.25 | J107: 250.05 | K107: 238.45 | L107: 222.5 | M107: 15.65798
A108: 99 | B108: HUDCO | C108: 35.25 | D108: 35.27 | E108: 34.78 | F108: 34.32 | G108: 33.83 | H108: 35.73 | I108: 36.22 | J108: 36.68 | K108: 35.75 | L108: 34.8 | M108: 15.32333
A109: 100 | B109: IBULHSGFIN | C109: 189.5 | D109: 192.65 | E109: 184.90 | F109: 180.30 | G109: 172.55 | H109: 197.25 | I109: 205.00 | J109: 209.60 | K109: 200.4 | L109: 188.05 | M109: 159.94635
A110: 101 | B110: IBVENTURES | C110: 214.15 | D110: 217.28 | E110: 205.42 | F110: 196.68 | G110: 184.82 | H110: 226.02 | I110: 237.88 | J110: 246.62 | K110: 229.15 | L110: 208.55 | M110: 31.90161
A111: 102 | B111: ICICIBANK | C111: 363.7 | D111: 365.63 | E111: 357.42 | F111: 351.13 | G111: 342.92 | H111: 371.92 | I111: 380.13 | J111: 386.42 | K111: 373.85 | L111: 359.35 | M111: 271.40811
A112: 103 | B112: ICICIGI | C112: 1305.35 | D112: 1311.80 | E112: 1288.55 | F112: 1271.75 | G112: 1248.50 | H112: 1328.60 | I112: 1351.85 | J112: 1368.65 | K112: 1335.05 | L112: 1295 | M112: 8.19373
A113: 104 | B113: ICICIPRULI | C113: 430.35 | D113: 434.48 | E113: 423.97 | F113: 417.58 | G113: 407.07 | H113: 440.87 | I113: 451.38 | J113: 457.77 | K113: 445 | L113: 428.1 | M113: 16.30656
A114: 105 | B114: IDBI | C114: 37.6 | D114: 37.85 | E114: 37.25 | F114: 36.90 | G114: 36.30 | H114: 38.20 | I114: 38.80 | J114: 39.15 | K114: 38.45 | L114: 37.5 | M114: 12.13824
A115: 106 | B115: IDEA | C115: 11.55 | D115: 11.48 | E115: 11.12 | F115: 10.68 | G115: 10.32 | H115: 11.92 | I115: 12.28 | J115: 12.72 | K115: 11.85 | L115: 11.05 | M115: 3813.19435
A116: 107 | B116: IDFCFIRSTB | C116: 31.05 | D116: 31.13 | E116: 30.57 | F116: 30.08 | G116: 29.52 | H116: 31.62 | I116: 32.18 | J116: 32.67 | K116: 31.7 | L116: 30.65 | M116: 246.12203
A117: 108 | B117: IGL | C117: 408.8 | D117: 408.53 | E117: 403.07 | F117: 397.33 | G117: 391.87 | H117: 414.27 | I117: 419.73 | J117: 425.47 | K117: 414 | L117: 402.8 | M117: 33.19562
A118: 109 | B118: INDHOTEL | C118: 102.7 | D118: 101.88 | E118: 100.77 | F118: 98.83 | G118: 97.72 | H118: 103.82 | I118: 104.93 | J118: 106.87 | K118: 103 | L118: 99.95 | M118: 17.09372
A119: 110 | B119: INDIGO | C119: 1321.15 | D119: 1313.17 | E119: 1297.98 | F119: 1274.82 | G119: 1259.63 | H119: 1336.33 | I119: 1351.52 | J119: 1374.68 | K119: 1328.35 | L119: 1290 | M119: 39.45179
A120: 111 | B120: INDUSINDBK | C120: 609.35 | D120: 611.07 | E120: 602.13 | F120: 594.92 | G120: 585.98 | H120: 618.28 | I120: 627.22 | J120: 634.43 | K120: 620 | L120: 603.85 | M120: 92.87424
A121: 112 | B121: INFRATEL | C121: 202.6 | D121: 202.68 | E121: 199.27 | F121: 195.93 | G121: 192.52 | H121: 206.02 | I121: 209.43 | J121: 212.77 | K121: 206.1 | L121: 199.35 | M121: 116.30324
A122: 113 | B122: INFY | C122: 978.4 | D122: 972.58 | E122: 954.12 | F122: 929.83 | G122: 911.37 | H122: 996.87 | I122: 1015.33 | J122: 1039.62 | K122: 991.05 | L122: 948.3 | M122: 218.71591
A123: 114 | B123: IOC | C123: 82.7 | D123: 82.95 | E123: 82.10 | F123: 81.50 | G123: 80.65 | H123: 83.55 | I123: 84.40 | J123: 85.00 | K123: 83.8 | L123: 82.35 | M123: 118.74116
A124: 115 | B124: IPCALAB | C124: 2146.2 | D124: 2122.05 | E124: 2074.15 | F124: 2002.10 | G124: 1954.20 | H124: 2194.10 | I124: 2242.00 | J124: 2314.05 | K124: 2169.95 | L124: 2050 | M124: 5.27744
A125: 116 | B125: IRCTC | C125: 1367.85 | D125: 1368.62 | E125: 1349.23 | F125: 1330.62 | G125: 1311.23 | H125: 1387.23 | I125: 1406.62 | J125: 1425.23 | K125: 1388 | L125: 1350 | M125: 8.61596
A126: 117 | B126: ITC | C126: 183.35 | D126: 184.07 | E126: 182.28 | F126: 181.22 | G126: 179.43 | H126: 185.13 | I126: 186.92 | J126: 187.98 | K126: 185.85 | L126: 183 | M126: 309.93032
A127: 118 | B127: JINDALSTEL | C127: 209.65 | D127: 209.17 | E127: 206.98 | F127: 204.32 | G127: 202.13 | H127: 211.83 | I127: 214.02 | J127: 216.68 | K127: 211.35 | L127: 206.5 | M127: 86.17082
A128: 119 | B128: JSWENERGY | C128: 56.9 | D128: 57.37 | E128: 55.03 | F128: 53.17 | G128: 50.83 | H128: 59.23 | I128: 61.57 | J128: 63.43 | K128: 59.7 | L128: 55.5 | M128: 24.0903
A129: 120 | B129: JSWSTEEL | C129: 289.85 | D129: 289.80 | E129: 285.65 | F129: 281.45 | G129: 277.30 | H129: 294.00 | I129: 298.15 | J129: 302.35 | K129: 293.95 | L129: 285.6 | M129: 72.75752
A130: 121 | B130: JUBILANT | C130: 762.4 | D130: 758.35 | E130: 747.05 | F130: 731.70 | G130: 720.40 | H130: 773.70 | I130: 785.00 | J130: 800.35 | K130: 769.65 | L130: 743 | M130: 4.72324
A131: 122 | B131: JUBLFOOD | C131: 2347.35 | D131: 2346.47 | E131: 2324.93 | F131: 2302.52 | G131: 2280.98 | H131: 2368.88 | I131: 2390.42 | J131: 2412.83 | K131: 2368 | L131: 2324.05 | M131: 7.72729
A132: 123 | B132: KOTAKBANK | C132: 1304.7 | D132: 1317.55 | E132: 1287.15 | F132: 1269.60 | G132: 1239.20 | H132: 1335.10 | I132: 1365.50 | J132: 1383.05 | K132: 1347.95 | L132: 1300 | M132: 38.91183
A133: 124 | B133: L&TFH | C133: 63.55 | D133: 63.45 | E133: 62.40 | F133: 61.25 | G133: 60.20 | H133: 64.60 | I133: 65.65 | J133: 66.80 | K133: 64.5 | L133: 62.3 | M133: 140.23523
A134: 125 | B134: LALPATHLAB | C134: 1934.4 | D134: 1908.80 | E134: 1870.60 | F134: 1806.80 | G134: 1768.60 | H134: 1972.60 | I134: 2010.80 | J134: 2074.60 | K134: 1947 | L134: 1845 | M134: 3.9026
A135: 126 | B135: LICHSGFIN | C135: 302.65 | D135: 302.18 | E135: 297.72 | F135: 292.78 | G135: 288.32 | H135: 307.12 | I135: 311.58 | J135: 316.52 | K135: 306.65 | L135: 297.25 | M135: 42.3415
A136: 127 | B136: LT | C136: 902.1 | D136: 908.82 | E136: 894.28 | F136: 886.47 | G136: 871.93 | H136: 916.63 | I136: 931.17 | J136: 938.98 | K136: 923.35 | L136: 901 | M136: 50.06822
A137: 128 | B137: LTI | C137: 2651.7 | D137: 2612.62 | E137: 2539.08 | F137: 2426.47 | G137: 2352.93 | H137: 2725.23 | I137: 2798.77 | J137: 2911.38 | K137: 2686.15 | L137: 2500 | M137: 8.6971
A138: 129 | B138: LTTS | C138: 1592.65 | D138: 1578.15 | E138: 1542.50 | F138: 1492.35 | G138: 1456.70 | H138: 1628.30 | I138: 1663.95 | J138: 1714.10 | K138: 1613.8 | L138: 1528 | M138: 2.18018
A139: 130 | B139: LUPIN | C139: 968 | D139: 966.32 | E139: 959.68 | F139: 951.37 | G139: 944.73 | H139: 974.63 | I139: 981.27 | J139: 989.58 | K139: 972.95 | L139: 958 | M139: 18.36318
A140: 131 | B140: M&M | C140: 615.3 | D140: 618.87 | E140: 608.33 | F140: 601.37 | G140: 590.83 | H140: 625.83 | I140: 636.37 | J140: 643.33 | K140: 629.4 | L140: 611.9 | M140: 49.21204
A141: 132 | B141: M&MFIN | C141: 133.45 | D141: 133.33 | E141: 131.22 | F141: 128.98 | G141: 126.87 | H141: 135.57 | I141: 137.68 | J141: 139.92 | K141: 135.45 | L141: 131.1 | M141: 110.86447
A142: 133 | B142: MANAPPURAM | C142: 158.75 | D142: 159.88 | E142: 156.87 | F142: 154.98 | G142: 151.97 | H142: 161.77 | I142: 164.78 | J142: 166.67 | K142: 162.9 | L142: 158 | M142: 142.33007
A143: 134 | B143: MARICO | C143: 370.55 | D143: 369.35 | E143: 367.00 | F143: 363.45 | G143: 361.10 | H143: 372.90 | I143: 375.25 | J143: 378.80 | K143: 371.7 | L143: 365.8 | M143: 16.63003
A144: 135 | B144: MARUTI | C144: 7128.85 | D144: 7151.15 | E144: 7062.70 | F144: 6996.55 | G144: 6908.10 | H144: 7217.30 | I144: 7305.75 | J144: 7371.90 | K144: 7239.6 | L144: 7085 | M144: 10.03493
A145: 136 | B145: MCDOWELL-N | C145: 546.65 | D145: 548.33 | E145: 542.47 | F145: 538.28 | G145: 532.42 | H145: 552.52 | I145: 558.38 | J145: 562.57 | K145: 554.2 | L145: 544.15 | M145: 13.79432
A146: 137 | B146: MFSL | C146: 620.3 | D146: 619.07 | E146: 606.23 | F146: 592.17 | G146: 579.33 | H146: 633.13 | I146: 645.97 | J146: 660.03 | K146: 631.9 | L146: 605 | M146: 22.41135
A147: 138 | B147: MGL | C147: 929.75 | D147: 929.92 | E147: 910.83 | F147: 891.92 | G147: 872.83 | H147: 948.83 | I147: 967.92 | J147: 986.83 | K147: 949 | L147: 911 | M147: 13.50393
A148: 139 | B148: MINDTREE | C148: 1221.7 | D148: 1218.45 | E148: 1198.25 | F148: 1174.80 | G148: 1154.60 | H148: 1241.90 | I148: 1262.10 | J148: 1285.55 | K148: 1238.65 | L148: 1195 | M148: 39.54771
A149: 140 | B149: MOTHERSUMI | C149: 116.35 | D149: 116.12 | E149: 112.73 | F149: 109.12 | G149: 105.73 | H149: 119.73 | I149: 123.12 | J149: 126.73 | K149: 119.5 | L149: 112.5 | M149: 204.40652
A150: 141 | B150: MPHASIS | C150: 1256.7 | D150: 1243.13 | E150: 1188.57 | F150: 1120.43 | G150: 1065.87 | H150: 1311.27 | I150: 1365.83 | J150: 1433.97 | K150: 1297.7 | L150: 1175 | M150: 13.44907
A151: 142 | B151: MRF | C151: 58519.85 | D151: 58839.90 | E151: 57879.80 | F151: 57239.75 | G151: 56279.65 | H151: 59479.95 | I151: 60440.05 | J151: 61080.10 | K151: 59800 | L151: 58199.85 | M151: 0.1743
A152: 143 | B152: MRPL | C152: 29.85 | D152: 30.05 | E152: 29.45 | F152: 29.05 | G152: 28.45 | H152: 30.45 | I152: 31.05 | J152: 31.45 | K152: 30.65 | L152: 29.65 | M152: 9.82594
A153: 144 | B153: MUTHOOTFIN | C153: 1123.45 | D153: 1127.90 | E153: 1108.95 | F153: 1094.45 | G153: 1075.50 | H153: 1142.40 | I153: 1161.35 | J153: 1175.85 | K153: 1146.85 | L153: 1113.4 | M153: 17.62335
A154: 145 | B154: NAM-INDIA | C154: 282.15 | D154: 280.55 | E154: 275.60 | F154: 269.05 | G154: 264.10 | H154: 287.10 | I154: 292.05 | J154: 298.60 | K154: 285.5 | L154: 274 | M154: 13.94419
A155: 146 | B155: NATCOPHARM | C155: 782.6 | D155: 788.77 | E155: 775.08 | F155: 767.57 | G155: 753.88 | H155: 796.28 | I155: 809.97 | J155: 817.48 | K155: 802.45 | L155: 781.25 | M155: 1.88818
A156: 147 | B156: NATIONALUM | C156: 35.2 | D156: 35.48 | E156: 34.52 | F156: 33.83 | G156: 32.87 | H156: 36.17 | I156: 37.13 | J156: 37.82 | K156: 36.45 | L156: 34.8 | M156: 173.98896
A157: 148 | B157: NAUKRI | C157: 3434.1 | D157: 3423.37 | E157: 3391.73 | F157: 3349.37 | G157: 3317.73 | H157: 3465.73 | I157: 3497.37 | J157: 3539.73 | K157: 3455 | L157: 3381 | M157: 4.05815
A158: 149 | B158: NESTLEIND | C158: 16083.3 | D158: 16174.45 | E158: 15948.90 | F158: 15814.50 | G158: 15588.95 | H158: 16308.85 | I158: 16534.40 | J158: 16668.80 | K158: 16400 | L158: 16040.05 | M158: 1.02927
A159: 150 | B159: NHPC | C159: 20.7 | D159: 20.73 | E159: 20.57 | F159: 20.43 | G159: 20.27 | H159: 20.87 | I159: 21.03 | J159: 21.17 | K159: 20.9 | L159: 20.6 | M159: 26.51189
A160: 151 | B160: NMDC | C160: 89.65 | D160: 90.13 | E160: 88.72 | F160: 87.78 | G160: 86.37 | H160: 91.07 | I160: 92.48 | J160: 93.42 | K160: 91.55 | L160: 89.2 | M160: 57.70126
A161: 152 | B161: NTPC | C161: 90.85 | D161: 90.85 | E161: 89.75 | F161: 88.65 | G161: 87.55 | H161: 91.95 | I161: 93.05 | J161: 94.15 | K161: 91.95 | L161: 89.75 | M161: 225.35288
A162: 153 | B162: OBEROIRLTY | C162: 400.95 | D162: 400.12 | E162: 381.83 | F162: 362.72 | G162: 344.43 | H162: 419.23 | I162: 437.52 | J162: 456.63 | K162: 418.4 | L162: 381 | M162: 9.66231
A163: 154 | B163: OFSS | C163: 2988.2 | D163: 2996.67 | E163: 2952.53 | F163: 2916.87 | G163: 2872.73 | H163: 3032.33 | I163: 3076.47 | J163: 3112.13 | K163: 3040.8 | L163: 2961 | M163: 1.54005
A164: 155 | B164: OIL | C164: 95.35 | D164: 95.17 | E164: 94.33 | F164: 93.32 | G164: 92.48 | H164: 96.18 | I164: 97.02 | J164: 98.03 | K164: 96 | L164: 94.15 | M164: 4.47461
A165: 156 | B165: ONGC | C165: 73.65 | D165: 73.88 | E165: 73.02 | F165: 72.38 | G165: 71.52 | H165: 74.52 | I165: 75.38 | J165: 76.02 | K165: 74.75 | L165: 73.25 | M165: 119.90117
A166: 157 | B166: PAGEIND | C166: 19148.75 | D166: 19149.25 | E166: 18549.50 | F166: 17950.25 | G166: 17350.50 | H166: 19748.50 | I166: 20348.25 | J166: 20947.50 | K166: 19749 | L166: 18550 | M166: 1.27082
A167: 158 | B167: PEL | C167: 1322.8 | D167: 1328.60 | E167: 1308.20 | F167: 1293.60 | G167: 1273.20 | H167: 1343.20 | I167: 1363.60 | J167: 1378.20 | K167: 1349 | L167: 1314 | M167: 12.80191
A168: 159 | B168: PETRONET | C168: 236.7 | D168: 237.00 | E168: 234.30 | F168: 231.90 | G168: 229.20 | H168: 239.40 | I168: 242.10 | J168: 244.50 | K168: 239.7 | L168: 234.6 | M168: 41.74393
A169: 160 | B169: PFC | C169: 92.1 | D169: 92.63 | E169: 91.02 | F169: 89.93 | G169: 88.32 | H169: 93.72 | I169: 95.33 | J169: 96.42 | K169: 94.25 | L169: 91.55 | M169: 76.14598
A170: 161 | B170: PFIZER | C170: 4919.5 | D170: 4950.42 | E170: 4855.08 | F170: 4790.67 | G170: 4695.33 | H170: 5014.83 | I170: 5110.17 | J170: 5174.58 | K170: 5045.75 | L170: 4886 | M170: 0.66699
A171: 162 | B171: PGHH | C171: 9997.5 | D171: 10037.48 | E171: 9940.02 | F171: 9882.53 | G171: 9785.07 | H171: 10094.97 | I171: 10192.43 | J171: 10249.92 | K171: 10134.95 | L171: 9980 | M171: 0.05382
A172: 163 | B172: PIDILITIND | C172: 1480.7 | D172: 1484.93 | E172: 1465.77 | F172: 1450.83 | G172: 1431.67 | H172: 1499.87 | I172: 1519.03 | J172: 1533.97 | K172: 1504.1 | L172: 1470 | M172: 5.03502
A173: 164 | B173: PIIND | C173: 1923.8 | D173: 1917.37 | E173: 1885.43 | F173: 1847.07 | G173: 1815.13 | H173: 1955.73 | I173: 1987.67 | J173: 2026.03 | K173: 1949.3 | L173: 1879 | M173: 4.80593
A174: 165 | B174: PNB | C174: 33.6 | D174: 33.67 | E174: 33.28 | F174: 32.97 | G174: 32.58 | H174: 33.98 | I174: 34.37 | J174: 34.68 | K174: 34.05 | L174: 33.35 | M174: 138.26559
A175: 166 | B175: PNBHOUSING | C175: 326 | D175: 324.23 | E175: 319.52 | F175: 313.03 | G175: 308.32 | H175: 330.72 | I175: 335.43 | J175: 341.92 | K175: 328.95 | L175: 317.75 | M175: 8.47119
A176: 167 | B176: POLYCAB | C176: 888.35 | D176: 882.45 | E176: 860.90 | F176: 833.45 | G176: 811.90 | H176: 909.90 | I176: 931.45 | J176: 958.90 | K176: 904 | L176: 855 | M176: 4.0176
A177: 168 | B177: POWERGRID | C177: 171.5 | D177: 173.25 | E177: 169.00 | F177: 166.50 | G177: 162.25 | H177: 175.75 | I177: 180.00 | J177: 182.50 | K177: 177.5 | L177: 170.75 | M177: 79.5602
A178: 169 | B178: PRESTIGE | C178: 264.15 | D178: 257.50 | E178: 249.10 | F178: 234.05 | G178: 225.65 | H178: 272.55 | I178: 280.95 | J178: 296.00 | K178: 265.9 | L178: 242.45 | M178: 16.9963
A179: 170 | B179: QUESS | C179: 410.9 | D179: 399.80 | E179: 388.70 | F179: 366.50 | G179: 355.40 | H179: 422.00 | I179: 433.10 | J179: 455.30 | K179: 410.9 | L179: 377.6 | M179: 8.75417
A180: 171 | B180: RAJESHEXPO | C180: 452.7 | D180: 454.57 | E180: 449.13 | F180: 445.57 | G180: 440.13 | H180: 458.13 | I180: 463.57 | J180: 467.13 | K180: 460 | L180: 451 | M180: 0.54666
A181: 172 | B181: RAMCOCEM | C181: 722.45 | D181: 717.95 | E181: 709.50 | F181: 696.55 | G181: 688.10 | H181: 730.90 | I181: 739.35 | J181: 752.30 | K181: 726.4 | L181: 705 | M181: 8.3833
A182: 173 | B182: RBLBANK | C182: 181.05 | D182: 182.85 | E182: 178.20 | F182: 175.35 | G182: 170.70 | H182: 185.70 | I182: 190.35 | J182: 193.20 | K182: 187.5 | L182: 180 | M182: 163.61599
A183: 174 | B183: RECLTD | C183: 107.25 | D183: 108.03 | E183: 106.02 | F183: 104.78 | G183: 102.77 | H183: 109.27 | I183: 111.28 | J183: 112.52 | K183: 110.05 | L183: 106.8 | M183: 65.95305
A184: 175 | B184: RELIANCE | C184: 2302.55 | D184: 2314.85 | E184: 2269.70 | F184: 2236.85 | G184: 2191.70 | H184: 2347.70 | I184: 2392.85 | J184: 2425.70 | K184: 2360 | L184: 2282 | M184: 203.3548
A185: 176 | B185: SAIL | C185: 39.55 | D185: 39.62 | E185: 39.03 | F185: 38.52 | G185: 37.93 | H185: 40.13 | I185: 40.72 | J185: 41.23 | K185: 40.2 | L185: 39.1 | M185: 192.41133
A186: 177 | B186: SBICARD | C186: 855.85 | D186: 855.52 | E186: 843.03 | F186: 830.22 | G186: 817.73 | H186: 868.33 | I186: 880.82 | J186: 893.63 | K186: 868 | L186: 842.7 | M186: 23.06741
A187: 178 | B187: SBILIFE | C187: 857.1 | D187: 861.03 | E187: 846.07 | F187: 835.03 | G187: 820.07 | H187: 872.07 | I187: 887.03 | J187: 898.07 | K187: 876 | L187: 850 | M187: 13.46301
A188: 179 | B188: SBIN | C188: 198.5 | D188: 200.68 | E188: 195.17 | F188: 191.83 | G188: 186.32 | H188: 204.02 | I188: 209.53 | J188: 212.87 | K188: 206.2 | L188: 197.35 | M188: 636.06706
A189: 180 | B189: SHREECEM | C189: 19789.5 | D189: 19758.17 | E189: 19531.33 | F189: 19273.17 | G189: 19046.33 | H189: 20016.33 | I189: 20243.17 | J189: 20501.33 | K189: 19985 | L189: 19500 | M189: 0.60868
A190: 181 | B190: SIEMENS | C190: 1235.5 | D190: 1230.90 | E190: 1219.80 | F190: 1204.10 | G190: 1193.00 | H190: 1246.60 | I190: 1257.70 | J190: 1273.40 | K190: 1242 | L190: 1215.2 | M190: 6.02638
A191: 182 | B191: SRF | C191: 4330.3 | D191: 4307.75 | E191: 4245.55 | F191: 4160.80 | G191: 4098.60 | H191: 4392.50 | I191: 4454.70 | J191: 4539.45 | K191: 4369.95 | L191: 4223 | M191: 3.80624
A192: 183 | B192: SRTRANSFIN | C192: 636.45 | D192: 639.47 | E192: 628.43 | F192: 620.42 | G192: 609.38 | H192: 647.48 | I192: 658.52 | J192: 666.53 | K192: 650.5 | L192: 631.45 | M192: 36.90597
A193: 184 | B193: SUNPHARMA | C193: 495.8 | D193: 499.60 | E193: 490.20 | F193: 484.60 | G193: 475.20 | H193: 505.20 | I193: 514.60 | J193: 520.20 | K193: 509 | L193: 494 | M193: 80.41445
A194: 185 | B194: SUNTV | C194: 499.35 | D194: 498.87 | E194: 489.48 | F194: 479.62 | G194: 470.23 | H194: 508.73 | I194: 518.12 | J194: 527.98 | K194: 508.25 | L194: 489 | M194: 26.79303
A195: 186 | B195: SYNGENE | C195: 533.35 | D195: 541.10 | E195: 512.30 | F195: 491.25 | G195: 462.45 | H195: 562.15 | I195: 590.95 | J195: 612.00 | K195: 569.9 | L195: 520.05 | M195: 70.34805
A196: 187 | B196: TATACONSUM | C196: 546.5 | D196: 548.37 | E196: 541.53 | F196: 536.57 | G196: 529.73 | H196: 553.33 | I196: 560.17 | J196: 565.13 | K196: 555.2 | L196: 543.4 | M196: 28.09333
A197: 188 | B197: TATAMOTORS | C197: 148.55 | D197: 148.38 | E197: 145.67 | F197: 142.78 | G197: 140.07 | H197: 151.27 | I197: 153.98 | J197: 156.87 | K197: 151.1 | L197: 145.5 | M197: 845.06253
A198: 189 | B198: TATAPOWER | C198: 57.1 | D198: 57.32 | E198: 56.23 | F198: 55.37 | G198: 54.28 | H198: 58.18 | I198: 59.27 | J198: 60.13 | K198: 58.4 | L198: 56.45 | M198: 229.21766
A199: 190 | B199: TATASTEEL | C199: 404.65 | D199: 406.97 | E199: 399.83 | F199: 395.02 | G199: 387.88 | H199: 411.78 | I199: 418.92 | J199: 423.73 | K199: 414.1 | L199: 402.15 | M199: 123.31121
A200: 191 | B200: TCS | C200: 2491.4 | D200: 2459.67 | E200: 2413.58 | F200: 2335.77 | G200: 2289.68 | H200: 2537.48 | I200: 2583.57 | J200: 2661.38 | K200: 2505.75 | L200: 2381.85 | M200: 75.12284
A201: 192 | B201: TECHM | C201: 790.75 | D201: 785.78 | E201: 774.97 | F201: 759.18 | G201: 748.37 | H201: 801.57 | I201: 812.38 | J201: 828.17 | K201: 796.6 | L201: 770 | M201: 90.22087
A202: 193 | B202: TITAN | C202: 1188 | D202: 1182.52 | E202: 1173.43 | F202: 1158.87 | G202: 1149.78 | H202: 1197.08 | I202: 1206.17 | J202: 1220.73 | K202: 1191.6 | L202: 1167.95 | M202: 20.19325
A203: 194 | B203: TORNTPHARM | C203: 2797.55 | D203: 2812.52 | E203: 2766.18 | F203: 2734.82 | G203: 2688.48 | H203: 2843.88 | I203: 2890.22 | J203: 2921.58 | K203: 2858.85 | L203: 2781.15 | M203: 2.88536
A204: 195 | B204: TORNTPOWER | C204: 326.55 | D204: 327.10 | E204: 322.55 | F204: 318.55 | G204: 314.00 | H204: 331.10 | I204: 335.65 | J204: 339.65 | K204: 331.65 | L204: 323.1 | M204: 8.179
A205: 196 | B205: TRENT | C205: 695.4 | D205: 711.65 | E205: 674.30 | F205: 653.20 | G205: 615.85 | H205: 732.75 | I205: 770.10 | J205: 791.20 | K205: 749 | L205: 690.55 | M205: 17.9178
... 29 more rows

Sheet MidCap Intra
L5: Back To Main Page
A6: FOR INTRA DAY TRADING | K6: =Main!B10 -> 2020-09-15
A9: Sr.no | B9: Scrip | C9: CLOSE RATE | D9: Pivot Point | E9: Supports | H9: Resistances
C10: Point | E10: S1 | F10: S2 | G10: S3 | H10: R1 | I10: R2 | J10: R3 | K10: HIGH | L10: LOW | M10: Total Trade Quanity in Lakhs
A11: 1 | B11: 3MINDIA | C11: 18922.5 | D11: 18842.67 | E11: 18605.33 | F11: 18288.17 | G11: 18050.83 | H11: 19159.83 | I11: 19397.17 | J11: 19714.33 | K11: 19080 | L11: 18525.5 | M11: 0.12383
A12: 2 | B12: AARTIIND | C12: 1057.05 | D12: 1062.00 | E12: 1026.05 | F12: 995.05 | G12: 959.10 | H12: 1093.00 | I12: 1128.95 | J12: 1159.95 | K12: 1097.95 | L12: 1031 | M12: 5.48493
A13: 3 | B13: AAVAS | C13: 1382.05 | D13: 1372.35 | E13: 1349.70 | F13: 1317.35 | G13: 1294.70 | H13: 1404.70 | I13: 1427.35 | J13: 1459.70 | K13: 1395 | L13: 1340 | M13: 1.09848
A14: 4 | B14: ABB | C14: 907.55 | D14: 907.52 | E14: 902.03 | F14: 896.52 | G14: 891.03 | H14: 913.03 | I14: 918.52 | J14: 924.03 | K14: 913 | L14: 902 | M14: 3.57451
A15: 5 | B15: ABBOTINDIA | C15: 16516.15 | D15: 16629.72 | E15: 16361.43 | F15: 16206.72 | G15: 15938.43 | H15: 16784.43 | I15: 17052.72 | J15: 17207.43 | K15: 16898 | L15: 16475 | M15: 0.11509
A16: 6 | B16: ABCAPITAL | C16: 70.8 | D16: 71.15 | E16: 69.90 | F16: 69.00 | G16: 67.75 | H16: 72.05 | I16: 73.30 | J16: 74.20 | K16: 72.4 | L16: 70.25 | M16: 30.67286
A17: 7 | B17: ABFRL | C17: 136 | D17: 136.97 | E17: 132.53 | F17: 129.07 | G17: 124.63 | H17: 140.43 | I17: 144.87 | J17: 148.33 | K17: 141.4 | L17: 133.5 | M17: 39.58209
A18: 8 | B18: ACC | C18: 1367.35 | D18: 1364.63 | E18: 1346.02 | F18: 1324.68 | G18: 1306.07 | H18: 1385.97 | I18: 1404.58 | J18: 1425.92 | K18: 1383.25 | L18: 1343.3 | M18: 17.17693
A19: 9 | B19: ADANIGAS | C19: 204.25 | D19: 207.12 | E19: 199.23 | F19: 194.22 | G19: 186.33 | H19: 212.13 | I19: 220.02 | J19: 225.03 | K19: 215 | L19: 202.1 | M19: 45.84508
A20: 10 | B20: ADANIGREEN | C20: 638.9 | D20: 631.98 | E20: 624.92 | F20: 610.93 | G20: 603.87 | H20: 645.97 | I20: 653.03 | J20: 667.02 | K20: 639.05 | L20: 618 | M20: 38.11613
A21: 11 | B21: ADANIPORTS | C21: 351.65 | D21: 349.57 | E21: 345.53 | F21: 339.42 | G21: 335.38 | H21: 355.68 | I21: 359.72 | J21: 365.83 | K21: 353.6 | L21: 343.45 | M21: 42.21864
A22: 12 | B22: ADANIPOWER | C22: 37.25 | D22: 37.38 | E22: 36.97 | F22: 36.68 | G22: 36.27 | H22: 37.67 | I22: 38.08 | J22: 38.37 | K22: 37.8 | L22: 37.1 | M22: 14.19964
A23: 13 | B23: ADANITRANS | C23: 268.1 | D23: 270.33 | E23: 262.87 | F23: 257.63 | G23: 250.17 | H23: 275.57 | I23: 283.03 | J23: 288.27 | K23: 277.8 | L23: 265.1 | M23: 4.58042
A24: 14 | B24: ADVENZYMES | C24: 235.7 | D24: 236.57 | E24: 231.13 | F24: 226.57 | G24: 221.13 | H24: 241.13 | I24: 246.57 | J24: 251.13 | K24: 242 | L24: 232 | M24: 5.27992
A25: 15 | B25: AEGISCHEM | C25: 224.4 | D25: 219.47 | E25: 209.93 | F25: 195.47 | G25: 185.93 | H25: 233.93 | I25: 243.47 | J25: 257.93 | K25: 229 | L25: 205 | M25: 11.28427
A26: 16 | B26: AFFLE | C26: 3053.3 | D26: 3025.63 | E26: 2997.97 | F26: 2942.63 | G26: 2914.97 | H26: 3080.97 | I26: 3108.63 | J26: 3163.97 | K26: 3053.3 | L26: 2970.3 | M26: 1.21069
A27: 17 | B27: AIAENG | C27: 1861.8 | D27: 1850.30 | E27: 1772.85 | F27: 1683.90 | G27: 1606.45 | H27: 1939.25 | I27: 2016.70 | J27: 2105.65 | K27: 1927.75 | L27: 1761.35 | M27: 0.30999
A28: 18 | B28: AJANTPHARM | C28: 1524.9 | D28: 1532.05 | E28: 1500.10 | F28: 1475.30 | G28: 1443.35 | H28: 1556.85 | I28: 1588.80 | J28: 1613.60 | K28: 1564 | L28: 1507.25 | M28: 1.55275
A29: 19 | B29: AKZOINDIA | C29: 2091.65 | D29: 2074.25 | E29: 2037.50 | F29: 1983.35 | G29: 1946.60 | H29: 2128.40 | I29: 2165.15 | J29: 2219.30 | K29: 2111 | L29: 2020.1 | M29: 0.23555
A30: 20 | B30: ALKEM | C30: 2909.2 | D30: 2913.48 | E30: 2886.97 | F30: 2864.73 | G30: 2838.22 | H30: 2935.72 | I30: 2962.23 | J30: 2984.47 | K30: 2940 | L30: 2891.25 | M30: 1.8581
A31: 21 | B31: ALKYLAMINE | C31: 3342.65 | D31: 3319.20 | E31: 3240.40 | F31: 3138.15 | G31: 3059.35 | H31: 3421.45 | I31: 3500.25 | J31: 3602.50 | K31: 3398 | L31: 3216.95 | M31: 0.731
A32: 22 | B32: ALLCARGO | C32: 121.85 | D32: 122.52 | E32: 120.13 | F32: 118.42 | G32: 116.03 | H32: 124.23 | I32: 126.62 | J32: 128.33 | K32: 124.9 | L32: 120.8 | M32: 4.50978
A33: 23 | B33: AMARAJABAT | C33: 761.5 | D33: 764.68 | E33: 746.37 | F33: 731.23 | G33: 712.92 | H33: 779.82 | I33: 798.13 | J33: 813.27 | K33: 783 | L33: 749.55 | M33: 23.48582
A34: 24 | B34: AMBER | C34: 1953 | D34: 1907.30 | E34: 1830.60 | F34: 1708.20 | G34: 1631.50 | H34: 2029.70 | I34: 2106.40 | J34: 2228.80 | K34: 1984 | L34: 1784.9 | M34: 13.75316
A35: 25 | B35: AMBUJACEM | C35: 211.1 | D35: 212.63 | E35: 208.27 | F35: 205.43 | G35: 201.07 | H35: 215.47 | I35: 219.83 | J35: 222.67 | K35: 217 | L35: 209.8 | M35: 45.94264
A36: 26 | B36: APLAPOLLO | C36: 2675.25 | D36: 2634.23 | E36: 2468.57 | F36: 2261.88 | G36: 2096.22 | H36: 2840.92 | I36: 3006.58 | J36: 3213.27 | K36: 2799.9 | L36: 2427.55 | M36: 4.16848
A37: 27 | B37: APLLTD | C37: 911.8 | D37: 914.48 | E37: 902.37 | F37: 892.93 | G37: 880.82 | H37: 923.92 | I37: 936.03 | J37: 945.47 | K37: 926.6 | L37: 905.05 | M37: 4.25085
A38: 28 | B38: APOLLOHOSP | C38: 1623.7 | D38: 1622.35 | E38: 1591.50 | F38: 1559.30 | G38: 1528.45 | H38: 1654.55 | I38: 1685.40 | J38: 1717.60 | K38: 1653.2 | L38: 1590.15 | M38: 10.94575
A39: 29 | B39: APOLLOTYRE | C39: 125.55 | D39: 122.95 | E39: 119.40 | F39: 113.25 | G39: 109.70 | H39: 129.10 | I39: 132.65 | J39: 138.80 | K39: 126.5 | L39: 116.8 | M39: 152.1265
A40: 30 | B40: ARVINDFASN | C40: 140.8 | D40: 138.98 | E40: 136.87 | F40: 132.93 | G40: 130.82 | H40: 142.92 | I40: 145.03 | J40: 148.97 | K40: 141.1 | L40: 135.05 | M40: 3.79567
A41: 31 | B41: ASAHIINDIA | C41: 225.4 | D41: 224.02 | E41: 220.03 | F41: 214.67 | G41: 210.68 | H41: 229.38 | I41: 233.37 | J41: 238.73 | K41: 228 | L41: 218.65 | M41: 0.38577
A42: 32 | B42: ASHOKA | C42: 70.45 | D42: 70.35 | E42: 69.20 | F42: 67.95 | G42: 66.80 | H42: 71.60 | I42: 72.75 | J42: 74.00 | K42: 71.5 | L42: 69.1 | M42: 17.19933
A43: 33 | B43: ASHOKLEY | C43: 74.8 | D43: 73.12 | E43: 70.78 | F43: 66.77 | G43: 64.43 | H43: 77.13 | I43: 79.47 | J43: 83.48 | K43: 75.45 | L43: 69.1 | M43: 918.62696
A44: 34 | B44: ASIANPAINT | C44: 2031.2 | D44: 2030.07 | E44: 2006.13 | F44: 1981.07 | G44: 1957.13 | H44: 2055.13 | I44: 2079.07 | J44: 2104.13 | K44: 2054 | L44: 2005 | M44: 21.42458
A45: 35 | B45: ASTERDM | C45: 132.5 | D45: 129.77 | E45: 125.03 | F45: 117.57 | G45: 112.83 | H45: 137.23 | I45: 141.97 | J45: 149.43 | K45: 134.5 | L45: 122.3 | M45: 6.98826
A46: 36 | B46: ASTRAL | C46: 1215.6 | D46: 1226.55 | E46: 1179.10 | F46: 1142.60 | G46: 1095.15 | H46: 1263.05 | I46: 1310.50 | J46: 1347.00 | K46: 1274 | L46: 1190.05 | M46: 1.81968
A47: 37 | B47: ASTRAZEN | C47: 4302.3 | D47: 4357.08 | E47: 4195.22 | F47: 4088.13 | G47: 3926.27 | H47: 4464.17 | I47: 4626.03 | J47: 4733.12 | K47: 4518.95 | L47: 4250 | M47: 2.44831
A48: 38 | B48: ATUL | C48: 6473.75 | D48: 6457.58 | E48: 6316.17 | F48: 6158.58 | G48: 6017.17 | H48: 6615.17 | I48: 6756.58 | J48: 6914.17 | K48: 6599 | L48: 6300 | M48: 0.84705
A49: 39 | B49: AUBANK | C49: 700.9 | D49: 703.67 | E49: 688.63 | F49: 676.37 | G49: 661.33 | H49: 715.93 | I49: 730.97 | J49: 743.23 | K49: 718.7 | L49: 691.4 | M49: 9.16606
A50: 40 | B50: AUROPHARMA | C50: 796.15 | D50: 800.80 | E50: 786.60 | F50: 777.05 | G50: 762.85 | H50: 810.35 | I50: 824.55 | J50: 834.10 | K50: 815 | L50: 791.25 | M50: 24.38228
A51: 41 | B51: AVANTIFEED | C51: 535.35 | D51: 521.62 | E51: 498.73 | F51: 462.12 | G51: 439.23 | H51: 558.23 | I51: 581.12 | J51: 617.73 | K51: 544.5 | L51: 485 | M51: 20.90057
A52: 42 | B52: AXISBANK | C52: 440.55 | D52: 444.52 | E52: 434.03 | F52: 427.52 | G52: 417.03 | H52: 451.03 | I52: 461.52 | J52: 468.03 | K52: 455 | L52: 438 | M52: 176.24795
A53: 43 | B53: BAJAJ-AUTO | C53: 2957.7 | D53: 2946.90 | E53: 2905.80 | F53: 2853.90 | G53: 2812.80 | H53: 2998.80 | I53: 3039.90 | J53: 3091.80 | K53: 2988 | L53: 2895 | M53: 11.85693
A54: 44 | B54: BAJAJCON | C54: 185.25 | D54: 181.13 | E54: 174.47 | F54: 163.68 | G54: 157.02 | H54: 191.92 | I54: 198.58 | J54: 209.37 | K54: 187.8 | L54: 170.35 | M54: 27.85883
A55: 45 | B55: BAJAJELEC | C55: 499.75 | D55: 488.55 | E55: 473.70 | F55: 447.65 | G55: 432.80 | H55: 514.60 | I55: 529.45 | J55: 555.50 | K55: 503.4 | L55: 462.5 | M55: 6.45915
A56: 46 | B56: BAJAJFINSV | C56: 6112.15 | D56: 6132.38 | E56: 6070.77 | F56: 6029.38 | G56: 5967.77 | H56: 6173.77 | I56: 6235.38 | J56: 6276.77 | K56: 6194 | L56: 6091 | M56: 4.16142
A57: 47 | B57: BAJAJHLDNG | C57: 2470.6 | D57: 2475.28 | E57: 2452.27 | F57: 2433.93 | G57: 2410.92 | H57: 2493.62 | I57: 2516.63 | J57: 2534.97 | K57: 2498.3 | L57: 2456.95 | M57: 0.1706
A58: 48 | B58: BAJFINANCE | C58: 3440.7 | D58: 3478.58 | E58: 3382.12 | F58: 3323.53 | G58: 3227.07 | H58: 3537.17 | I58: 3633.63 | J58: 3692.22 | K58: 3575.05 | L58: 3420 | M58: 45.31611
A59: 49 | B59: BALKRISIND | C59: 1370.75 | D59: 1351.13 | E59: 1323.82 | F59: 1276.88 | G59: 1249.57 | H59: 1398.07 | I59: 1425.38 | J59: 1472.32 | K59: 1378.45 | L59: 1304.2 | M59: 13.1753
A60: 50 | B60: BALMLAWRIE | C60: 120.4 | D60: 120.48 | E60: 119.17 | F60: 117.93 | G60: 116.62 | H60: 121.72 | I60: 123.03 | J60: 124.27 | K60: 121.8 | L60: 119.25 | M60: 6.02538
A61: 51 | B61: BALRAMCHIN | C61: 150.35 | D61: 150.68 | E61: 147.87 | F61: 145.38 | G61: 142.57 | H61: 153.17 | I61: 155.98 | J61: 158.47 | K61: 153.5 | L61: 148.2 | M61: 14.45486
A62: 52 | B62: BANDHANBNK | C62: 301.4 | D62: 305.80 | E62: 293.20 | F62: 285.00 | G62: 272.40 | H62: 314.00 | I62: 326.60 | J62: 334.80 | K62: 318.4 | L62: 297.6 | M62: 143.94768
A63: 53 | B63: BANKBARODA | C63: 46.15 | D63: 46.27 | E63: 45.88 | F63: 45.62 | G63: 45.23 | H63: 46.53 | I63: 46.92 | J63: 47.18 | K63: 46.65 | L63: 46 | M63: 155.48159
A64: 54 | B64: BANKINDIA | C64: 47.25 | D64: 47.42 | E64: 46.53 | F64: 45.82 | G64: 44.93 | H64: 48.13 | I64: 49.02 | J64: 49.73 | K64: 48.3 | L64: 46.7 | M64: 25.49198
A65: 55 | B65: BASF | C65: 1543.1 | D65: 1529.25 | E65: 1473.50 | F65: 1403.90 | G65: 1348.15 | H65: 1598.85 | I65: 1654.60 | J65: 1724.20 | K65: 1585 | L65: 1459.65 | M65: 5.19386
A66: 56 | B66: BATAINDIA | C66: 1330.65 | D66: 1314.50 | E66: 1286.20 | F66: 1241.75 | G66: 1213.45 | H66: 1358.95 | I66: 1387.25 | J66: 1431.70 | K66: 1342.8 | L66: 1270.05 | M66: 12.3951
A67: 57 | B67: BAYERCROP | C67: 6065.4 | D67: 6038.78 | E67: 5977.57 | F67: 5889.73 | G67: 5828.52 | H67: 6126.62 | I67: 6187.83 | J67: 6275.67 | K67: 6100 | L67: 5950.95 | M67: 0.74939
A68: 58 | B68: BBTC | C68: 1397.9 | D68: 1398.65 | E68: 1371.65 | F68: 1345.40 | G68: 1318.40 | H68: 1424.90 | I68: 1451.90 | J68: 1478.15 | K68: 1425.65 | L68: 1372.4 | M68: 1.87087
A69: 59 | B69: BDL | C69: 314.85 | D69: 316.47 | E69: 309.93 | F69: 305.02 | G69: 298.48 | H69: 321.38 | I69: 327.92 | J69: 332.83 | K69: 323 | L69: 311.55 | M69: 10.73305
A70: 60 | B70: BEL | C70: 107.05 | D70: 107.03 | E70: 104.42 | F70: 101.78 | G70: 99.17 | H70: 109.67 | I70: 112.28 | J70: 114.92 | K70: 109.65 | L70: 104.4 | M70: 178.50819
A71: 61 | B71: BEML | C71: 632.05 | D71: 637.25 | E71: 621.80 | F71: 611.55 | G71: 596.10 | H71: 647.50 | I71: 662.95 | J71: 673.20 | K71: 652.7 | L71: 627 | M71: 5.99028
A72: 62 | B72: BERGEPAINT | C72: 577.85 | D72: 575.65 | E72: 568.20 | F72: 558.55 | G72: 551.10 | H72: 585.30 | I72: 592.75 | J72: 602.40 | K72: 583.1 | L72: 566 | M72: 18.43031
A73: 63 | B73: BHARATFORG | C73: 475.6 | D73: 474.15 | E73: 466.45 | F73: 457.30 | G73: 449.60 | H73: 483.30 | I73: 491.00 | J73: 500.15 | K73: 481.85 | L73: 465 | M73: 41.73115
A74: 64 | B74: BHARATRAS | C74: 9479.6 | D74: 9480.92 | E74: 9387.63 | F74: 9295.67 | G74: 9202.38 | H74: 9572.88 | I74: 9666.17 | J74: 9758.13 | K74: 9574.2 | L74: 9388.95 | M74: 0.05652
A75: 65 | B75: BHARTIARTL | C75: 474.1 | D75: 479.88 | E75: 462.52 | F75: 450.93 | G75: 433.57 | H75: 491.47 | I75: 508.83 | J75: 520.42 | K75: 497.25 | L75: 468.3 | M75: 520.56004
A76: 66 | B76: BHEL | C76: 36.25 | D76: 36.57 | E76: 35.68 | F76: 35.12 | G76: 34.23 | H76: 37.13 | I76: 38.02 | J76: 38.58 | K76: 37.45 | L76: 36 | M76: 377.83076
A77: 67 | B77: BIOCON | C77: 430 | D77: 432.12 | E77: 424.23 | F77: 418.47 | G77: 410.58 | H77: 437.88 | I77: 445.77 | J77: 451.53 | K77: 440 | L77: 426.35 | M77: 29.12856
A78: 68 | B78: BIRLACORPN | C78: 671.6 | D78: 654.27 | E78: 626.48 | F78: 581.37 | G78: 553.58 | H78: 699.38 | I78: 727.17 | J78: 772.28 | K78: 682.05 | L78: 609.15 | M78: 8.66004
A79: 69 | B79: BLISSGVS | C79: 153.9 | D79: 153.88 | E79: 151.62 | F79: 149.33 | G79: 147.07 | H79: 156.17 | I79: 158.43 | J79: 160.72 | K79: 156.15 | L79: 151.6 | M79: 8.23554
A80: 70 | B80: BLUEDART | C80: 3000.95 | D80: 2973.18 | E80: 2907.77 | F80: 2814.58 | G80: 2749.17 | H80: 3066.37 | I80: 3131.78 | J80: 3224.97 | K80: 3038.6 | L80: 2880 | M80: 1.59907
A81: 71 | B81: BLUESTARCO | C81: 664.45 | D81: 662.45 | E81: 614.90 | F81: 565.35 | G81: 517.80 | H81: 712.00 | I81: 759.55 | J81: 809.10 | K81: 710 | L81: 612.9 | M81: 7.64383
A82: 72 | B82: BOMDYEING | C82: 67.5 | D82: 67.20 | E82: 65.90 | F82: 64.30 | G82: 63.00 | H82: 68.80 | I82: 70.10 | J82: 71.70 | K82: 68.5 | L82: 65.6 | M82: 22.77173
A83: 73 | B83: BOSCHLTD | C83: 12853.55 | D83: 12970.47 | E83: 12642.93 | F83: 12432.32 | G83: 12104.78 | H83: 13181.08 | I83: 13508.62 | J83: 13719.23 | K83: 13298 | L83: 12759.85 | M83: 0.76633
A84: 74 | B84: BPCL | C84: 417.15 | D84: 420.27 | E84: 411.03 | F84: 404.92 | G84: 395.68 | H84: 426.38 | I84: 435.62 | J84: 441.73 | K84: 429.5 | L84: 414.15 | M84: 60.25431
A85: 75 | B85: BRIGADE | C85: 173.2 | D85: 170.22 | E85: 165.63 | F85: 158.07 | G85: 153.48 | H85: 177.78 | I85: 182.37 | J85: 189.93 | K85: 174.8 | L85: 162.65 | M85: 4.60074
A86: 76 | B86: BRITANNIA | C86: 3719.5 | D86: 3742.17 | E86: 3688.33 | F86: 3657.17 | G86: 3603.33 | H86: 3773.33 | I86: 3827.17 | J86: 3858.33 | K86: 3796 | L86: 3711 | M86: 3.97741
A87: 77 | B87: BSE | C87: 553.85 | D87: 547.75 | E87: 537.10 | F87: 520.35 | G87: 509.70 | H87: 564.50 | I87: 575.15 | J87: 591.90 | K87: 558.4 | L87: 531 | M87: 9.7072
A88: 78 | B88: BSOFT | C88: 182.7 | D88: 178.63 | E88: 169.62 | F88: 156.53 | G88: 147.52 | H88: 191.72 | I88: 200.73 | J88: 213.82 | K88: 187.65 | L88: 165.55 | M88: 59.22407
A89: 79 | B89: CADILAHC | C89: 368.55 | D89: 369.08 | E89: 364.97 | F89: 361.38 | G89: 357.27 | H89: 372.67 | I89: 376.78 | J89: 380.37 | K89: 373.2 | L89: 365.5 | M89: 28.43408
A90: 80 | B90: CANBK | C90: 100.4 | D90: 101.05 | E90: 99.20 | F90: 98.00 | G90: 96.15 | H90: 102.25 | I90: 104.10 | J90: 105.30 | K90: 102.9 | L90: 99.85 | M90: 54.04409
A91: 81 | B91: CANFINHOME | C91: 425.75 | D91: 422.05 | E91: 404.50 | F91: 383.25 | G91: 365.70 | H91: 443.30 | I91: 460.85 | J91: 482.10 | K91: 439.6 | L91: 400.8 | M91: 24.24262
A92: 82 | B92: CAPLIPOINT | C92: 553.15 | D92: 553.37 | E92: 540.73 | F92: 528.32 | G92: 515.68 | H92: 565.78 | I92: 578.42 | J92: 590.83 | K92: 566 | L92: 540.95 | M92: 4.62597
A93: 83 | B93: CARBORUNIV | C93: 273.35 | D93: 268.42 | E93: 262.03 | F93: 250.72 | G93: 244.33 | H93: 279.73 | I93: 286.12 | J93: 297.43 | K93: 274.8 | L93: 257.1 | M93: 5.58461
A94: 84 | B94: CARERATING | C94: 400.65 | D94: 402.40 | E94: 394.25 | F94: 387.85 | G94: 379.70 | H94: 408.80 | I94: 416.95 | J94: 423.35 | K94: 410.55 | L94: 396 | M94: 0.80171
A95: 85 | B95: CASTROLIND | C95: 120.2 | D95: 121.42 | E95: 118.33 | F95: 116.47 | G95: 113.38 | H95: 123.28 | I95: 126.37 | J95: 128.23 | K95: 124.5 | L95: 119.55 | M95: 14.10543
A96: 86 | B96: CCL | C96: 272.25 | D96: 265.52 | E96: 255.78 | F96: 239.32 | G96: 229.58 | H96: 281.98 | I96: 291.72 | J96: 308.18 | K96: 275.25 | L96: 249.05 | M96: 4.21767
A97: 87 | B97: CDSL | C97: 472.3 | D97: 466.08 | E97: 457.22 | F97: 442.13 | G97: 433.27 | H97: 481.17 | I97: 490.03 | J97: 505.12 | K97: 474.95 | L97: 451 | M97: 27.4852
A98: 88 | B98: CEATLTD | C98: 927.65 | D98: 924.85 | E98: 899.80 | F98: 871.95 | G98: 846.90 | H98: 952.70 | I98: 977.75 | J98: 1005.60 | K98: 949.9 | L98: 897 | M98: 6.11457
A99: 89 | B99: CENTRALBK | C99: 16.4 | D99: 16.38 | E99: 16.02 | F99: 15.63 | G99: 15.27 | H99: 16.77 | I99: 17.13 | J99: 17.52 | K99: 16.75 | L99: 16 | M99: 8.96239
A100: 90 | B100: CENTURYPLY | C100: 180.7 | D100: 177.08 | E100: 168.17 | F100: 155.63 | G100: 146.72 | H100: 189.62 | I100: 198.53 | J100: 211.07 | K100: 186 | L100: 164.55 | M100: 20.32881
A101: 91 | B101: CENTURYTEX | C101: 376 | D101: 365.75 | E101: 350.60 | F101: 325.20 | G101: 310.05 | H101: 391.15 | I101: 406.30 | J101: 431.70 | K101: 380.9 | L101: 340.35 | M101: 36.66433
A102: 92 | B102: CERA | C102: 2573.5 | D102: 2542.50 | E102: 2486.00 | F102: 2398.50 | G102: 2342.00 | H102: 2630.00 | I102: 2686.50 | J102: 2774.00 | K102: 2599 | L102: 2455 | M102: 0.10396
A103: 93 | B103: CESC | C103: 652.7 | D103: 646.40 | E103: 636.80 | F103: 620.90 | G103: 611.30 | H103: 662.30 | I103: 671.90 | J103: 687.80 | K103: 656 | L103: 630.5 | M103: 5.004
A104: 94 | B104: CGCL | C104: 223.8 | D104: 221.97 | E104: 218.48 | F104: 213.17 | G104: 209.68 | H104: 227.28 | I104: 230.77 | J104: 236.08 | K104: 225.45 | L104: 216.65 | M104: 0.79891
A105: 95 | B105: CHAMBLFERT | C105: 148.55 | D105: 147.63 | E105: 145.92 | F105: 143.28 | G105: 141.57 | H105: 150.27 | I105: 151.98 | J105: 154.62 | K105: 149.35 | L105: 145 | M105: 10.26972
A106: 96 | B106: CHENNPETRO | C106: 79.05 | D106: 78.98 | E106: 77.67 | F106: 76.28 | G106: 74.97 | H106: 80.37 | I106: 81.68 | J106: 83.07 | K106: 80.3 | L106: 77.6 | M106: 7.38947
A107: 97 | B107: CHOLAFIN | C107: 232.1 | D107: 231.60 | E107: 227.00 | F107: 221.90 | G107: 217.30 | H107: 236.70 | I107: 241.30 | J107: 246.40 | K107: 236.2 | L107: 226.5 | M107: 103.05644
A108: 98 | B108: CHOLAHLDNG | C108: 420.85 | D108: 425.40 | E108: 410.80 | F108: 400.75 | G108: 386.15 | H108: 435.45 | I108: 450.05 | J108: 460.10 | K108: 440 | L108: 415.35 | M108: 0.43817
A109: 99 | B109: CIPLA | C109: 721.6 | D109: 723.20 | E109: 716.15 | F109: 710.70 | G109: 703.65 | H109: 728.65 | I109: 735.70 | J109: 741.15 | K109: 730.25 | L109: 717.75 | M109: 31.04687
A110: 100 | B110: COALINDIA | C110: 124.95 | D110: 125.30 | E110: 123.75 | F110: 122.55 | G110: 121.00 | H110: 126.50 | I110: 128.05 | J110: 129.25 | K110: 126.85 | L110: 124.1 | M110: 123.97189
A111: 101 | B111: COCHINSHIP | C111: 336.05 | D111: 335.95 | E111: 332.20 | F111: 328.35 | G111: 324.60 | H111: 339.80 | I111: 343.55 | J111: 347.40 | K111: 339.7 | L111: 332.1 | M111: 2.59465
A112: 102 | B112: COFORGE | C112: 2154.7 | D112: 2135.88 | E112: 2081.62 | F112: 2008.53 | G112: 1954.27 | H112: 2208.97 | I112: 2263.23 | J112: 2336.32 | K112: 2190.15 | L112: 2062.8 | M112: 10.91182
A113: 103 | B113: COLPAL | C113: 1416.6 | D113: 1415.18 | E113: 1402.47 | F113: 1388.33 | G113: 1375.62 | H113: 1429.32 | I113: 1442.03 | J113: 1456.17 | K113: 1427.9 | L113: 1401.05 | M113: 7.55429
A114: 104 | B114: CONCOR | C114: 384.2 | D114: 384.08 | E114: 377.17 | F114: 370.13 | G114: 363.22 | H114: 391.12 | I114: 398.03 | J114: 405.07 | K114: 391 | L114: 377.05 | M114: 23.24824
A115: 105 | B115: COROMANDEL | C115: 790.4 | D115: 780.15 | E115: 762.30 | F115: 734.20 | G115: 716.35 | H115: 808.25 | I115: 826.10 | J115: 854.20 | K115: 798 | L115: 752.05 | M115: 7.48822
A116: 106 | B116: CREDITACC | C116: 719.35 | D116: 717.27 | E116: 711.03 | F116: 702.72 | G116: 696.48 | H116: 725.58 | I116: 731.82 | J116: 740.13 | K116: 723.5 | L116: 708.95 | M116: 1.14647
A117: 107 | B117: CRISIL | C117: 1773.4 | D117: 1797.38 | E117: 1746.02 | F117: 1718.63 | G117: 1667.27 | H117: 1824.77 | I117: 1876.13 | J117: 1903.52 | K117: 1848.75 | L117: 1770 | M117: 0.53613
A118: 108 | B118: CROMPTON | C118: 267.9 | D118: 267.90 | E118: 257.00 | F118: 246.10 | G118: 235.20 | H118: 278.80 | I118: 289.70 | J118: 300.60 | K118: 278.8 | L118: 257 | M118: 22.12457
A119: 109 | B119: CSBBANK | C119: 229.15 | D119: 230.02 | E119: 226.13 | F119: 223.12 | G119: 219.23 | H119: 233.03 | I119: 236.92 | J119: 239.93 | K119: 233.9 | L119: 227 | M119: 1.26114
A120: 110 | B120: CUB | C120: 143.65 | D120: 143.38 | E120: 136.27 | F120: 128.88 | G120: 121.77 | H120: 150.77 | I120: 157.88 | J120: 165.27 | K120: 150.5 | L120: 136 | M120: 75.98796
A121: 111 | B121: CUMMINSIND | C121: 471.55 | D121: 471.80 | E121: 455.85 | F121: 440.15 | G121: 424.20 | H121: 487.50 | I121: 503.45 | J121: 519.15 | K121: 487.75 | L121: 456.1 | M121: 32.58132
A122: 112 | B122: CYIENT | C122: 403.7 | D122: 398.62 | E122: 386.23 | F122: 368.77 | G122: 356.38 | H122: 416.08 | I122: 428.47 | J122: 445.93 | K122: 411 | L122: 381.15 | M122: 13.78358
A123: 113 | B123: DABUR | C123: 504.2 | D123: 505.72 | E123: 496.73 | F123: 489.27 | G123: 480.28 | H123: 513.18 | I123: 522.17 | J123: 529.63 | K123: 514.7 | L123: 498.25 | M123: 42.33224
A124: 114 | B124: DALBHARAT | C124: 731.45 | D124: 729.50 | E124: 714.20 | F124: 696.95 | G124: 681.65 | H124: 746.75 | I124: 762.05 | J124: 779.30 | K124: 744.8 | L124: 712.25 | M124: 1.49263
A125: 115 | B125: DBCORP | C125: 77.95 | D125: 77.22 | E125: 76.13 | F125: 74.32 | G125: 73.23 | H125: 79.03 | I125: 80.12 | J125: 81.93 | K125: 78.3 | L125: 75.4 | M125: 1.14847
A126: 116 | B126: DBL | C126: 378.8 | D126: 378.37 | E126: 371.73 | F126: 364.67 | G126: 358.03 | H126: 385.43 | I126: 392.07 | J126: 399.13 | K126: 385 | L126: 371.3 | M126: 1.92439
A127: 117 | B127: DCAL | C127: 169.15 | D127: 166.47 | E127: 163.78 | F127: 158.42 | G127: 155.73 | H127: 171.83 | I127: 174.52 | J127: 179.88 | K127: 169.15 | L127: 161.1 | M127: 3.15756
A128: 118 | B128: DCBBANK | C128: 90.6 | D128: 89.78 | E128: 87.82 | F128: 85.03 | G128: 83.07 | H128: 92.57 | I128: 94.53 | J128: 97.32 | K128: 91.75 | L128: 87 | M128: 37.782
A129: 119 | B129: DCMSHRIRAM | C129: 357 | D129: 355.23 | E129: 348.82 | F129: 340.63 | G129: 334.22 | H129: 363.42 | I129: 369.83 | J129: 378.02 | K129: 361.65 | L129: 347.05 | M129: 0.49305
A130: 120 | B130: DEEPAKNTR | C130: 795.6 | D130: 783.67 | E130: 765.53 | F130: 735.47 | G130: 717.33 | H130: 813.73 | I130: 831.87 | J130: 861.93 | K130: 801.8 | L130: 753.6 | M130: 29.88274
A131: 121 | B131: DELTACORP | C131: 110.5 | D131: 109.80 | E131: 107.70 | F131: 104.90 | G131: 102.80 | H131: 112.60 | I131: 114.70 | J131: 117.50 | K131: 111.9 | L131: 107 | M131: 11.96007
A132: 122 | B132: DHANUKA | C132: 771.95 | D132: 766.83 | E132: 748.92 | F132: 725.88 | G132: 707.97 | H132: 789.87 | I132: 807.78 | J132: 830.82 | K132: 784.75 | L132: 743.8 | M132: 1.1198
A133: 123 | B133: DISHTV | C133: 15 | D133: 14.87 | E133: 14.73 | F133: 14.47 | G133: 14.33 | H133: 15.13 | I133: 15.27 | J133: 15.53 | K133: 15 | L133: 14.6 | M133: 64.50673
A134: 124 | B134: DIVISLAB | C134: 3164.8 | D134: 3175.38 | E134: 3123.12 | F134: 3081.43 | G134: 3029.17 | H134: 3217.07 | I134: 3269.33 | J134: 3311.02 | K134: 3227.65 | L134: 3133.7 | M134: 7.73894
A135: 125 | B135: DIXON | C135: 9822.9 | D135: 9812.47 | E135: 9335.43 | F135: 8847.97 | G135: 8370.93 | H135: 10299.93 | I135: 10776.97 | J135: 11264.43 | K135: 10289.5 | L135: 9325 | M135: 1.97781
A136: 126 | B136: DLF | C136: 155.7 | D136: 156.50 | E136: 153.70 | F136: 151.70 | G136: 148.90 | H136: 158.50 | I136: 161.30 | J136: 163.30 | K136: 159.3 | L136: 154.5 | M136: 105.67394
A137: 127 | B137: DMART | C137: 2162.7 | D137: 2190.57 | E137: 2122.18 | F137: 2081.67 | G137: 2013.28 | H137: 2231.08 | I137: 2299.47 | J137: 2339.98 | K137: 2258.95 | L137: 2150.05 | M137: 9.02088
A138: 128 | B138: DRREDDY | C138: 4364.1 | D138: 4374.58 | E138: 4325.52 | F138: 4286.93 | G138: 4237.87 | H138: 4413.17 | I138: 4462.23 | J138: 4500.82 | K138: 4423.65 | L138: 4336 | M138: 5.84911
A139: 129 | B139: ECLERX | C139: 770.85 | D139: 762.48 | E139: 748.37 | F139: 725.88 | G139: 711.77 | H139: 784.97 | I139: 799.08 | J139: 821.57 | K139: 776.6 | L139: 740 | M139: 1.64924
A140: 130 | B140: EDELWEISS | C140: 74.05 | D140: 74.93 | E140: 72.67 | F140: 71.28 | G140: 69.02 | H140: 76.32 | I140: 78.58 | J140: 79.97 | K140: 77.2 | L140: 73.55 | M140: 74.16528
A141: 131 | B141: EICHERMOT | C141: 2159.4 | D141: 2168.57 | E141: 2139.13 | F141: 2118.87 | G141: 2089.43 | H141: 2188.83 | I141: 2218.27 | J141: 2238.53 | K141: 2198 | L141: 2148.3 | M141: 11.80377
A142: 132 | B142: EIDPARRY | C142: 310.2 | D142: 305.92 | E142: 299.33 | F142: 288.47 | G142: 281.88 | H142: 316.78 | I142: 323.37 | J142: 334.23 | K142: 312.5 | L142: 295.05 | M142: 11.58464
A143: 133 | B143: EIHOTEL | C143: 88.95 | D143: 88.20 | E143: 86.05 | F143: 83.15 | G143: 81.00 | H143: 91.10 | I143: 93.25 | J143: 96.15 | K143: 90.35 | L143: 85.3 | M143: 18.4926
A144: 134 | B144: ELGIEQUIP | C144: 234.6 | D144: 232.90 | E144: 228.30 | F144: 222.00 | G144: 217.40 | H144: 239.20 | I144: 243.80 | J144: 250.10 | K144: 237.5 | L144: 226.6 | M144: 0.80776
A145: 135 | B145: EMAMILTD | C145: 395.15 | D145: 392.43 | E145: 383.97 | F145: 372.78 | G145: 364.32 | H145: 403.62 | I145: 412.08 | J145: 423.27 | K145: 400.9 | L145: 381.25 | M145: 6.22702
A146: 136 | B146: ENDURANCE | C146: 1146.4 | D146: 1122.15 | E146: 1094.30 | F146: 1042.20 | G146: 1014.35 | H146: 1174.25 | I146: 1202.10 | J146: 1254.20 | K146: 1150 | L146: 1070.05 | M146: 1.21739
A147: 137 | B147: ENGINERSIN | C147: 69.65 | D147: 69.02 | E147: 65.73 | F147: 61.82 | G147: 58.53 | H147: 72.93 | I147: 76.22 | J147: 80.13 | K147: 72.3 | L147: 65.1 | M147: 166.93201
A148: 138 | B148: EQUITAS | C148: 55.45 | D148: 55.40 | E148: 53.30 | F148: 51.15 | G148: 49.05 | H148: 57.55 | I148: 59.65 | J148: 61.80 | K148: 57.5 | L148: 53.25 | M148: 121.68723
A149: 139 | B149: ERIS | C149: 518 | D149: 514.28 | E149: 498.42 | F149: 478.83 | G149: 462.97 | H149: 533.87 | I149: 549.73 | J149: 569.32 | K149: 530.15 | L149: 494.7 | M149: 2.79842
A150: 140 | B150: ESABINDIA | C150: 1408 | D150: 1395.08 | E150: 1361.97 | F150: 1315.93 | G150: 1282.82 | H150: 1441.12 | I150: 1474.23 | J150: 1520.27 | K150: 1428.2 | L150: 1349.05 | M150: 0.07429
A151: 141 | B151: ESCORTS | C151: 1246.5 | D151: 1240.00 | E151: 1204.00 | F151: 1161.50 | G151: 1125.50 | H151: 1282.50 | I151: 1318.50 | J151: 1361.00 | K151: 1276 | L151: 1197.5 | M151: 52.97033
A152: 142 | B152: ESSELPACK | C152: 299.55 | D152: 295.98 | E152: 287.57 | F152: 275.58 | G152: 267.17 | H152: 307.97 | I152: 316.38 | J152: 328.37 | K152: 304.4 | L152: 284 | M152: 5.56505
A153: 143 | B153: EXIDEIND | C153: 160.25 | D153: 159.68 | E153: 156.97 | F153: 153.68 | G153: 150.97 | H153: 162.97 | I153: 165.68 | J153: 168.97 | K153: 162.4 | L153: 156.4 | M153: 51.89534
A154: 144 | B154: FCONSUMER | C154: 9.9 | D154: 10.03 | E154: 9.72 | F154: 9.53 | G154: 9.22 | H154: 10.22 | I154: 10.53 | J154: 10.72 | K154: 10.35 | L154: 9.85 | M154: 172.555
A155: 145 | B155: FDC | C155: 345.1 | D155: 339.93 | E155: 332.87 | F155: 320.63 | G155: 313.57 | H155: 352.17 | I155: 359.23 | J155: 371.47 | K155: 347 | L155: 327.7 | M155: 8.19444
A156: 146 | B156: FEDERALBNK | C156: 53.35 | D156: 53.55 | E156: 52.10 | F156: 50.85 | G156: 49.40 | H156: 54.80 | I156: 56.25 | J156: 57.50 | K156: 55 | L156: 52.3 | M156: 482.7763
A157: 147 | B157: FINCABLES | C157: 292.6 | D157: 292.82 | E157: 287.78 | F157: 282.97 | G157: 277.93 | H157: 297.63 | I157: 302.67 | J157: 307.48 | K157: 297.85 | L157: 288 | M157: 3.63932
A158: 148 | B158: FINEORG | C158: 3145.2 | D158: 3097.22 | E158: 2934.43 | F158: 2723.67 | G158: 2560.88 | H158: 3307.98 | I158: 3470.77 | J158: 3681.53 | K158: 3260 | L158: 2886.45 | M158: 2.38308
A159: 149 | B159: FINPIPE | C159: 545.2 | D159: 535.08 | E159: 521.27 | F159: 497.33 | G159: 483.52 | H159: 559.02 | I159: 572.83 | J159: 596.77 | K159: 548.9 | L159: 511.15 | M159: 1.66948
A160: 150 | B160: FLUOROCHEM | C160: 530.2 | D160: 534.92 | E160: 520.83 | F160: 511.47 | G160: 497.38 | H160: 544.28 | I160: 558.37 | J160: 567.73 | K160: 549 | L160: 525.55 | M160: 1.73699
A161: 151 | B161: FORTIS | C161: 132.9 | D161: 133.58 | E161: 130.92 | F161: 128.93 | G161: 126.27 | H161: 135.57 | I161: 138.23 | J161: 140.22 | K161: 136.25 | L161: 131.6 | M161: 8.43084
A162: 152 | B162: FRETAIL | C162: 101.1 | D162: 103.22 | E162: 98.98 | F162: 96.87 | G162: 92.63 | H162: 105.33 | I162: 109.57 | J162: 111.68 | K162: 107.45 | L162: 101.1 | M162: 93.6406
A163: 153 | B163: FSL | C163: 69.15 | D163: 68.08 | E163: 65.67 | F163: 62.18 | G163: 59.77 | H163: 71.57 | I163: 73.98 | J163: 77.47 | K163: 70.5 | L163: 64.6 | M163: 106.82234
A164: 154 | B164: GAIL | C164: 91.95 | D164: 92.13 | E164: 90.62 | F164: 89.28 | G164: 87.77 | H164: 93.47 | I164: 94.98 | J164: 96.32 | K164: 93.65 | L164: 90.8 | M164: 163.0072
A165: 155 | B165: GALAXYSURF | C165: 1910.35 | D165: 1925.08 | E165: 1810.32 | F165: 1710.28 | G165: 1595.52 | H165: 2025.12 | I165: 2139.88 | J165: 2239.92 | K165: 2039.85 | L165: 1825.05 | M165: 1.66848
A166: 156 | B166: GARFIBRES | C166: 2013.85 | D166: 1990.00 | E166: 1935.25 | F166: 1856.65 | G166: 1801.90 | H166: 2068.60 | I166: 2123.35 | J166: 2201.95 | K166: 2044.75 | L166: 1911.4 | M166: 0.56996
A167: 157 | B167: GEPIL | C167: 483.45 | D167: 478.73 | E167: 467.47 | F167: 451.48 | G167: 440.22 | H167: 494.72 | I167: 505.98 | J167: 521.97 | K167: 490 | L167: 462.75 | M167: 0.69015
A168: 158 | B168: GESHIP | C168: 263.5 | D168: 263.88 | E168: 258.67 | F168: 253.83 | G168: 248.62 | H168: 268.72 | I168: 273.93 | J168: 278.77 | K168: 269.1 | L168: 259.05 | M168: 3.64046
A169: 159 | B169: GET&D | C169: 102.15 | D169: 101.77 | E169: 99.48 | F169: 96.82 | G169: 94.53 | H169: 104.43 | I169: 106.72 | J169: 109.38 | K169: 104.05 | L169: 99.1 | M169: 0.57862
A170: 160 | B170: GHCL | C170: 165.85 | D170: 165.93 | E170: 162.17 | F170: 158.48 | G170: 154.72 | H170: 169.62 | I170: 173.38 | J170: 177.07 | K170: 169.7 | L170: 162.25 | M170: 3.07682
A171: 161 | B171: GICRE | C171: 134.05 | D171: 134.77 | E171: 132.68 | F171: 131.32 | G171: 129.23 | H171: 136.13 | I171: 138.22 | J171: 139.58 | K171: 136.85 | L171: 133.4 | M171: 3.26813
A172: 162 | B172: GILLETTE | C172: 5608.85 | D172: 5642.95 | E172: 5551.90 | F172: 5494.95 | G172: 5403.90 | H172: 5699.90 | I172: 5790.95 | J172: 5847.90 | K172: 5734 | L172: 5586 | M172: 0.12102
A173: 163 | B173: GLAXO | C173: 1728 | D173: 1723.33 | E173: 1679.67 | F173: 1631.33 | G173: 1587.67 | H173: 1771.67 | I173: 1815.33 | J173: 1863.67 | K173: 1767 | L173: 1675 | M173: 3.47359
A174: 164 | B174: GLENMARK | C174: 482.85 | D174: 483.68 | E174: 475.17 | F174: 467.48 | G174: 458.97 | H174: 491.37 | I174: 499.88 | J174: 507.57 | K174: 492.2 | L174: 476 | M174: 17.51893
A175: 165 | B175: GMDCLTD | C175: 46.55 | D175: 46.62 | E175: 45.78 | F175: 45.02 | G175: 44.18 | H175: 47.38 | I175: 48.22 | J175: 48.98 | K175: 47.45 | L175: 45.85 | M175: 8.26995
A176: 166 | B176: GMMPFAUDLR | C176: 5874.4 | D176: 5791.43 | E176: 5682.97 | F176: 5491.53 | G176: 5383.07 | H176: 5982.87 | I176: 6091.33 | J176: 6282.77 | K176: 5899.9 | L176: 5600 | M176: 0.58103
A177: 167 | B177: GMRINFRA | C177: 23.7 | D177: 23.82 | E177: 23.38 | F177: 23.07 | G177: 22.63 | H177: 24.13 | I177: 24.57 | J177: 24.88 | K177: 24.25 | L177: 23.5 | M177: 137.99568
A178: 168 | B178: GNFC | C178: 214.25 | D178: 213.17 | E178: 209.23 | F178: 204.22 | G178: 200.28 | H178: 218.18 | I178: 222.12 | J178: 227.13 | K178: 217.1 | L178: 208.15 | M178: 10.68987
A179: 169 | B179: GODFRYPHLP | C179: 940.2 | D179: 937.47 | E179: 912.93 | F179: 885.67 | G179: 861.13 | H179: 964.73 | I179: 989.27 | J179: 1016.53 | K179: 962 | L179: 910.2 | M179: 2.0919
A180: 170 | B180: GODREJAGRO | C180: 498.75 | D180: 500.43 | E180: 489.32 | F180: 479.88 | G180: 468.77 | H180: 509.87 | I180: 520.98 | J180: 530.42 | K180: 511.55 | L180: 491 | M180: 2.37555
A181: 171 | B181: GODREJCP | C181: 691.55 | D181: 688.90 | E181: 680.10 | F181: 668.65 | G181: 659.85 | H181: 700.35 | I181: 709.15 | J181: 720.60 | K181: 697.7 | L181: 677.45 | M181: 11.2141
A182: 172 | B182: GODREJIND | C182: 419.6 | D182: 419.20 | E182: 409.40 | F182: 399.20 | G182: 389.40 | H182: 429.40 | I182: 439.20 | J182: 449.40 | K182: 429 | L182: 409 | M182: 1.51047
A183: 173 | B183: GODREJPROP | C183: 905.7 | D183: 901.87 | E183: 883.83 | F183: 861.97 | G183: 843.93 | H183: 923.73 | I183: 941.77 | J183: 963.63 | K183: 919.9 | L183: 880 | M183: 8.46758
A184: 174 | B184: GPPL | C184: 83.3 | D184: 82.53 | E184: 81.57 | F184: 79.83 | G184: 78.87 | H184: 84.27 | I184: 85.23 | J184: 86.97 | K184: 83.5 | L184: 80.8 | M184: 2.00627
A185: 175 | B185: GRANULES | C185: 371.4 | D185: 366.00 | E185: 357.00 | F185: 342.60 | G185: 333.60 | H185: 380.40 | I185: 389.40 | J185: 403.80 | K185: 375 | L185: 351.6 | M185: 55.9812
A186: 176 | B186: GRAPHITE | C186: 186.85 | D186: 188.45 | E186: 184.10 | F186: 181.35 | G186: 177.00 | H186: 191.20 | I186: 195.55 | J186: 198.30 | K186: 192.8 | L186: 185.7 | M186: 5.61018
A187: 177 | B187: GRASIM | C187: 707 | D187: 715.32 | E187: 694.68 | F187: 682.37 | G187: 661.73 | H187: 727.63 | I187: 748.27 | J187: 760.58 | K187: 735.95 | L187: 703 | M187: 30.44866
A188: 178 | B188: GREAVESCOT | C188: 78 | D188: 78.38 | E188: 76.77 | F188: 75.53 | G188: 73.92 | H188: 79.62 | I188: 81.23 | J188: 82.47 | K188: 80 | L188: 77.15 | M188: 6.17757
A189: 179 | B189: GRINDWELL | C189: 547.95 | D189: 549.32 | E189: 528.63 | F189: 509.32 | G189: 488.63 | H189: 568.63 | I189: 589.32 | J189: 608.63 | K189: 570 | L189: 530 | M189: 0.7127
A190: 180 | B190: GRSE | C190: 189.05 | D190: 187.35 | E190: 183.10 | F190: 177.15 | G190: 172.90 | H190: 193.30 | I190: 197.55 | J190: 203.50 | K190: 191.6 | L190: 181.4 | M190: 2.73345
A191: 181 | B191: GSFC | C191: 63.25 | D191: 62.60 | E191: 60.80 | F191: 58.35 | G191: 56.55 | H191: 65.05 | I191: 66.85 | J191: 69.30 | K191: 64.4 | L191: 60.15 | M191: 6.1311
A192: 182 | B192: GSPL | C192: 214.65 | D192: 211.28 | E192: 205.67 | F192: 196.68 | G192: 191.07 | H192: 220.27 | I192: 225.88 | J192: 234.87 | K192: 216.9 | L192: 202.3 | M192: 21.78305
A193: 183 | B193: GUJALKALI | C193: 346.2 | D193: 346.15 | E193: 342.30 | F193: 338.40 | G193: 334.55 | H193: 350.05 | I193: 353.90 | J193: 357.80 | K193: 350 | L193: 342.25 | M193: 1.28661
A194: 184 | B194: GUJGASLTD | C194: 299 | D194: 300.33 | E194: 295.77 | F194: 292.53 | G194: 287.97 | H194: 303.57 | I194: 308.13 | J194: 311.37 | K194: 304.9 | L194: 297.1 | M194: 5.64339
A195: 185 | B195: GULFOILLUB | C195: 655.5 | D195: 652.18 | E195: 633.37 | F195: 611.23 | G195: 592.42 | H195: 674.32 | I195: 693.13 | J195: 715.27 | K195: 671 | L195: 630.05 | M195: 0.23884
A196: 186 | B196: HAL | C196: 834.1 | D196: 843.27 | E196: 821.83 | F196: 809.57 | G196: 788.13 | H196: 855.53 | I196: 876.97 | J196: 889.23 | K196: 864.7 | L196: 831 | M196: 8.53007
A197: 187 | B197: HATHWAY | C197: 34 | D197: 34.03 | E197: 33.07 | F197: 32.13 | G197: 31.17 | H197: 34.97 | I197: 35.93 | J197: 36.87 | K197: 35 | L197: 33.1 | M197: 1.97077
A198: 188 | B198: HATSUN | C198: 841.45 | D198: 845.38 | E198: 818.77 | F198: 796.08 | G198: 769.47 | H198: 868.07 | I198: 894.68 | J198: 917.37 | K198: 872 | L198: 822.7 | M198: 2.58097
A199: 189 | B199: HAVELLS | C199: 669.05 | D199: 664.35 | E199: 656.70 | F199: 644.35 | G199: 636.70 | H199: 676.70 | I199: 684.35 | J199: 696.70 | K199: 672 | L199: 652 | M199: 32.4501
A200: 190 | B200: HCLTECH | C200: 794.95 | D200: 788.07 | E200: 751.03 | F200: 707.12 | G200: 670.08 | H200: 831.98 | I200: 869.02 | J200: 912.93 | K200: 825.1 | L200: 744.15 | M200: 323.12531
A201: 191 | B201: HDFC | C201: 1738 | D201: 1754.42 | E201: 1711.98 | F201: 1685.97 | G201: 1643.53 | H201: 1780.43 | I201: 1822.87 | J201: 1848.88 | K201: 1796.85 | L201: 1728.4 | M201: 40.61493
A202: 192 | B202: HDFCAMC | C202: 2350 | D202: 2358.33 | E202: 2326.67 | F202: 2303.33 | G202: 2271.67 | H202: 2381.67 | I202: 2413.33 | J202: 2436.67 | K202: 2390 | L202: 2335 | M202: 3.32717
A203: 193 | B203: HDFCBANK | C203: 1057.95 | D203: 1068.10 | E203: 1042.20 | F203: 1026.45 | G203: 1000.55 | H203: 1083.85 | I203: 1109.75 | J203: 1125.50 | K203: 1094 | L203: 1052.35 | M203: 108.25874
A204: 194 | B204: HDFCLIFE | C204: 599.45 | D204: 601.55 | E204: 593.10 | F204: 586.75 | G204: 578.30 | H204: 607.90 | I204: 616.35 | J204: 622.70 | K204: 610 | L204: 595.2 | M204: 22.69786
A205: 195 | B205: HEG | C205: 777.45 | D205: 780.48 | E205: 763.97 | F205: 750.48 | G205: 733.97 | H205: 793.97 | I205: 810.48 | J205: 823.97 | K205: 797 | L205: 767 | M205: 4.38417
A206: 196 | B206: HEIDELBERG | C206: 183.5 | D206: 184.28 | E206: 180.57 | F206: 177.63 | G206: 173.92 | H206: 187.22 | I206: 190.93 | J206: 193.87 | K206: 188 | L206: 181.35 | M206: 5.74945
... 321 more rows

Sheet Bulk Deals
E6: Back To Main Page
A7: Subject : | B7: BULK DEAL | D7: =Main!B10 -> 2020-09-15
A9: Date | B9: Scrip code | C9: Scrip Name | D9: Client Name | E9: Buy / Sell | F9: Quantity Traded | G9: Trade Price / Wt.Avg.trade price | H9: Exchange
A10: 2020-09-14 | B10: 511463 | C10: ALEXANDER | D10: KAHAR NIKLESH KANAIYABHAI | E10: BUY | F10: 46,225 | G10: 13.79 | H10: BSE
A11: 2020-09-14 | B11: 511463 | C11: ALEXANDER | D11: KAHAR NIKLESH KANAIYABHAI | E11: SELL | F11: 44,185 | G11: 12.99 | H11: BSE
A12: 2020-09-14 | B12: 524663 | C12: BIBCL | D12: VORA PRITESH PRAVINCHANDRA | E12: BUY | F12: 285,000 | G12: 33.01 | H12: BSE
A13: 2020-09-14 | B13: 539800 | C13: CHDCHEM | D13: JAGDISH PRASAD ARYA | E13: BUY | F13: 102,990 | G13: 52.81 | H13: BSE
A14: 2020-09-14 | B14: 539800 | C14: CHDCHEM | D14: JAGDISH PRASAD ARYA | E14: SELL | F14: 84,279 | G14: 52.85 | H14: BSE
A15: 2020-09-14 | B15: 526703 | C15: ECOPLAST | D15: JAY KETAN SHROFF | E15: BUY | F15: 31,000 | G15: 81.54 | H15: BSE
A16: 2020-09-14 | B16: 526703 | C16: ECOPLAST | D16: THIA INVESTMENTS | E16: SELL | F16: 31,000 | G16: 81.5 | H16: BSE
A17: 2020-09-14 | B17: 540936 | C17: GGL | D17: PRASHANT GOVINDBHAI PARMAR | E17: SELL | F17: 39,600 | G17: 30.5 | H17: BSE
A18: 2020-09-14 | B18: 542850 | C18: GOBLIN | D18: PROFICIENT MERCHANDISE LIMITED | E18: BUY | F18: 56,000 | G18: 32.75 | H18: BSE
A19: 2020-09-14 | B19: 542850 | C19: GOBLIN | D19: YESTER INVESTMENT PRIVATE LIMITED | E19: SELL | F19: 56,000 | G19: 32.75 | H19: BSE
A20: 2020-09-14 | B20: 530663 | C20: GOYALASS | D20: MALAV RAJEN SHAH | E20: SELL | F20: 400,000 | G20: 0.81 | H20: BSE
A21: 2020-09-14 | B21: 530663 | C21: GOYALASS | D21: BINOY RAJEN SHAH | E21: SELL | F21: 400,000 | G21: 0.81 | H21: BSE
A22: 2020-09-14 | B22: 530663 | C22: GOYALASS | D22: HANSA ASHOKKUMAR JAIN | E22: SELL | F22: 250,000 | G22: 0.81 | H22: BSE
A23: 2020-09-14 | B23: 532467 | C23: HAZOOR | D23: BHUVNESHWARI VYAPAAR PVT.LTD | E23: BUY | F23: 177,391 | G23: 0.49 | H23: BSE
A24: 2020-09-14 | B24: 532467 | C24: HAZOOR | D24: EAUGU UDYOG LIMITED | E24: SELL | F24: 235,000 | G24: 0.49 | H24: BSE
A25: 2020-09-14 | B25: 543222 | C25: HIPPOCABS | D25: KAUSHIK G DESAI | E25: BUY | F25: 32,400 | G25: 76.85 | H25: BSE
A26: 2020-09-14 | B26: 539679 | C26: KAPILRAJ | D26: CHETAN KISHOR BHIMJIYANI | E26: BUY | F26: 50,000 | G26: 7.15 | H26: BSE
A27: 2020-09-14 | B27: 532067 | C27: KILPEST | D27: YUGA DOSHI | E27: BUY | F27: 45,000 | G27: 319.17 | H27: BSE
A28: 2020-09-14 | B28: 539519 | C28: MAYUKH | D28: KESAR TRACOM INDIA LLP | E28: BUY | F28: 25,000 | G28: 10.5 | H28: BSE
A29: 2020-09-14 | B29: 539519 | C29: MAYUKH | D29: SARVAJANA PROPERTIES PRIVATE LIMITED | E29: SELL | F29: 113,001 | G29: 10.5 | H29: BSE
A30: 2020-09-14 | B30: 539519 | C30: MAYUKH | D30: KETAN S MAHADDALKAR | E30: BUY | F30: 20,000 | G30: 10.5 | H30: BSE
A31: 2020-09-14 | B31: 532911 | C31: PARLEIND | D31: GLIMMER ENTERPRISE PRIVATE LIMITED | E31: SELL | F31: 84,500 | G31: 11.79 | H31: BSE
A32: 2020-09-14 | B32: 540175 | C32: REGENCY | D32: AJAY AMRUTLAL MUTHA | E32: BUY | F32: 18,980 | G32: 30.9 | H32: BSE
A33: 2020-09-14 | B33: 540175 | C33: REGENCY | D33: AJAY AMRUTLAL MUTHA | E33: SELL | F33: 18,980 | G33: 30.87 | H33: BSE
A34: 2020-09-14 | B34: 540175 | C34: REGENCY | D34: NAVEEN GUPTA | E34: BUY | F34: 26,521 | G34: 30.77 | H34: BSE
A35: 2020-09-14 | B35: 540175 | C35: REGENCY | D35: NAVEEN GUPTA | E35: SELL | F35: 26,521 | G35: 31.06 | H35: BSE
A36: 2020-09-14 | B36: 540175 | C36: REGENCY | D36: KUSAM LATA | E36: SELL | F36: 19,000 | G36: 30.9 | H36: BSE
A37: 2020-09-14 | B37: 540175 | C37: REGENCY | D37: CONSORTIUM CAPITAL PRIVATE LIMITED | E37: BUY | F37: 25,000 | G37: 31.1 | H37: BSE
A38: 2020-09-14 | B38: 513517 | C38: STEELCAS | D38: CHETANKUMAR MANMOHANBHAI TAMBOLI | E38: BUY | F38: 200,000 | G38: 105 | H38: BSE
A39: 2020-09-14 | B39: 513517 | C39: STEELCAS | D39: MANALIBEN CHETANKUMAR TAMBOLI | E39: BUY | F39: 200,000 | G39: 105 | H39: BSE
A40: 2020-09-14 | B40: 513517 | C40: STEELCAS | D40: BELLWETHER CAPITAL PRIVATE LIMITED | E40: SELL | F40: 354,279 | G40: 105 | H40: BSE
A41: 2020-09-14 | B41: 510245 | C41: SWASTIVI | D41: KARTHIK JAYAKUMAR | E41: SELL | F41: 448,000 | G41: 4.08 | H41: BSE
A42: 2020-09-14 | B42: 539956 | C42: TAALENT | D42: NAVEEN BOTHRA AND SONS HUF | E42: SELL | F42: 30,840 | G42: 184.48 | H42: BSE
A43: 2020-09-14 | B43: 542923 | C43: TRANWAY | D43: VIPUL MOHAN PATEL | E43: BUY | F43: 100,000 | G43: 5 | H43: BSE
A44: 2020-09-14 | B44: 542923 | C44: TRANWAY | D44: P S SHETH | E44: SELL | F44: 100,000 | G44: 5 | H44: BSE
A45: 2020-09-14 | B45: 516030 | C45: YASHPAKKA | D45: CARE PORTFOLIO MANAGERS PRIVATE LIMITED | E45: SELL | F45: 196,085 | G45: 46.5 | H45: BSE
A46: 2020-09-14 | B46: 516030 | C46: YASHPAKKA | D46: AANYA HOLDINGS LLP | E46: BUY | F46: 400,000 | G46: 50.97 | H46: BSE
A47: 2020-09-14 | B47: 516030 | C47: YASHPAKKA | D47: SYNERGY MONEYCONTROL PRIVATE LIMITED | E47: BUY | F47: 250,000 | G47: 46.5 | H47: BSE
A48: 2020-09-14 | B48: 516030 | C48: YASHPAKKA | D48: SYNERGY MONEYCONTROL PRIVATE LIMITED | E48: SELL | F48: 250,000 | G48: 51 | H48: BSE
A49: 2020-09-14 | B49: ADFFOODS | C49: ADF Foods Limited | D49: ASHISH RAMCHANDRA KACHOLIA | E49: BUY | F49: 148,871 | G49: 377.99 | H49: NSE
A50: 2020-09-14 | B50: BASF | C50: BASF Ltd. | D50: PLUTUS WEALTH MANAGEMENT LLP | E50: BUY | F50: 310,000 | G50: 1545.83 | H50: NSE
A51: 2020-09-14 | B51: BINDALAGRO | C51: Oswal Chem & Fert Ltd. | D51: ALLIANCE TECHNO PROJECTS LIMITED | E51: BUY | F51: 4,336,635 | G51: 11.95 | H51: NSE
A52: 2020-09-14 | B52: BSE | C52: BSE Limited | D52: ACACIA CONSERVATION FUND LP (RUANNE CUNNIFF) | E52: BUY | F52: 506,999 | G52: 549 | H52: NSE
A53: 2020-09-14 | B53: BSE | C53: BSE Limited | D53: ACACIA BANYAN PARTNERS (RUANNE CUNNIFF AND GOLD FARB INC) | E53: BUY | F53: 242,381 | G53: 549 | H53: NSE
A54: 2020-09-14 | B54: BSE | C54: BSE Limited | D54: RUANNE CUNNIFF AND GOLD FARB INC A/C ACACIA INSTITUTIONAL PARTNERS LP | E54: BUY | F54: 292,010 | G54: 549 | H54: NSE
A55: 2020-09-14 | B55: MAHESHWARI | C55: Maheshwari Logistics Limi | D55: YOGESH KUMAR GAWANDE | E55: BUY | F55: 142,306 | G55: 193.61 | H55: NSE
A56: 2020-09-14 | B56: SATIN | C56: Satin Credit Net Ltd | D56: CHETAN RASIKLAL SHAH | E56: BUY | F56: 1,350,038 | G56: 64.12 | H56: NSE
A57: 2020-09-14 | B57: SATIN | C57: Satin Credit Net Ltd | D57: TEJAS TRADEFIN LLP | E57: BUY | F57: 310,000 | G57: 64.18 | H57: NSE
A58: 2020-09-14 | B58: SATIN | C58: Satin Credit Net Ltd | D58: MANGLAM FINANCIAL SERVICES | E58: BUY | F58: 295,000 | G58: 64.5 | H58: NSE
A59: 2020-09-14 | B59: SATIN | C59: Satin Credit Net Ltd | D59: SETU SECURITIES PVT LTD | E59: BUY | F59: 483,927 | G59: 64.2 | H59: NSE
A60: 2020-09-14 | B60: TATAELXSI | C60: Tata Elxsi Limited | D60: WILLIAM BLAIR INTERNATIONAL GROWTH FUND | E60: BUY | F60: 312,485 | G60: 1304 | H60: NSE
A61: 2020-09-14 | B61: BINDALAGRO | C61: Oswal Chem & Fert Ltd. | D61: CLAREVILLE CAPITAL OPPORTUNITIES MASTER FUND LIMITED | E61: SELL | F61: 4,336,635 | G61: 11.95 | H61: NSE
A62: 2020-09-14 | B62: BSE | C62: BSE Limited | D62: DEUTSCHE BOERSE AKTIENGESELLSCHAFT | E62: SELL | F62: 1,200,000 | G62: 549 | H62: NSE
A63: 2020-09-14 | B63: GREENPLY | C63: Greenply Industries Ltd | D63: JWALAMUKHI INVESTMENT HOLDINGS | E63: SELL | F63: 713,108 | G63: 90.5 | H63: NSE
A64: 2020-09-14 | B64: MAHESHWARI | C64: Maheshwari Logistics Limi | D64: YOGESH KUMAR GAWANDE | E64: SELL | F64: 141,694 | G64: 194.43 | H64: NSE
A65: 2020-09-14 | B65: SATIN | C65: Satin Credit Net Ltd | D65: SETU SECURITIES PVT LTD | E65: SELL | F65: 468,926 | G65: 65.99 | H65: NSE
A66: 2020-09-14 | B66: SATIN | C66: Satin Credit Net Ltd | D66: KORA INVESTMENTS I LLC | E66: SELL | F66: 2,230,207 | G66: 64.18 | H66: NSE
A67: 2020-09-14 | B67: SATIN | C67: Satin Credit Net Ltd | D67: TEJAS TRADEFIN LLP | E67: SELL | F67: 278,091 | G67: 65.57 | H67: NSE
A68: 2020-09-14 | B68: SATIN | C68: Satin Credit Net Ltd | D68: CHETAN RASIKLAL SHAH | E68: SELL | F68: 1,149,146 | G68: 65.46 | H68: NSE
A69: 2020-09-14 | B69: SUULD | C69: Suumaya Lifestyle Limited | D69: GRETEX SHARE BROKING PRIVATE LIMITED | E69: SELL | F69: 200,000 | G69: 31 | H69: NSE

Sheet Call Tracker (Equity & F&O)
M5: Back To Main Page
A6: Retail Research Technical Calls & Fundamental Performance Report for the month of September-2020
M7: =Main!B10 -> 2020-09-15
B8: Positional Call
A9: Sr.no | B9: Date | D9: Company | E9: Rec | F9: Rec Price | G9: Stop Loss*** | H9: Call Closed At | I9: Target | J9: Remark | K9: Profit / Loss per Share | L9: All charges | M9: Net Gain / Loss % | N9: Status | O9: Closed Date
A10: 1 | B10: 2020-07-22 | D10: NESTLEIND | E10: Buy | F10: 17030 | G10: 15950 | H10: 15950 | I10: 18500-19000 | J10: Loss of Rs.1080/- | K10: =H10-F10 -> -1080 | L10: =(F10*-0.8)/100 -> -136.24 | M10: =(K10+L10)/F10 -> -7.14% | N10: Unsuccessful | O10: 2020-09-01 | R10: H
A11: 2 | B11: 2020-08-14 | D11: ITC | E11: Buy | F11: 198 | G11: 187 | H11: 187 | I11: 218-220 | J11: Loss of Rs.11/- | K11: =H11-F11 -> -11 | L11: =(F11*-0.8)/100 -> -1.58 | M11: =(K11+L11)/F11 -> -6.36% | N11: Unsuccessful | O11: 2020-09-04 | R11: A
A12: 3 | B12: 2020-08-20 | D12: THERMAX | E12: Buy | F12: 785 | G12: 730.00 | H12: 825.00 | I12: 880-900 | J12: Part Profit of Rs.40/- | K12: =H12-F12 -> 40 | L12: =(F12*-0.8)/100 -> -6.28 | M12: =(K12+L12)/F12 -> 4.30% | N12: Successful | O12: 2020-08-21 | R12: H
A13: 4 | B13: 2020-08-21 | D13: VGUARD | E13: Buy | F13: 172 | G13: 160.00 | H13: 180.50 | I13: 195 | J13: Part Profit of Rs.8.5/- | K13: =H13-F13 -> 8.5 | L13: =(F13*-0.8)/100 -> -1.38 | M13: =(K13+L13)/F13 -> 4.14% | N13: Successful | O13: 2020-08-27 | R13: N
A14: 5 | B14: 2020-08-28 | D14: GSPL | E14: Buy | F14: 214 | G14: 199 | H14: 200 | I14: 235-245 | J14: Loss of Rs.14/- | K14: -14 | L14: -1.71 | M14: -7.34% | N14: Unsuccessful | O14: 2020-09-02 | R14: H
A15: 6 | B15: 2020-08-28 | D15: WHIRLPOOL | E15: Buy | F15: 2142.5 | G15: 1,980.00 | H15: 2,250.00 | I15: 2400-2500 | J15: Part Profit of Rs.107.5/- | K15: =H15-F15 -> 107.5 | L15: =(F15*-0.8)/100 -> -17.14 | M15: =(K15+L15)/F15 -> 4.22% | N15: Successful | O15: 2020-09-08 | R15: H
A16: 7 | B16: 2020-09-01 | D16: SUNPHARMA | E16: Buy | F16: 514-520 | G16: 487 | I16: 560-580 | J16: Open | R16: H
A17: 8 | B17: 2020-09-01 | D17: TATACHEM | E17: Buy | F17: 309 | G17: 290 | H17: 289.5 | I17: 340-350 | J17: Loss of Rs.19.5/- | K17: =H17-F17 -> -19.5 | L17: =(F17*-0.8)/100 -> -2.47 | M17: =(K17+L17)/F17 -> -7.11% | N17: Unsuccessful | O17: 2020-09-08 | R17: N
A18: 9 | B18: 2020-09-01 | D18: BHARTIARTL | E18: Buy | F18: 529 | G18: 490.00 | H18: =(551+487.5)/2 -> 519.25 | I18: 580-600 | J18: Loss of Rs.9.75/- | K18: =H18-F18 -> -9.75 | L18: =(F18*-0.45)/100 -> -2.38 | M18: =(K18+L18)/F18 -> -2.29% | N18: Unsuccessful | O18: 2020-09-14 | R18: H
A19: 10 | B19: 2020-09-02 | D19: NESTLEIND | E19: Buy | F19: 15900-16100 | G19: 15300 | I19: 17000-17500 | J19: Open | R19: H
A20: 11 | B20: 2020-09-02 | D20: MGL | E20: Buy | F20: 905 | G20: 850.00 | H20: 940.00 | I20: 1000 | J20: Part Profit of Rs.35/- | K20: =H20-F20 -> 35 | L20: =(F20*-0.8)/100 -> -7.24 | M20: =(K20+L20)/F20 -> 3.07% | N20: Successful | O20: 2020-09-14 | R20: N
A21: 12 | B21: 2020-09-03 | D21: VINATIORGA | E21: Buy | F21: 1,008.00 | G21: 950 | H21: 1,074.00 | I21: 1080-1100 | J21: Profit of Rs.66/- | K21: =H21-F21 -> 66 | L21: =(F21*-0.8)/100 -> -8.06 | M21: =(K21+L21)/F21 -> 5.75% | N21: Successful | O21: 2020-09-14 | R21: N
A22: 13 | B22: 2020-09-09 | D22: EXIDEIND | E22: Buy | F22: 155-157 | G22: 145 | I22: 175 | J22: Open | R22: N
A23: 14 | B23: 2020-09-14 | D23: JKLAKSHMI | E23: Buy | F23: 262-265 | G23: 248 | I23: 290 | J23: Open | R23: N
A24: 15 | B24: 2020-09-14 | D24: CESC | E24: Buy | F24: 634-638 | G24: 600 | I24: 700 | J24: Open | R24: N
A25: 16 | B25: 2020-09-14 | D25: GODFRYPHLP | E25: Buy | F25: 920-930 | G25: 870 | I25: 1020-1050 | J25: Open | R25: H
A26: 17 | B26: 2020-09-14 | D26: CHOLAFIN | E26: Buy | F26: 228-231 | G26: 217 | I26: 250-255 | J26: Open | R26: N
A27: 18 | B27: 2020-09-14 | D27: JKCEMENT | E27: Buy | F27: 1,482.50 | G27: 1380 | H27: 1,543.00 | I27: 1650 | J27: Profit of Rs.60.5/- | K27: =H27-F27 -> 60.5 | L27: =(F27*-0.07)/100 -> -1.04 | M27: =(K27+L27)/F27 -> 4.01% | N27: Successful | O27: 2020-09-14 | R27: H
A28: 19 | B28: 2020-09-14 | D28: HAVELLS | E28: Buy | F28: 660-666 | G28: 630 | I28: 730 | J28: Open | R28: N
A29: 20 | B29: 2020-09-14 | D29: GREAVESCOT | E29: Buy | F29: 79-79.5 | G29: 74 | I29: 88-90 | J29: Open | R29: H
A30: 21 | B30: 2020-09-14 | D30: GULFOILLUB | E30: Buy | F30: 639-646 | G30: 599 | I30: 700-720 | J30: Open | R30: N
A31: 22 | B31: 2020-09-14 | D31: INDIACEM | E31: Buy | F31: 123-125 | G31: 115 | I31: 140-145 | J31: Open | R31: H
A32: 23
A33: 24
A34: 25
A35: CLBS = Closing Basis ***
A36: Dividend adjusted <> | F36: Reinitiated $
A37: Part book {} | F37: Revised stoploss #
B39: Momentum Call
A40: Sr.no | B40: Date | D40: Company | E40: Rec | F40: Rec Price | G40: Stop Loss | H40: Call Closed At | I40: Target | J40: Remark | K40: Profit / Loss per Share/Lot | L40: All charges | M40: Net Gain / Loss % | N40: Status | O40: Closed Date
A41: 1 | B41: 2020-09-01 | D41: ICICIPRULI | E41: Sell | F41: 433 | G41: 443 | H41: 426.00 | I41: 415-410 | J41: Profit of Rs.7/- | K41: =+F41-H41 -> 7 | L41: =(F41*-0.07)/100 -> -0.30 | M41: =(K41+L41)/F41 -> 1.55% | N41: Successful | O41: 2020-09-01 | R41: H
A42: 2 | B42: 2020-09-01 | D42: HINDALCO | E42: Sell | F42: 191 | G42: 197 | H42: 195.00 | I42: 184-182 | J42: Loss of Rs. 4/- | K42: =F42-H42 -> -4 | L42: =(F42*-0.8)/100 -> -1.53 | M42: -2.89% | N42: Successful | O42: 2020-09-03 | R42: H
A43: 3 | B43: 2020-09-01 | D43: ULTRACEMCO | E43: Buy | F43: 3865 | G43: 3740 | H43: 3,930.00 | I43: 4050-4150 | J43: Profit of Rs.65/- | K43: =H43-F43 -> 65 | L43: =(F43*-0.07)/100 -> -2.71 | M43: =(K43+L43)/F43 -> 1.61% | N43: Successful | O43: 2020-09-01 | R43: H
A44: 4 | B44: 2020-09-02 | D44: CROMPTON | E44: Buy | F44: 267 | G44: 260 | H44: 260.00 | I44: 278 | J44: Loss of Rs. 7/- | K44: -7 | L44: =(F44*-0.8)/100 -> -2.14 | M44: -3.42% | N44: Successful | O44: 2020-09-03 | R44: N
A45: 5 | B45: 2020-09-02 | D45: RELAXO | E45: Buy | F45: 642 | G45: 625 | H45: 659.50 | I45: 670-680 | J45: Profit of Rs.17.5/- | K45: 17.5 | L45: =(F45*-0.8)/100 -> -5.14 | M45: 1.93% | N45: Successful | O45: 2020-09-04 | R45: H
A46: 6 | B46: 2020-09-02 | D46: LT | E46: Buy | F46: 948 | G46: 918 | H46: 969.50 | I46: 1000-1010 | J46: Profit of Rs.21.5/- | K46: =H46-F46 -> 21.5 | L46: =(F46*-0.8)/100 -> -7.58 | M46: =(K46+L46)/F46 -> 1.47% | N46: Successful | O46: 2020-09-03 | R46: H
A47: 7 | B47: 2020-09-04 | D47: TATASTEEL | E47: Sell | F47: 431.5 | G47: 446 | H47: 425.00 | I47: 415-410 | J47: Profit of Rs.6.5/- | K47: =+F47-H47 -> 6.5 | L47: =(F47*-0.07)/100 -> -0.30 | M47: 1.44% | N47: Successful | O47: 2020-09-04 | R47: H
A48: 8 | B48: 2020-09-04 | D48: HINDUNILVR | E48: Buy | F48: 2,125.00 | G48: 2060 | H48: 2,135.00 | I48: 2220-2250 | J48: Profit of Rs.10/- | K48: =H48-F48 -> 10 | L48: =(F48*-0.8)/100 -> -17.00 | M48: -0.33% | N48: Neutral | O48: 2020-09-14 | R48: H
A49: 9 | B49: 2020-09-07 | D49: TATASTEEL | E49: Sell | F49: 425.5 | G49: 442 | H49: 418.50 | I49: 410-405 | J49: Profit of Rs.7/- | K49: =+F49-H49 -> 7 | L49: =(F49*-0.07)/100 -> -0.30 | M49: =(K49+L49)/F49 -> 1.58% | N49: Successful | O49: 2020-09-07 | R49: H
A50: 10 | B50: 2020-09-07 | D50: BHARATFORG | E50: Buy | F50: 491 | G50: 477 | H50: 477.00 | I50: 515-518 | J50: Loss of Rs. 14/- | K50: =H50-F50 -> -14 | L50: =(F50*-0.8)/100 -> -3.93 | M50: -3.65% | N50: Successful | O50: 2020-09-08 | R50: N
A51: 11 | B51: 2020-09-07 | D51: DLF | E51: Sell | F51: 155 | G51: 160 | H51: 152.00 | I51: 135 | J51: Profit of Rs.3/- | K51: =+F51-H51 -> 3 | L51: =(F51*-0.07)/100 -> -0.11 | M51: =(K51+L51)/F51 -> 1.87% | N51: Successful | O51: 2020-09-07 | R51: N
A52: 12 | B52: 2020-09-08 | D52: LT | E52: Buy | F52: 925-929 | G52: 900 | I52: 980-1000 | J52: Open | R52: H
A53: 13 | B53: 2020-09-08 | D53: MINDTREE | E53: Buy | F53: 1205 | G53: 1170 | H53: 1,170.00 | I53: 1270 | J53: Loss of Rs. 35/- | K53: =H53-F53 -> -35 | L53: =(F53*-0.8)/100 -> -9.64 | M53: =(K53+L53)/F53 -> -3.70% | N53: Successful | O53: 2020-09-10 | R53: N
A54: 14 | B54: 2020-09-09 | D54: HCLTECH | E54: Buy | F54: 714.5 | G54: 695 | H54: 726.00 | I54: 740 | J54: Profit of Rs.11.5/- | K54: =H54-F54 -> 11.5 | L54: =(F54*-0.07)/100 -> -0.50 | M54: =(K54+L54)/F54 -> 1.54% | N54: Successful | O54: 2020-09-09 | R54: H
A55: 15 | B55: 2020-09-09 | D55: ULTRACEMCO | E55: Buy | F55: 3825 | G55: 3710 | H55: 3,911.00 | I55: 3970-4000 | J55: Profit of Rs.86/- | K55: 86 | L55: =(F55*-0.8)/100 -> -30.60 | M55: 1.45% | N55: Successful | O55: 2020-09-10 | R55: H
A56: 16 | B56: 2020-09-11 | D56: DLF | E56: Sell | F56: 156.5 | G56: 162 | H56: 153.75 | I56: 147 | J56: Profit of Rs.2.75/- | K56: =+F56-H56 -> 2.75 | L56: =(F56*-0.07)/100 -> -0.11 | M56: 1.69% | N56: Successful | O56: 2020-09-11 | R56: N
A57: 17 | B57: 2020-09-11 | D57: IGL | E57: Buy | F57: 393.5 | G57: 384 | H57: 399.50 | I57: 410-415 | J57: Profit of Rs.6/- | K57: =H57-F57 -> 6 | L57: =(F57*-0.07)/100 -> -0.28 | M57: =(K57+L57)/F57 -> 1.45% | N57: Successful | O57: 2020-09-11 | R57: H
A58: 18 | B58: 2020-09-11 | D58: BPCL | E58: Buy | F58: 423-425 | G58: 409 | I58: 440-450 | R58: H
A59: 19 | B59: 2020-09-11 | D59: LUPIN | E59: Buy | F59: 962-965 | G59: 938 | I59: 1000-1020 | R59: N
A60: 20 | B60: 2020-09-14 | D60: COFORGE | E60: Buy | F60: 2080 | G60: 2030 | H60: 2,122.50 | I60: 2180-2200 | J60: Profit of Rs.42.5/- | K60: =H60-F60 -> 42.5 | L60: =(F60*-0.07)/100 -> -1.46 | M60: =(K60+L60)/F60 -> 1.97% | N60: Successful | O60: 2020-09-14 | R60: H
A71: CLBS = Closing Basis *** | H71: *
A72: Dividend adjusted <> | F72: Reinitiated $
F73: Revised stoploss #
A75: Master Trade High Risk
A76: Sr.no | B76: Date | D76: Company | E76: Rec | F76: Rec Price | G76: Stop Loss | H76: Call Closed At | I76: Target | J76: Remark | K76: Profit / Loss per share | L76: All charges | M76: Gain / Loss per Lot | N76: Lot | O76: Status | P76: Closed Date
A77: 1 | B77: 2020-08-28 | D77: TCS SEP FUT | E77: Buy | F77: 2272 | G77: 2230 | H77: 2298.5 | I77: 2450 | J77: Profit of Rs.26.5/- | K77: =H77-F77 -> 26.5 | L77: =(H77*N77)*0.07% -> 482.69 | M77: =(K77*N77)-L77 -> 7467.32 | N77: 300 | O77: Successful | P77: 2020-09-03 | R77: N
A78: 2 | B78: 2020-09-01 | D78: NIFTY SEPT FUT | E78: Sell | F78: 11510 | G78: 11610 | H78: 11420 | I78: 11300-11250 | J78: Profit of Rs.90/- | K78: =F78-H78 -> 90 | L78: 599.55 | M78: 6150.45 | N78: 75 | O78: Successful | P78: 2020-09-01 | R78: H
A79: 3 | B79: 2020-09-01 | D79: NIFTY SEPT FUT | E79: Sell | F79: 11525 | G79: 11650 | H79: 11445 | I79: 11300-11250 | J79: Profit of Rs.80/- | K79: 80 | L79: 600.86 | M79: 5399.14 | N79: 75 | O79: Successful | P79: 2020-09-01 | R79: H
A80: 4 | B80: 2020-09-02 | D80: NIFTY SEPT FUT | E80: Sell | F80: 11525 | G80: 11650 | H80: 11455 | I80: 11300-11250 | J80: Profit of Rs.70/- | K80: 70 | L80: 601.39 | M80: 4648.61 | N80: 75 | O80: Successful | P80: 2020-09-02 | R80: H
A81: 5 | B81: 2020-09-03 | D81: NIFTY SEPT FUT | E81: Sell | F81: 11590 | G81: 11710 | H81: 11520 | I81: 11400 | J81: Profit of Rs.70/- | K81: 70 | L81: 604.80 | M81: 4645.20 | N81: 75 | O81: Successful | P81: 2020-09-03 | R81: H
A82: 6 | B82: 2020-09-08 | D82: NIFTY SEPT FUT | E82: Sell | F82: 11415 | G82: 11540 | H82: 11355 | I82: 11300-11250 | J82: Profit of Rs.60/- | K82: 60 | L82: 596.14 | M82: 3903.86 | N82: 75 | O82: Successful | P82: 2020-09-08 | R82: H
A83: 7 | B83: 2020-09-10 | D83: NIFTY SEPT FUT | E83: Sell | F83: 11410 | G83: 11510 | H83: 11525 | I83: 11200 | J83: Loss of Rs.115/- | K83: -115 | L83: =(H83*N83)*0.07% -> 605.06 | M83: =(K83*N83)-L83 -> -9230.06 | N83: 75 | O83: Unsuccessful | P83: 2020-09-14 | R83: N
A84: 8 | B84: 2020-09-11 | D84: AMBUJACEM SEPT FUT | E84: Sell | F84: 213.75 | G84: 218 | H84: 211.75 | I84: 205 | J84: Profit of Rs.2/- | K84: 2 | L84: =(H84*N84)*0.07% -> 444.68 | M84: =(K84*N84)-L84 -> 5555.33 | N84: 3000 | O84: Successful | P84: 2020-09-12 | R84: H
A90: Master Trade Medium Risk
A91: Sr.no | B91: Date | D91: Company | E91: Rec | F91: Rec Price | G91: Stop Loss | H91: Call Closed At | I91: Target | J91: Remark | K91: Profit/ Loss per lot | L91: All charges | M91: Gain / Loss per Lot | N91: Lot | O91: Status | P91: Closed Date
A92: 1 | B92: 2020-09-01 | D92: NIFTY 11400 PE 03-SEP | E92: Buy | F92: 72 | G92: 35 | H92: 87 | I92: 150 | J92: Profit of Rs.15/- | K92: =H92-F92 -> 15 | L92: 100 | M92: =(K92*N92)-100 -> 1025 | N92: 75 | O92: Successful | P92: 2020-09-01 | R92: N
A93: 2 | B93: 2020-09-01 | D93: NIFTY 11400 PE 03-SEP | E93: Buy | F93: 47.50 | G93: 0 | H93: 63 | I93: 120 | J93: Profit of Rs.15.50/- | K93: 15.5 | L93: 100 | M93: 1062.5 | N93: 75 | O93: Successful | P93: 2020-09-01 | R93: N
A94: 3 | B94: 2020-09-02 | D94: NIFTY 11450 PE 03-SEP | E94: Buy | F94: 45 | H94: 57 | I94: 90 | J94: Profit of Rs.12/- | K94: =H94-F94 -> 12 | L94: 100 | M94: =(K94*N94)-100 -> 800 | N94: 75 | O94: Successful | P94: 2020-09-02 | R94: N
A95: 4 | B95: 2020-09-02 | D95: NIFTY 11500 PE 03-SEP | E95: Buy | F95: 37.5 | H95: 0 | I95: 80 | J95: Loss of Rs.37.5/- | K95: -37.5 | L95: 100 | M95: -2912.5 | N95: 75 | O95: Unsuccessful | P95: 2020-09-03 | R95: N
A96: 5 | B96: 2020-09-02 | D96: TCS 2300 CE SEP | E96: Buy | F96: 51 | G96: 35 | H96: 60 | I96: 75-85 | J96: Profit of Rs.9/- | K96: =H96-F96 -> 9 | L96: 100 | M96: =(K96*N96)-100 -> 2600 | N96: 300 | O96: Successful | P96: 2020-09-03 | R96: H
A97: 6 | B97: 2020-09-03 | D97: BHARTIARTL 570 CE | E97: Buy | F97: 10.75 | G97: 7.5 | H97: 12.75 | I97: 15-16 | J97: Profit of Rs.2/- | K97: 2 | L97: 100 | M97: 3602 | N97: 1851 | O97: Successful | P97: 2020-09-03 | R97: H
A98: 7 | B98: 2020-09-03 | D98: BHARTIARTL 570 CE | E98: Buy | F98: 10.8 | G98: 7.5 | H98: 7.5 | I98: 15-16 | J98: Loss of Rs.3.3/- | K98: =H98-F98 -> -3.3 | L98: 100 | M98: =(K98*N98)-100 -> -6208.3 | N98: 1851 | O98: Unsuccessful | P98: 2020-09-04 | R98: H
A99: 8 | B99: 2020-09-04 | D99: INFY 940 CE SEP | E99: Buy | F99: 20.5 | G99: 15.5 | H99: 22.4 | I99: 30 | J99: Profit of Rs.1.9/- | K99: 1.9 | L99: 100 | M99: 2180 | N99: 1200 | O99: Successful | P99: 2020-09-04 | R99: N
A100: 9 | B100: 2020-09-04 | D100: TCS 2300 CE SEP | E100: Buy | F100: 55 | G100: 37 | H100: 62 | I100: 75-85 | J100: Profit of Rs.7/- | K100: =H100-F100 -> 7 | L100: 100 | M100: =(K100*N100)-100 -> 2000 | N100: 300 | O100: Successful | P100: 2020-09-04 | R100: H
A101: 10 | B101: 2020-09-04 | D101: MARUTI 7000 PE SEP | E101: Buy | F101: 142.5 | G101: 95 | H101: 95 | I101: 200-250 | J101: Loss of Rs.47.5/- | K101: -47.5 | L101: 100 | M101: -4850 | N101: 100 | O101: Unsuccessful | P101: 2020-09-04 | R101: H
A102: 11 | B102: 2020-09-04 | D102: NIFTY 11200 PE 10-SEP | E102: Buy | F102: 46 | G102: 15 | H102: 61.5 | I102: 80-100 | J102: Profit of Rs.15.5/- | K102: =H102-F102 -> 15.5 | L102: 100 | M102: =(K102*N102)-100 -> 1062.5 | N102: 75 | O102: Successful | P102: 2020-09-04 | R102: H
A103: 12 | B103: 2020-09-07 | D103: NIFTY 11200 PE 10-SEP | E103: Buy | F103: 61.5 | G103: 25 | H103: 81 | I103: 100-120 | J103: Profit of Rs.19.5/- | K103: =H103-F103 -> 19.5 | L103: 100 | M103: =(K103*N103)-100 -> 1362.5 | N103: 75 | O103: Successful | P103: 2020-09-07 | R103: H
A104: 13 | B104: 2020-09-07 | D104: NIFTY 11200 PE 10-SEP | E104: Buy | F104: 60 | G104: 25 | H104: 30 | I104: 100-120 | J104: Loss of Rs.30/- | K104: -30 | L104: 100 | M104: -2350 | N104: 75 | O104: Unsuccessful | P104: 2020-09-08 | R104: H
A105: 14 | B105: 2020-09-08 | D105: NIFTY 11300 PE 10-SEP | E105: Buy | F105: 58 | G105: 18 | H105: 75 | I105: 100-120 | J105: Profit of Rs.17/- | K105: =H105-F105 -> 17 | L105: 100 | M105: =(K105*N105)-100 -> 1175 | N105: 75 | O105: Successful | P105: 2020-09-08 | R105: H
A106: 15 | B106: 2020-09-09 | D106: TCS 2380 CE SEP | E106: Buy | F106: 39 | G106: 23 | H106: 48 | I106: 70 | J106: Profit of Rs.9/- | K106: 9 | L106: 100 | M106: 2600 | N106: 300 | O106: Successful | P106: 2020-09-11 | R106: N
A107: 16 | B107: 2020-09-09 | D107: NIFTY 11000 PE 17-SEP | E107: Buy | F107: 60 | G107: 18 | H107: 18 | I107: 120-140 | J107: Loss of Rs.42/- | K107: =H107-F107 -> -42 | L107: 100 | M107: =(K107*N107)-100 -> -3250 | N107: 75 | O107: Unsuccessful | P107: 2020-09-11 | R107: H
A108: 17 | B108: 2020-09-11 | D108: NIFTY 11350 PE 17-SEP | E108: Buy | F108: 60 | G108: 18 | H108: 76 | I108: 120-140 | J108: Profit of Rs.16/- | K108: =H108-F108 -> 16 | L108: 100 | M108: =(K108*N108)-100 -> 1100 | N108: 75 | O108: Successful | P108: 2020-09-11 | R108: H
A109: 18 | B109: 2020-09-11 | D109: NIFTY 11350 PE 17-SEP | E109: Buy | F109: 59 | G109: 18 | H109: 71.5 | I109: 120-140 | J109: Profit of Rs.12.5/- | K109: =H109-F109 -> 12.5 | L109: 100 | M109: =(K109*N109)-100 -> 837.5 | N109: 75 | O109: Successful | P109: 2020-09-14 | R109: H
A112: Techno -Funda (positional)
A113: Sr.no | B113: Date | D113: Company | E113: Rec | F113: Rec Price | G113: Stop Loss*** | H113: Call Closed At | I113: Target | J113: Remark | K113: Profit / Loss per Share/Lot | L113: All charges | M113: Net Gain / Loss % | N113: Status | O113: Closed Date
A114: 1 | B114: 2020-08-28 | D114: CCL | E114: Buy | F114: 267 | G114: 245 | H114: 243 | I114: 310-320 | J114: Loss of Rs.24/- | K114: =H114-F114 -> -24 | L114: =(F114*-0.8)/100 -> -2.14 | M114: =(K114+L114)/F114 -> -9.79% | N114: Unsuccessful | O114: 2020-09-09 | R114: H
A116: CLBS = Closing Basis *** | F116: Reinitiated $
A117: Dividend adjusted <> | F117: Revised stoploss #
B122: Investment Idea
A123: Sr.no | B123: Date | D123: Company | E123: Rec | F123: Rec Price | G123: Point of Review | H123: Close Rate | I123: Target | J123: Remark | K123: Profit / Loss per Share | L123: Gain / Loss % | M123: Status | N123: Closed Date
A124: 1 | B124: 2013-11-01 | D124: L&T Finance Holding | E124: Accu | F124: 82.00 | G124: - | H124: 100 | I124: 100.00 | J124: Target Achieved | K124: =H124-F124 -> 18.00 | L124: =K124/F124 -> 21.95% | M124: Successful | N124: 2016-10-14
A125: 2 | B125: 2014-06-04 | D125: Finolex Inds | E125: Buy | F125: 257.00 | G125: - | H125: 300 | I125: 300.00 | J125: Target Achieved | K125: 43.00 | L125: 16.73% | M125: Successful | N125: 2014-07-02
A126: 3 | B126: 2014-07-08 | D126: JK Cement | E126: Buy | F126: 393.00 | G126: - | H126: 468 | I126: 468.00 | J126: Target Achieved | K126: 75.00 | L126: 19.08% | M126: Successful | N126: 2014-08-12
A127: 4 | B127: 2014-08-06 | D127: Finolex Cables | E127: Buy | F127: 205.00 | G127: - | H127: 275 | I127: 250.00 | J127: Target Achieved | K127: 70.00 | L127: 34.15% | M127: Successful | N127: 2014-11-19
A128: 5 | B128: 2014-09-04 | D128: Exide Inds | E128: Buy | F128: 162.00 | G128: - | H128: 190 | I128: 190.00 | J128: Target Achieved | K128: 28.00 | L128: 17.28% | M128: Successful | N128: 2015-01-02
A129: 6 | B129: 2014-09-04 | D129: Deepak Nitrite | E129: Buy | F129: 75.00 | G129: - | H129: 91.5 | I129: 95-100 | J129: Profit of Rs.16.50/- | K129: 16.50 | L129: 22.00% | M129: Successful | N129: 2014-11-11
A130: 7 | B130: 2014-10-01 | D130: Mercks | E130: Buy | F130: 850.00 | G130: - | H130: 982.5 | I130: 1050.00 | J130: Profit of Rs.132.50/- | K130: 132.50 | L130: 15.59% | M130: Successful | N130: 2015-02-04
A131: 8 | B131: 2014-10-01 | D131: Grindwell Norton | E131: Buy | F131: 475.00 | G131: - | H131: 515 | I131: 600.00 | J131: Profit of Rs.40/- | K131: 40.00 | L131: 8.42% | M131: Successful | N131: 2014-10-27
A132: 9 | B132: 2014-10-01 | D132: Snowman Logistics | E132: Buy | F132: 86.00 | G132: - | H132: 99 | I132: 140.00 | J132: Profit of Rs.13.00/- | K132: 13.00 | L132: 15.12% | M132: Successful | N132: 2014-10-27
A133: 10 | B133: 2014-10-14 | D133: Birla Corp | E133: Buy | F133: 496.60 | G133: - | H133: 621 | I133: 580.00 | J133: Target Achieved | K133: 124.40 | L133: 25.05% | M133: Successful | N133: 2016-08-23
A134: 11 | B134: 2014-10-14 | D134: Ultratech Cem | E134: Buy | F134: 2481.90 | G134: - | H134: 2840 | I134: 2870.00 | J134: Profit of Rs.358.10/- | K134: 358.10 | L134: 14.43% | M134: Successful | N134: 2015-01-13
A135: 12 | B135: 2014-10-16 | D135: Sintex Inds | E135: Buy | F135: 84.50 | G135: - | H135: 93 | I135: 110.00 | J135: Profit of Rs.8.50/- | K135: 8.50 | L135: 10.06% | M135: Successful | N135: 2014-10-27
A136: 13 | B136: 2014-10-16 | D136: HSIL | E136: Buy | F136: 401.00 | G136: - | H136: 428 | I136: 450.00 | J136: Profit of Rs.27.00/- | K136: 27.00 | L136: 6.73% | M136: Successful | N136: 2015-01-16
A137: 14 | B137: 2014-10-16 | D137: Eveready Inds | E137: Buy | F137: 101.00 | G137: - | H137: 112 | I137: 120.00 | J137: Profit of Rs.11.00/- | K137: 11.00 | L137: 10.89% | M137: Successful | N137: 2014-10-27
A138: 15 | B138: 2014-11-11 | D138: Pennar Inds | E138: Buy | F138: 59.00 | G138: - | H138: 76 | I138: 76.00 | J138: Target Achieved | K138: 17.00 | L138: 28.81% | M138: Successful | N138: 2017-10-24
A139: 16 | B139: 2014-11-11 | D139: Snowman Logistics | E139: Buy | F139: 99.00 | G139: - | H139: 120 | I139: 120.00 | J139: Profit of Rs.21/- | K139: 21.00 | L139: 21.21% | M139: Successful | N139: 2014-11-17
A140: 17 | B140: 2014-11-13 | D140: Dharamsi Morarji Chem | E140: Buy | F140: 22.00 | G140: - | H140: 33.55 | I140: 32.00 | J140: Profit of Rs 11.55/- | K140: 11.55 | L140: 52.50% | M140: Successful | N140: 2015-07-03
A141: 18 | B141: 2014-12-03 | D141: Tatachem | E141: Buy | F141: 440.00 | G141: - | H141: 520 | I141: 520.00 | J141: Profit of Rs 80.00/- | K141: 80.00 | L141: 18.18% | M141: Successful | N141: 2015-07-23
A142: 19 | B142: 2014-12-03 | D142: Advanta | E142: Buy | F142: 360.00 | G142: - | H142: 427 | I142: 425.00 | J142: Profit of Rs.67.00/- | K142: 67.00 | L142: 18.61% | M142: Successful | N142: 2015-02-23
A143: 20 | B143: 2015-01-08 | D143: GDL | E143: Buy | F143: 360.00 | G143: - | H143: 455 | I143: 420.00 | J143: Profit of Rs.95.00/- | K143: 95.00 | L143: 26.39% | M143: Successful | N143: 2015-01-20
A144: 21 | B144: 2015-01-08 | D144: NRB Bearing | E144: Buy | F144: 130.00 | H144: 175.5 | I144: 165.00 | J144: Profit of Rs 45.50/- | K144: 45.50 | L144: 35.00% | M144: Successful | N144: 2017-12-19
A145: 22 | B145: 2015-02-05 | D145: GSFC | E145: Accu | F145: 98.00 | H145: 120 | I145: 120.00 | J145: Target Achieved | K145: 22.00 | L145: 22.45% | M145: Successful | N145: 2017-01-18
A146: 23 | B146: 2015-02-05 | D146: Sundrmfast | E146: Accu | F146: 196.00 | H146: 262 | I146: 255.00 | J146: Target Achieved | K146: 66.00 | L146: 33.67% | M146: Successful | N146: 2016-08-17
A147: 24 | B147: 2015-03-04 | D147: GPPL | E147: Accu | F147: 235 | H147: 77.00 | I147: 280-285 | J147: Loss of Rs.158/- | K147: -158.00 | L147: -67.23% | M147: Unsuccessful | N147: 2019-02-26
A148: 25 | B148: 2015-03-04 | D148: ORIENTCEM | E148: Accu | F148: 185.00 | H148: 224 | I148: 220-225 | J148: Target Achieved | K148: 39.00 | L148: 21.08% | M148: Successful | N148: 2016-10-04
A149: 26 | B149: 2015-03-27 | D149: PFS | E149: Accu | F149: 49.5 | H149: 15.85 | I149: 67.00 | J149: Loss of Rs.33.65/- | K149: -33.65 | L149: -68% | M149: Unsuccessful | N149: 2019-06-11
A150: 27 | B150: 2015-03-30 | D150: Walchandnagar Ind Ltd | E150: Accu | F150: 183.50 | H150: 219 | I150: 218.00 | J150: Profit of Rs.35.50/- | K150: 35.50 | L150: 19.35% | M150: Successful | N150: 2015-04-09
A151: 28 | B151: 2015-04-20 | D151: Kalpataru Power Transmission Ltd | E151: Accu | F151: =(227+237)/2 -> 232.00 | H151: 298 | I151: 298.00 | J151: Target Achieved | K151: 66.00 | L151: 28.45% | M151: Successful | N151: 2017-03-29
A152: 29 | B152: 2015-05-04 | D152: Mastek Ltd | E152: Buy | F152: 385.00 | H152: =212.5+331 -> 543.5 | I152: 510.00 | J152: Profit of Rs 158.50/- | K152: 158.50 | L152: 41.17% | M152: Successful | N152: 2015-08-19
A153: 30 | B153: 2015-05-04 | D153: Suprajit Eng | E153: Buy | F153: 115.50 | H153: 146 | I153: 142.00 | J153: Profit of Rs 30.50/- | K153: 30.50 | L153: 26.41% | M153: Successful | N153: 2015-07-17
A154: 31 | B154: 2015-05-27 | D154: TCI | E154: Buy | F154: 237.50 | H154: 279.5 | I154: 278.00 | J154: Target Achieved | K154: 42.00 | L154: 17.68% | M154: Successful | N154: 2015-08-06
A155: 32 | B155: 2015-06-19 | D155: HSIL | E155: Accu | F155: 340.00 | H155: 448 | I155: 448.00 | J155: Target Achieved | K155: 108.00 | L155: 31.76% | M155: Successful | N155: 2017-10-10
A156: 33 | B156: 2015-07-06 | D156: Capital First | E156: Accu | F156: 390.00 | H156: 460 | I156: 460.00 | J156: Target Achieved | K156: =H156-F156 -> 70.00 | L156: =K156/F156 -> 17.95% | M156: Successful | N156: 2016-04-18
A157: 34 | B157: 2015-07-10 | D157: Dolphin OffShore | E157: Accu | F157: 122.5 | H157: 61.00 | I157: 172.00 | J157: Loss of Rs.61.50/- | K157: -61.50 | L157: -50.20% | M157: Unsuccessful | N157: 2018-08-21
A158: 35 | B158: 2015-08-03 | D158: Allcargo logistics | E158: Accu | F158: 297.50 | H158: 350 | I158: 360.00 | J158: Profit of Rs 52.50/- | K158: 52.50 | L158: 17.65% | M158: Successful | N158: 2015-08-16
A159: 36 | B159: 2015-08-03 | D159: Camline Fine | E159: Accu | F159: 115.50 | H159: 149 | I159: 140.00 | J159: Profit of Rs 33.50/- | K159: 33.50 | L159: 29.00% | M159: Successful | N159: 2017-01-05
A160: 37 | B160: 2015-09-04 | D160: TCI | E160: Accu | F160: 226.00 | H160: 292 | I160: 292.00 | J160: Target Achieved | K160: 66.00 | L160: 29.20% | M160: Successful | N160: 2015-10-09
A161: 38 | B161: 2015-09-07 | D161: Kalpataru Power Transmission Ltd | E161: Accu | F161: 232.50 | H161: 312.5 | I161: 310.00 | J161: Target Achieved | K161: 80.00 | L161: 34.41% | M161: Successful | N161: 2017-03-29
A162: 39 | B162: 2015-09-21 | D162: LLOYD ELECTRIC & ENG LTD | E162: Accu | F162: 196.50 | H162: 238 | I162: 238.00 | J162: Target Achieved | K162: 41.50 | L162: 21.12% | M162: Successful | N162: 2015-10-14
A163: 40 | B163: 2015-09-24 | D163: L&T Finance Holding | E163: Accu | F163: 65.00 | H163: 82 | I163: 82.00 | J163: Target Achieved | K163: 17.00 | L163: 26.15% | M163: Successful | N163: 2016-07-27
A164: 41 | B164: 2015-10-14 | D164: KEC International ltd | E164: Accu | F164: 144.00 | H164: 182.5 | I164: 181.00 | J164: Target Achieved | K164: 38.50 | L164: 26.74% | M164: Successful | N164: 2017-03-23
A165: 42 | B165: 2015-10-14 | D165: Gruh Finance | E165: Accu | F165: 264.00 | H165: 311 | I165: 311.00 | J165: Target Achieved | K165: 47.00 | L165: 17.80% | M165: Successful | N165: 2016-08-22
A166: 43 | B166: 2015-11-10 | D166: Pidilitind | E166: Buy | F166: 549.50 | H166: 630 | I166: 630.00 | J166: Target Achieved | K166: 80.50 | L166: 14.65% | M166: Successful | N166: 2016-02-19
A167: 44 | B167: 2015-12-04 | D167: Zensar Technology | E167: Accu | F167: 1027.50 | H167: 1315 | I167: 1250.00 | J167: Target Achieved | K167: 287.50 | L167: 27.98% | M167: Successful | N167: 2018-05-24
A168: 45 | B168: 2015-12-29 | D168: Vinati Organics Ltd | E168: Accu | F168: 465.00 | H168: 540 | I168: 540.00 | J168: Target Achieved | K168: 75.00 | L168: 16.13% | M168: Successful | N168: 2016-06-09
A169: 46 | B169: 2016-01-11 | D169: GSFC | E169: Buy | F169: 81.00 | H169: 110 | I169: 110.00 | J169: Target Achieved | K169: 29.00 | L169: 35.80% | M169: Successful | N169: 2017-01-10
A170: 47 | B170: 2016-01-13 | D170: SSWL | E170: Buy | F170: 417.50 | H170: 547 | I170: 535.00 | J170: Target Achieved | K170: 129.50 | L170: 31.02% | M170: Successful | N170: 2016-07-27
A171: 48 | B171: 2016-02-08 | D171: Persistent System Ltd | E171: Accu | F171: 650.00 | H171: 800 | I171: 800.00 | J171: Target Achieved | K171: 150.00 | L171: 23.08% | M171: Successful | N171: 2018-02-23
A172: 49 | B172: 2016-03-04 | D172: UPL | E172: Accu | F172: 437.50 | H172: 504.5 | I172: 522.00 | J172: Profit of Rs.67/- | K172: 67.00 | L172: 15.31% | M172: Successful | N172: 2016-04-20
A173: 50 | B173: 2016-03-09 | D173: Ashoka Buildcon Ltd | E173: Accu | F173: 189.50 | H173: 218 | I173: 218.00 | J173: Target Achieved | K173: 28.50 | L173: 15.04% | M173: Successful | N173: 2017-10-26
A174: 51 | B174: 2016-04-11 | D174: PTC INDIA FIN SERV LTD | E174: Accu | F174: 36.5 | H174: 15.85 | I174: 60.00 | J174: Loss of Rs.20.65/- | K174: -20.65 | L174: -56.58% | M174: Unsuccessful | N174: 2019-06-11
A175: 52 | B175: 2016-04-12 | D175: CAMLINFINE $ | E175: Accu | F175: 93.00 | H175: 149 | I175: 140.00 | J175: Profit of Rs 56/- | K175: 56.00 | L175: 60.22% | M175: Successful | N175: 2017-01-05
A176: 53 | B176: 2016-04-12 | D176: Greaves Cotton Ltd. | E176: Accu | F176: 130.00 | H176: 150 | I176: 150-155 | J176: Target Achieved | K176: 20.00 | L176: 15.38% | M176: Successful | N176: 2016-07-13
A177: 54 | B177: 2016-04-13 | D177: DHFL | E177: Accu | F177: 196.00 | H177: 299 | I177: 299.00 | J177: Target Achieved | K177: 103.00 | L177: 52.55% | M177: Successful | N177: 2016-09-07
A178: 55 | B178: 2016-04-13 | D178: Magma | E178: Accu | F178: 88.00 | H178: 103 | I178: 103.00 | J178: Target Achieved | K178: 15.00 | L178: 17.05% | M178: Successful | N178: 2016-06-09
A179: 56 | B179: 2016-05-02 | D179: KEC International ltd $ | E179: Accu | F179: 127.50 | H179: 148 | I179: 148-150 | J179: Target Achieved | K179: =H179-F179 -> 20.50 | L179: =K179/F179 -> 16.08% | M179: Successful | N179: 2016-07-13
A180: 57 | B180: 2016-05-03 | D180: Mindtree | E180: Accu | F180: 675.00 | H180: 815 | I180: 790-800 | J180: Target Achieved | K180: =H180-F180 -> 140.00 | L180: =K180/F180 -> 20.74% | M180: Successful | N180: 2018-02-23
A181: 58 | B181: 2016-06-01 | D181: Atulauto | E181: Accu | F181: 500 | H181: 232.50 | I181: 565-570 | J181: Loss of Rs.267.50 /- | K181: =H181-F181 -> -267.50 | L181: =K181/F181 -> -53.50% | M181: Unsuccessful | N181: 2019-09-27
A182: 59 | B182: 2016-06-06 | D182: TRITURBINE | E182: Accu | F182: 110.00 | H182: 126.5 | I182: 125.00 | J182: Profit of Rs.16.50/- | K182: =H182-F182 -> 16.50 | L182: =K182/F182 -> 15.00% | M182: Successful | N182: 2016-07-01
A183: 60 | B183: 2016-06-17 | D183: Pennar Industries Ltd | E183: Accu | F183: 44.00 | H183: 69.5 | I183: 69.50 | J183: Profit of Rs.25.50/- | K183: =H183-F183 -> 25.50 | L183: =K183/F183 -> 57.95% | M183: Successful | N183: 2017-08-30
A184: 61 | B184: 2016-06-28 | D184: EVEREADY | E184: Accu | F184: 262.50 | H184: 340 | I184: 333.00 | J184: Profit of Rs.77.50/- | K184: 77.50 | L184: 29.52% | M184: Successful | N184: 2017-10-09
A185: 62 | B185: 2016-06-28 | D185: FIEMIND | E185: Accu | F185: 840.00 | H185: 1230 | I185: 1230.00 | J185: Target Achieved | K185: 390.00 | L185: 46.43% | M185: Successful | N185: 2016-10-06
A186: 63 | B186: 2016-07-05 | D186: Bajaj Corp Ltd | E186: Accu | F186: 395 | H186: =(468.5+342.5)/2 -> 405.50 | I186: 510.00 | J186: Profit of Rs.10.50/- | K186: =H186-F186 -> 10.50 | L186: =K186/F186 -> 3% | M186: Neutral | N186: 2019-05-21
A187: 64 | B187: 2016-08-02 | D187: GPPL $ | E187: Buy | F187: =169.5-12.8 -> 156.7 | H187: 77.00 | I187: 198-200 | J187: Loss of Rs.79.7/- | K187: -79.70 | L187: -50.86% | M187: Unsuccessful | N187: 2019-02-26
A188: 65 | B188: 2016-08-04 | D188: WONDERLA HOLIDAYS LTD | E188: Accu | F188: 400 | H188: 305.00 | I188: 475.00 | J188: Loss of Rs.95/- | K188: -95.00 | L188: -23.75% | M188: Unsuccessful | N188: 2019-05-21
A189: 66 | B189: 2016-08-11 | D189: CAMLINFINE | E189: Accu | F189: 86.50 | H189: 130 | I189: 130.00 | J189: Profit of Rs.43.50/- | K189: 43.50 | L189: 50.29% | M189: Successful | N189: 2017-12-22
A190: 67 | B190: 2016-08-18 | D190: GRANULES | E190: Accu | F190: 133.5 | H190: 126.50 | I190: 178.00 | J190: Exit | K190: -7.00 | L190: -5.24% | M190: Unsuccessful | N190: 2016-09-02
A191: 68 | B191: 2016-08-31 | D191: VA TECH WABAG | E191: Accu | F191: 560.00 | H191: 725 | I191: 725.00 | J191: Target Achieved | K191: 165.00 | L191: 29.46% | M191: Successful | N191: 2016-03-27
A192: 69 | B192: 2016-09-01 | D192: SKIPPER LIMITED | E192: Accu | F192: 160.50 | H192: 210 | I192: 210.00 | J192: Target Achieved | K192: 49.50 | L192: 30.84% | M192: Successful | N192: 2017-05-16
A193: 70 | B193: 2016-10-03 | D193: IFBIND | E193: Accu | F193: 430.00 | H193: 596 | I193: 575.00 | J193: Profit of Rs.166/- | K193: 166.00 | L193: 38.60% | M193: Successful | N193: 2017-02-03
A194: 71 | B194: 2016-10-14 | D194: ASIANTILES | E194: Accu | F194: 280.00 | H194: 345 | I194: 345.00 | J194: Target Achieved | K194: =H194-F194 -> 65.00 | L194: =K194/F194 -> 23.21% | M194: Successful | N194: 2017-03-20
A195: 72 | B195: 2016-10-14 | D195: DEEPIND | E195: Accu | F195: 245.00 | H195: 325.5 | I195: 330.00 | J195: Profit of Rs.80.5/- | K195: 80.50 | L195: =K195/F195 -> 32.86% | M195: Successful | N195: 2017-02-03
A196: 73 | B196: 2016-10-17 | D196: DCBBANK | E196: Accu | F196: 125.00 | H196: 160 | I196: 160.00 | J196: Target Achieved | K196: 35.00 | L196: 28.00% | M196: Successful | N196: 2017-03-09
A197: 74 | B197: 2016-10-17 | D197: ORIENTREF | E197: Accu | F197: 114.00 | H197: 145 | I197: 145.00 | J197: Target Achieved | K197: 31.00 | L197: =K197/F197 -> 27.19% | M197: Successful | N197: 2017-05-04
A198: 75 | B198: 2016-10-17 | D198: GANECOS | E198: Accu | F198: 212.00 | H198: 280 | I198: 276.00 | J198: Profit of Rs.68/- | K198: 68.00 | L198: =K198/F198 -> 32.08% | M198: Successful | N198: 2017-05-03
A199: 76 | B199: 2016-11-04 | D199: NBCC | E199: Accu | F199: 155.00 | H199: 210 | I199: 210.00 | J199: Profit of Rs.55/- | K199: 55.00 | L199: =K199/F199 -> 35.48% | M199: Successful | N199: 2017-07-28
A200: 77 | B200: 2016-12-06 | D200: PRECAM | E200: Accu | F200: 150.5 | H200: 72.50 | I200: 174.00 | J200: Loss of Rs.78/- | K200: -78.00 | L200: -51.83% | M200: Unsuccessful | N200: 2018-08-21
A201: 78 | B201: 2016-12-08 | D201: INFRATEL | E201: Accu | F201: 380.00 | H201: 478 | I201: 468.00 | J201: Target Achieved | K201: =H201-F201 -> 98.00 | L201: =K201/F201 -> 25.79% | M201: Successful | N201: 2017-10-17
A202: 79 | B202: 2016-12-30 | D202: GODREJPROP | E202: Accu | F202: 305.00 | H202: 375 | I202: 375.00 | J202: Target Achieved | K202: =H202-F202 -> 70.00 | L202: =K202/F202 -> 22.95% | M202: Successful | N202: 2017-02-02
A203: 80 | B203: 2017-01-04 | D203: DEEPAKNTR | E203: Accu | F203: 99.50 | H203: 158 | I203: 158.00 | J203: Target Achieved | K203: =H203-F203 -> 58.50 | L203: =K203/F203 -> 58.79% | M203: Successful | N203: 2017-06-12
A204: 81 | B204: 2017-01-04 | D204: DEEPAKNTR | E204: Accu | F204: 99.50 | H204: 158 | I204: 158.00 | J204: Target Achieved | K204: 58.50 | L204: 58.79% | M204: Successful | N204: 2017-06-12
A205: 82 | B205: 2017-02-20 | D205: RECLTD | E205: Accu | F205: 140.50 | H205: 220 | I205: 220.00 | J205: Target Achieved | K205: =H205-F205 -> 79.50 | L205: =K205/F205 -> 56.58% | M205: Successful | N205: 2017-05-09
A206: 83 | B206: 2017-02-20 | D206: SUBROS | E206: Accu | F206: 202.50 | H206: 234 | I206: 234.00 | J206: Target Achieved | K206: 31.50 | L206: 15.56% | M206: Successful | N206: 2017-04-11
A207: 84 | B207: 2017-03-24 | D207: VRLLOG | E207: Accu | F207: 300.50 | H207: 417.5 | I207: 420.00 | J207: Profit of Rs.117/- | K207: =H207-F207 -> 117.00 | L207: =K207/F207 -> 38.94% | M207: Successful | N207: 2017-12-01
A208: 85 | B208: 2017-03-24 | D208: FIEMIND | E208: Accu | F208: 850.00 | H208: 1042.5 | I208: 1023.00 | J208: Profit of Rs 192.50/- | K208: 192.50 | L208: 22.65% | M208: Successful | N208: 2017-04-05
A209: 86 | B209: 2017-04-05 | D209: RATNAMANI | E209: Accu | F209: 785.00 | H209: 930 | I209: 920.00 | J209: Profit of Rs.145/- | K209: =H209-F209 -> 145.00 | L209: =K209/F209 -> 18.47% | M209: Successful | N209: 2017-08-29
A210: 87 | B210: 2017-04-06 | D210: ZEEMEDIA | E210: Accu | F210: 40 | H210: 13.10 | I210: 60.00 | J210: Loss of Rs.26.9/- | K210: -26.90 | L210: -67.25% | M210: Unsuccessful | N210: 2018-02-07
A211: 88 | B211: 2017-04-12 | D211: DABUR | E211: Accu | F211: 289.50 | H211: 354 | I211: 360.00 | J211: Profit of Rs.64.5/- | K211: =H211-F211 -> 64.50 | L211: =K211/F211 -> 22.28% | M211: Successful | N211: 2017-11-01
A212: 89 | B212: 2017-04-20 | D212: KPRMILL | E212: Accu | F212: 700.00 | H212: 840 | I212: 840.00 | J212: Profit of Rs.140/- | K212: 140.00 | L212: 20.00% | M212: Successful | N212: 2017-06-07
A213: 90 | B213: 2017-06-01 | D213: ESSELPACK | E213: Accu | F213: 130.00 | H213: 144.25 | I213: 170.00 | J213: Profit of Rs.14.25/- | K213: 14.25 | L213: 10.96% | M213: Successful | N213: 2019-07-29
A214: 91 | B214: 2017-06-15 | D214: KEI | E214: Accu | F214: 214.50 | H214: 262 | I214: 262.00 | J214: Profit of Rs.47.5/- | K214: 47.50 | L214: 22.14% | M214: Successful | N214: 2017-08-30
A215: 92 | B215: 2017-07-17 | D215: MAYURUNIQ | E215: Accu | F215: 370.00 | H215: 447.5 | I215: 450.00 | J215: Target Achieved | K215: 77.50 | L215: 20.95% | M215: Successful | N215: 2017-10-27
A216: 93 | B216: 2017-07-27 | D216: RAMCOCEM | E216: Accu | F216: 657.50 | H216: 825 | I216: 820.00 | J216: Target Achieved | K216: 167.50 | L216: 25.48% | M216: Successful | N216: 2017-12-21
A217: 94 | B217: 2017-08-17 | D217: FINPIPE | E217: Accu | F217: 605.00 | H217: 750 | I217: 750.00 | J217: Profit of Rs.145/- | K217: 145.00 | L217: 23.97% | M217: Successful | N217: 2017-10-19
A218: 95 | B218: 2017-09-01 | D218: SHK | E218: Accu | F218: 255 | H218: 217.25 | I218: 320.00 | J218: Loss of Rs.37.75/- | K218: -37.75 | L218: -15% | M218: Unsuccessful | N218: 2019-07-15
A219: 96 | B219: 2017-09-19 | D219: SKIPPER | E219: Accu | F219: 215.00 | H219: 258 | I219: 258.00 | J219: Target Achieved | K219: 43.00 | L219: 20.00% | M219: Successful | N219: 2017-11-01
A220: 97 | B220: 2017-09-19 | D220: SKIPPER | E220: Accu | F220: 215.00 | H220: 258 | I220: 258.00 | J220: Target Achieved | K220: 43.00 | L220: 20.00% | M220: Successful | N220: 2017-11-01
A221: 98 | B221: 2017-09-20 | D221: CAMLINFINE$ | E221: Accu | F221: 75.00 | H221: 90 | I221: 90.00 | J221: Profit of Rs.15.00/- | K221: =H221-F221 -> 15.00 | L221: =K221/F221 -> 20.00% | M221: Successful | N221: 2017-10-11
A222: 99 | B222: 2017-10-03 | D222: GNA | E222: Accu | F222: 315.00 | H222: 392 | I222: 384.00 | J222: Profit of Rs.77/- | K222: 77.00 | L222: 24.44% | M222: Successful | N222: 2017-10-09
A223: 100 | B223: 2017-10-05 | D223: NOCIL | E223: Accu | F223: 145.00 | H223: 179 | I223: 180.00 | J223: Profit of Rs.34/- | K223: 34.00 | L223: 23.45% | M223: Successful | N223: 2017-10-17
A224: 101 | B224: 2017-10-06 | D224: CENTURYPLY | E224: Accu | F224: 256.00 | H224: 323 | I224: 320.00 | J224: Target Achieved | K224: 67.00 | L224: 26.17% | M224: Successful | N224: 2017-11-28
A225: 102 | B225: 2017-10-09 | D225: EIHOTEL | E225: Accu | F225: 137.50 | H225: 184 | I225: 183.00 | J225: Profit of Rs.46.5/- | K225: 46.50 | L225: 33.82% | M225: Successful | N225: 2018-01-08
A226: 103 | B226: 2017-10-10 | D226: NRBBEARING | E226: Accu | F226: 125.50 | H226: 158 | I226: 155.00 | J226: Profit of Rs.32.5/- | K226: 32.50 | L226: 25.90% | M226: Successful | N226: 2017-11-28
A227: 104 | B227: 2017-10-10 | D227: BOROSIL | E227: Accu | F227: 895.00 | H227: 1122.5 | I227: 1078.00 | J227: Profit of Rs.227.5/- | K227: 227.50 | L227: 25.42% | M227: Successful | N227: 2018-01-17
A228: 105 | B228: 2017-10-12 | D228: CYIENT | E228: Accu | F228: 525.00 | H228: 629 | I228: 629.00 | J228: Target Achieved | K228: 104.00 | L228: 19.81% | M228: Successful | N228: 2018-01-19
... 50 more rows

Sheet Sheet2 (hidden)
A1: SYMBOL | B1: SERIES | C1: OPEN | D1: HIGH | E1: LOW | F1: CLOSE | G1: LAST | H1: PREVCLOSE | I1: TOTTRDQTY | J1: TOTTRDVAL | K1: TIMESTAMP | L1: TOTALTRADES | M1: ISIN | N1: ISIN
A2: 20MICRONS | B2: EQ | C2: 27.9 | D2: 29 | E2: 25.9 | F2: 26.2 | G2: 25.9 | H2: 27.5 | I2: 80527 | J2: 2193820.55 | K2: 2020-04-08 | L2: 1099 | M2: INE144J01027
A3: 21STCENMGM | B3: EQ | C3: 10.15 | D3: 10.5 | E3: 10.1 | F3: 10.4 | G3: 10.5 | H3: 10.3 | I3: 3205 | J3: 32728.25 | K3: 2020-04-08 | L3: 28 | M3: INE253B01015
A4: 3IINFOTECH | B4: EQ | C4: 1.35 | D4: 1.35 | E4: 1.2 | F4: 1.25 | G4: 1.25 | H4: 1.35 | I4: 2793301 | J4: 3578364.95 | K4: 2020-04-08 | L4: 46535 | M4: INE748C01020
A5: 3MINDIA | B5: EQ | C5: 18950 | D5: 19170 | E5: 18155.05 | F5: 18318.2 | G5: 18270 | H5: 18755.7 | I5: 9926 | J5: 183605811.2 | K5: 2020-04-08 | L5: 4453 | M5: INE470A01017
A6: 3PLAND | B6: EQ | C6: 3.7 | D6: 3.85 | E6: 3.7 | F6: 3.85 | G6: 3.85 | H6: 3.7 | I6: 406 | J6: 1557.85 | K6: 2020-04-08 | L6: 9 | M6: INE105C01023
A7: 5PAISA | B7: EQ | C7: 119.95 | D7: 134 | E7: 115 | F7: 123.35 | G7: 120.5 | H7: 116.4 | I7: 6500 | J7: 793277.05 | K7: 2020-04-08 | L7: 265 | M7: INE618L01018
A8: 63MOONS | B8: EQ | C8: 50.7 | D8: 55.45 | E8: 50.7 | F8: 53.7 | G8: 53.55 | H8: 50.7 | I8: 72221 | J8: 3890984.7 | K8: 2020-04-08 | L8: 3078 | M8: INE111B01023
A9: A2ZINFRA | B9: EQ | C9: 3.15 | D9: 3.25 | E9: 3.1 | F9: 3.15 | G9: 3.15 | H9: 3.15 | I9: 116011 | J9: 367778.85 | K9: 2020-04-08 | L9: 227 | M9: INE619I01012
A10: AARTIDRUGS | B10: EQ | C10: 627 | D10: 669.3 | E10: 605 | F10: 631.6 | G10: 625 | H10: 607.85 | I10: 75970 | J10: 48223549.15 | K10: 2020-04-08 | L10: 5720 | M10: INE767A01016
A11: AARTIIND | B11: EQ | C11: 839.95 | D11: 909.8 | E11: 818 | F11: 854.9 | G11: 864 | H11: 830.7 | I11: 477805 | J11: 419092386.9 | K11: 2020-04-08 | L11: 50045 | M11: INE769A01020
A12: AARVEEDEN | B12: EQ | C12: 8.95 | D12: 9.25 | E12: 7.85 | F12: 8.35 | G12: 8.45 | H12: 8.1 | I12: 9251 | J12: 77100.1 | K12: 2020-04-08 | L12: 94 | M12: INE273D01019
A13: AAVAS | B13: EQ | C13: 1101 | D13: 1183 | E13: 1101 | F13: 1135.2 | G13: 1137 | H13: 1142.35 | I13: 24179 | J13: 28073100.85 | K13: 2020-04-08 | L13: 3631 | M13: INE216P01012
A14: ABAN | B14: EQ | C14: 15.7 | D14: 16.2 | E14: 15.7 | F14: 16.2 | G14: 16.2 | H14: 15.45 | I14: 37609 | J14: 608439.6 | K14: 2020-04-08 | L14: 288 | M14: INE421A01028
A15: ABB | B15: EQ | C15: 935 | D15: 965 | E15: 910 | F15: 930.7 | G15: 928 | H15: 931.35 | I15: 87757 | J15: 82358527.9 | K15: 2020-04-08 | L15: 4699 | M15: INE117A01022
A16: ABBOTINDIA | B16: EQ | C16: 16799.45 | D16: 18250 | E16: 16750 | F16: 17481.1 | G16: 17488 | H16: 16699.7 | I16: 57991 | J16: 1023745502 | K16: 2020-04-08 | L16: 21022 | M16: INE358A01014
A17: ABCAPITAL | B17: EQ | C17: 45 | D17: 47.9 | E17: 44.25 | F17: 45.6 | G17: 45.7 | H17: 45.1 | I17: 1253267 | J17: 57952493.6 | K17: 2020-04-08 | L17: 7317 | M17: INE674K01013
A18: ABFRL | B18: EQ | C18: 148 | D18: 152.8 | E18: 146.75 | F18: 149 | G18: 148 | H18: 149.85 | I18: 416099 | J18: 62371769.1 | K18: 2020-04-08 | L18: 10148 | M18: INE647O01011
A19: ABSLNN50ET | B19: EQ | C19: 244 | D19: 248 | E19: 210 | F19: 235 | G19: 235 | H19: 244 | I19: 56 | J19: 12779.4 | K19: 2020-04-08 | L19: 13 | M19: INF209KB1B87
A20: ACC | B20: EQ | C20: 1000 | D20: 1029.9 | E20: 941.25 | F20: 956.05 | G20: 958 | H20: 1009.95 | I20: 2153627 | J20: 2101320389 | K20: 2020-04-08 | L20: 79728 | M20: INE012A01025
A21: ACCELYA | B21: EQ | C21: 874.3 | D21: 886 | E21: 862 | F21: 880.45 | G21: 879.95 | H21: 874.3 | I21: 10865 | J21: 9557704.55 | K21: 2020-04-08 | L21: 923 | M21: INE793A01012
A22: ACE | B22: EQ | C22: 32.75 | D22: 35.2 | E22: 32.55 | F22: 33.25 | G22: 33.35 | H22: 32.95 | I22: 244708 | J22: 8296578.4 | K22: 2020-04-08 | L22: 2925 | M22: INE731H01025
A23: ADANIENT | B23: EQ | C23: 136.85 | D23: 147.15 | E23: 134.9 | F23: 138.1 | G23: 137.5 | H23: 138.15 | I23: 3237290 | J23: 456492273.1 | K23: 2020-04-08 | L23: 23696 | M23: INE423A01024
A24: ADANIGAS | B24: EQ | C24: 93.9 | D24: 96.35 | E24: 90.5 | F24: 90.8 | G24: 90.65 | H24: 94 | I24: 1888606 | J24: 176837924.4 | K24: 2020-04-08 | L24: 14517 | M24: INE399L01023
A25: ADANIGREEN | B25: EQ | C25: 166.85 | D25: 166.85 | E25: 162 | F25: 166.45 | G25: 166.85 | H25: 158.95 | I25: 702014 | J25: 116248737 | K25: 2020-04-08 | L25: 10187 | M25: INE364U01010
A26: ADANIPORTS | B26: EQ | C26: 248 | D26: 255.85 | E26: 242.75 | F26: 250.85 | G26: 249.7 | H26: 248.1 | I26: 6897883 | J26: 1724830525 | K26: 2020-04-08 | L26: 81499 | M26: INE742F01042
A27: ADANIPOWER | B27: EQ | C27: 28.65 | D27: 31.15 | E27: 27.5 | F27: 28.95 | G27: 28.85 | H27: 28.8 | I27: 12308064 | J27: 361987996.9 | K27: 2020-04-08 | L27: 23153 | M27: INE814H01011
A28: ADANITRANS | B28: EQ | C28: 196.65 | D28: 202 | E28: 190 | F28: 193.65 | G28: 193.5 | H28: 198.3 | I28: 306320 | J28: 59783940.3 | K28: 2020-04-08 | L28: 4236 | M28: INE931S01010
A29: ADFFOODS | B29: EQ | C29: 187.85 | D29: 192.25 | E29: 184 | F29: 187.7 | G29: 187.3 | H29: 183.1 | I29: 22107 | J29: 4185556.05 | K29: 2020-04-08 | L29: 773 | M29: INE982B01019
A30: ADHUNIKIND | B30: EQ | C30: 13.3 | D30: 13.3 | E30: 13.3 | F30: 13.3 | G30: 13.3 | H30: 12.7 | I30: 5518 | J30: 73389.4 | K30: 2020-04-08 | L30: 21 | M30: INE452L01012
A31: ADLABS | B31: EQ | C31: 2.75 | D31: 2.85 | E31: 2.75 | F31: 2.85 | G31: 2.85 | H31: 2.75 | I31: 19360 | J31: 54965.35 | K31: 2020-04-08 | L31: 72 | M31: INE172N01012
A32: ADORWELD | B32: EQ | C32: 195.7 | D32: 201.9 | E32: 193.95 | F32: 195.1 | G32: 194.45 | H32: 196.75 | I32: 1438 | J32: 283768.75 | K32: 2020-04-08 | L32: 94 | M32: INE045A01017
A33: ADROITINFO | B33: EQ | C33: 5.5 | D33: 5.7 | E33: 5.45 | F33: 5.7 | G33: 5.7 | H33: 5.7 | I33: 691 | J33: 3857 | K33: 2020-04-08 | L33: 25 | M33: INE737B01033
A34: ADSL | B34: EQ | C34: 13.05 | D34: 13.2 | E34: 12.4 | F34: 12.5 | G34: 12.45 | H34: 12.7 | I34: 16203 | J34: 205559.25 | K34: 2020-04-08 | L34: 143 | M34: INE102I01027
A35: ADVANIHOTR | B35: EQ | C35: 30.1 | D35: 33 | E35: 30.1 | F35: 31.8 | G35: 31.5 | H35: 30.65 | I35: 5340 | J35: 169948.95 | K35: 2020-04-08 | L35: 193 | M35: INE199C01026
A36: ADVENZYMES | B36: EQ | C36: 140.2 | D36: 146.55 | E36: 137.95 | F36: 139.2 | G36: 139.75 | H36: 136.55 | I36: 77441 | J36: 11046136.15 | K36: 2020-04-08 | L36: 1990 | M36: INE837H01020
A37: AEGISCHEM | B37: EQ | C37: 150 | D37: 158.5 | E37: 147.1 | F37: 156.35 | G37: 156.05 | H37: 144.1 | I37: 175470 | J37: 27041093.9 | K37: 2020-04-08 | L37: 4268 | M37: INE208C01025
A38: AFFLE | B38: BE | C38: 1050 | D38: 1053.45 | E38: 1030 | F38: 1053.45 | G38: 1053.45 | H38: 1003.3 | I38: 8191 | J38: 8619737.5 | K38: 2020-04-08 | L38: 470 | M38: INE00WC01019
A39: AGARIND | B39: EQ | C39: 49.8 | D39: 52.85 | E39: 49.05 | F39: 52.25 | G39: 52.5 | H39: 49.95 | I39: 7826 | J39: 404450.25 | K39: 2020-04-08 | L39: 207 | M39: INE204E01012
A40: AGCNET | B40: BE | C40: 224.35 | D40: 235.55 | E40: 213.25 | F40: 234.7 | G40: 235.55 | H40: 224.35 | I40: 2524 | J40: 573063 | K40: 2020-04-08 | L40: 70 | M40: INE676A01019
A41: AGRITECH | B41: EQ | C41: 23.95 | D41: 23.95 | E41: 23.95 | F41: 23.95 | G41: 23.95 | H41: 22.85 | I41: 504 | J41: 12070.8 | K41: 2020-04-08 | L41: 18 | M41: INE449G01018
A42: AGROPHOS | B42: EQ | C42: 5.7 | D42: 5.7 | E42: 5.2 | F42: 5.7 | G42: 5.7 | H42: 5.45 | I42: 40596 | J42: 227201.55 | K42: 2020-04-08 | L42: 340 | M42: INE740V01019
A43: AHLEAST | B43: EQ | C43: 133.15 | D43: 141.85 | E43: 128.15 | F43: 131.55 | G43: 128.35 | H43: 131.5 | I43: 3303 | J43: 439718.1 | K43: 2020-04-08 | L43: 350 | M43: INE926K01017
A44: AHLUCONT | B44: EQ | C44: 145.95 | D44: 148 | E44: 136 | F44: 146.3 | G44: 148 | H44: 144.1 | I44: 153910 | J44: 21077811.2 | K44: 2020-04-08 | L44: 995 | M44: INE758C01029
A45: AHLWEST | B45: EQ | C45: 289.9 | D45: 289.9 | E45: 270.95 | F45: 275 | G45: 275 | H45: 277 | I45: 238 | J45: 67030 | K45: 2020-04-08 | L45: 91 | M45: INE915K01010
A46: AIAENG | B46: EQ | C46: 1259.45 | D46: 1291 | E46: 1229 | F46: 1255.85 | G46: 1268 | H46: 1249.9 | I46: 73842 | J46: 92756824.05 | K46: 2020-04-08 | L46: 10503 | M46: INE212H01026
A47: AIONJSW | B47: EQ | C47: 10.9 | D47: 11.1 | E47: 10.2 | F47: 11.1 | G47: 11.1 | H47: 10.6 | I47: 90347 | J47: 996144.95 | K47: 2020-04-08 | L47: 180 | M47: INE743C01021
A48: AIRAN | B48: EQ | C48: 9.8 | D48: 10.3 | E48: 9.75 | F48: 9.8 | G48: 9.75 | H48: 9.85 | I48: 1826 | J48: 18127.1 | K48: 2020-04-08 | L48: 25 | M48: INE645W01026
A49: AJANTPHARM | B49: EQ | C49: 1325.75 | D49: 1450 | E49: 1325 | F49: 1367.5 | G49: 1363 | H49: 1340.2 | I49: 166582 | J49: 233126032.5 | K49: 2020-04-08 | L49: 8748 | M49: INE031B01049
A50: AJMERA | B50: EQ | C50: 64.95 | D50: 70.5 | E50: 64.6 | F50: 68.4 | G50: 69.9 | H50: 64.65 | I50: 31766 | J50: 2167947.5 | K50: 2020-04-08 | L50: 909 | M50: INE298G01027
A51: AKASH | B51: BE | C51: 90 | D51: 90 | E51: 90 | F51: 90 | G51: 90 | H51: 90.95 | I51: 500 | J51: 45000 | K51: 2020-04-08 | L51: 1 | M51: INE737W01013
A52: AKSHARCHEM | B52: EQ | C52: 174.75 | D52: 177.6 | E52: 165.3 | F52: 169.7 | G52: 167.15 | H52: 165.25 | I52: 3130 | J52: 531878.25 | K52: 2020-04-08 | L52: 293 | M52: INE542B01011
A53: AKSHOPTFBR | B53: EQ | C53: 3.6 | D53: 3.6 | E53: 3.6 | F53: 3.6 | G53: 3.6 | H53: 3.45 | I53: 27750 | J53: 99900 | K53: 2020-04-08 | L53: 45 | M53: INE523B01011
A54: AKZOINDIA | B54: EQ | C54: 2084.95 | D54: 2133 | E54: 2030 | F54: 2047.9 | G54: 2040 | H54: 2086.75 | I54: 12835 | J54: 26789836.95 | K54: 2020-04-08 | L54: 2242 | M54: INE133A01011
A55: ALANKIT | B55: EQ | C55: 12.9 | D55: 12.9 | E55: 12.9 | F55: 12.9 | G55: 12.9 | H55: 12.3 | I55: 14247 | J55: 183786.3 | K55: 2020-04-08 | L55: 75 | M55: INE914E01040
A56: ALBERTDAVD | B56: EQ | C56: 338.8 | D56: 364.75 | E56: 338.8 | F56: 353.15 | G56: 352 | H56: 341.15 | I56: 24334 | J56: 8579416.55 | K56: 2020-04-08 | L56: 1220 | M56: INE155C01010
A57: ALCHEM | B57: BE | C57: 1.4 | D57: 1.4 | E57: 1.4 | F57: 1.4 | G57: 1.4 | H57: 1.35 | I57: 8608 | J57: 12051.2 | K57: 2020-04-08 | L57: 18 | M57: INE964B01033
A58: ALEMBICLTD | B58: EQ | C58: 43.7 | D58: 48.05 | E58: 39.7 | F58: 45.05 | G58: 45.5 | H58: 42.15 | I58: 695128 | J58: 31779132.75 | K58: 2020-04-08 | L58: 6991 | M58: INE426A01027
A59: ALICON | B59: EQ | C59: 195.95 | D59: 196 | E59: 181.05 | F59: 184.75 | G59: 184 | H59: 189.25 | I59: 3909 | J59: 722322.5 | K59: 2020-04-08 | L59: 123 | M59: INE062D01024
A60: ALKALI | B60: EQ | C60: 29.95 | D60: 31.75 | E60: 29.65 | F60: 31.75 | G60: 31.75 | H60: 28.9 | I60: 9346 | J60: 289594.95 | K60: 2020-04-08 | L60: 349 | M60: INE773I01017
A61: ALKEM | B61: EQ | C61: 2360 | D61: 2736.5 | E61: 2326.2 | F61: 2671.15 | G61: 2639 | H61: 2324.05 | I61: 371259 | J61: 967330461.6 | K61: 2020-04-08 | L61: 44106 | M61: INE540L01014
A62: ALKYLAMINE | B62: EQ | C62: 1236.6 | D62: 1398 | E62: 1222.2 | F62: 1334.05 | G62: 1334 | H62: 1232.45 | I62: 41501 | J62: 55061848.25 | K62: 2020-04-08 | L62: 3832 | M62: INE150B01021
A63: ALLCARGO | B63: EQ | C63: 63.05 | D63: 65.85 | E63: 63 | F63: 65.7 | G63: 65.85 | H63: 59.9 | I63: 300794 | J63: 19569467.05 | K63: 2020-04-08 | L63: 3098 | M63: INE418H01029
A64: ALLSEC | B64: EQ | C64: 131.7 | D64: 131.9 | E64: 129.35 | F64: 131.9 | G64: 131.9 | H64: 125.65 | I64: 1335 | J64: 175836.2 | K64: 2020-04-08 | L64: 37 | M64: INE835G01018
A65: ALOKINDS | B65: EQ | C65: 4.7 | D65: 4.7 | E65: 4.7 | F65: 4.7 | G65: 4.7 | H65: 4.5 | I65: 1698707 | J65: 7983922.9 | K65: 2020-04-08 | L65: 397 | M65: INE270A01029
A66: ALPA | B66: EQ | C66: 18.55 | D66: 20.15 | E66: 17.8 | F66: 20.15 | G66: 20.15 | H66: 16.8 | I66: 131233 | J66: 2593665.9 | K66: 2020-04-08 | L66: 858 | M66: INE385I01010
A67: ALPHAGEO | B67: EQ | C67: 126 | D67: 137.5 | E67: 126 | F67: 134.45 | G67: 133.3 | H67: 129.7 | I67: 22258 | J67: 2986986.5 | K67: 2020-04-08 | L67: 783 | M67: INE137C01018
A68: ALPSINDUS | B68: EQ | C68: 0.65 | D68: 0.75 | E68: 0.65 | F68: 0.75 | G68: 0.7 | H68: 0.7 | I68: 25369 | J68: 18108.8 | K68: 2020-04-08 | L68: 33 | M68: INE093B01015
A69: AMARAJABAT | B69: EQ | C69: 501.1 | D69: 513.65 | E69: 488.45 | F69: 502.05 | G69: 504.9 | H69: 501.1 | I69: 755312 | J69: 378881689.9 | K69: 2020-04-08 | L69: 18162 | M69: INE885A01032
A70: AMBER | B70: EQ | C70: 1189.9 | D70: 1199 | E70: 1072 | F70: 1108.05 | G70: 1109.25 | H70: 1189.9 | I70: 93512 | J70: 105805912.2 | K70: 2020-04-08 | L70: 14252 | M70: INE371P01015
A71: AMBIKCO | B71: EQ | C71: 539.25 | D71: 559 | E71: 531.05 | F71: 545.2 | G71: 536.4 | H71: 537.25 | I71: 3988 | J71: 2168349.4 | K71: 2020-04-08 | L71: 406 | M71: INE540G01014
A72: AMBUJACEM | B72: EQ | C72: 158.5 | D72: 159.5 | E72: 148.2 | F72: 149.7 | G72: 149.55 | H72: 159 | I72: 10421438 | J72: 1597618498 | K72: 2020-04-08 | L72: 84074 | M72: INE079A01024
A73: AMDIND | B73: EQ | C73: 9.9 | D73: 10.5 | E73: 9.5 | F73: 9.8 | G73: 9.55 | H73: 10 | I73: 17757 | J73: 177659.15 | K73: 2020-04-08 | L73: 707 | M73: INE005I01014
A74: AMJLAND | B74: EQ | C74: 14.3 | D74: 14.95 | E74: 13.7 | F74: 14 | G74: 14 | H74: 14.25 | I74: 12523 | J74: 176065.3 | K74: 2020-04-08 | L74: 106 | M74: INE606A01024
A75: AMRUTANJAN | B75: EQ | C75: 326 | D75: 352 | E75: 320.1 | F75: 345.45 | G75: 344.3 | H75: 324 | I75: 278725 | J75: 95586275.35 | K75: 2020-04-08 | L75: 9075 | M75: INE098F01031
A76: ANANTRAJ | B76: EQ | C76: 19.55 | D76: 20.15 | E76: 18.6 | F76: 18.75 | G76: 18.8 | H76: 19.55 | I76: 184694 | J76: 3509270.8 | K76: 2020-04-08 | L76: 1012 | M76: INE242C01024
A77: ANDHRACEMT | B77: EQ | C77: 1.8 | D77: 1.9 | E77: 1.7 | F77: 1.85 | G77: 1.9 | H77: 1.75 | I77: 105618 | J77: 196578.05 | K77: 2020-04-08 | L77: 227 | M77: INE666E01012
A78: ANDHRAPAP | B78: EQ | C78: 148.55 | D78: 148.55 | E78: 147 | F78: 148.55 | G78: 148.55 | H78: 141.5 | I78: 2622 | J78: 389210.05 | K78: 2020-04-08 | L78: 70 | M78: INE435A01028
A79: ANDHRSUGAR | B79: EQ | C79: 206.95 | D79: 212 | E79: 195 | F79: 206.05 | G79: 205.85 | H79: 203.55 | I79: 35494 | J79: 7286675.25 | K79: 2020-04-08 | L79: 1328 | M79: INE715B01013
A80: ANIKINDS | B80: EQ | C80: 7.25 | D80: 7.25 | E80: 6.65 | F80: 6.8 | G80: 6.8 | H80: 6.95 | I80: 4994 | J80: 34701.65 | K80: 2020-04-08 | L80: 35 | M80: INE087B01017
A81: ANKITMETAL | B81: EQ | C81: 0.4 | D81: 0.45 | E81: 0.35 | F81: 0.45 | G81: 0.45 | H81: 0.4 | I81: 64810 | J81: 27213.05 | K81: 2020-04-08 | L81: 29 | M81: INE106I01010
A82: ANSALAPI | B82: EQ | C82: 3.65 | D82: 3.8 | E82: 3.65 | F82: 3.8 | G82: 3.8 | H82: 3.65 | I82: 3974 | J82: 15023.75 | K82: 2020-04-08 | L82: 28 | M82: INE436A01026
A83: ANSALHSG | B83: EQ | C83: 3 | D83: 3 | E83: 2.8 | F83: 2.9 | G83: 2.9 | H83: 2.9 | I83: 31510 | J83: 91846.6 | K83: 2020-04-08 | L83: 64 | M83: INE880B01015
A84: ANUP | B84: EQ | C84: 304.75 | D84: 323.7 | E84: 303.1 | F84: 313.2 | G84: 313.05 | H84: 312.75 | I84: 11786 | J84: 3732090.6 | K84: 2020-04-08 | L84: 460 | M84: INE294Z01018
A85: APARINDS | B85: EQ | C85: 296.95 | D85: 300.35 | E85: 290.6 | F85: 295.85 | G85: 295.5 | H85: 296.05 | I85: 6051 | J85: 1806443.45 | K85: 2020-04-08 | L85: 427 | M85: INE372A01015
A86: APCL | B86: EQ | C86: 102.4 | D86: 102.4 | E86: 95.2 | F86: 97.35 | G86: 97 | H86: 98.5 | I86: 3739 | J86: 362867.6 | K86: 2020-04-08 | L86: 79 | M86: INE071F01012
A87: APCOTEXIND | B87: EQ | C87: 87.55 | D87: 94.85 | E87: 86 | F87: 87.5 | G87: 86.1 | H87: 87.45 | I87: 13115 | J87: 1175575.25 | K87: 2020-04-08 | L87: 323 | M87: INE116A01032
A88: APEX | B88: EQ | C88: 190 | D88: 201.65 | E88: 185.1 | F88: 201.65 | G88: 201.65 | H88: 183.35 | I88: 141806 | J88: 27768799.35 | K88: 2020-04-08 | L88: 3293 | M88: INE346W01013
A89: APLAPOLLO | B89: EQ | C89: 1245 | D89: 1274 | E89: 1220 | F89: 1259.5 | G89: 1258 | H89: 1231.75 | I89: 21152 | J89: 26442272.1 | K89: 2020-04-08 | L89: 3032 | M89: INE702C01019
A90: APLLTD | B90: EQ | C90: 630 | D90: 702.65 | E90: 615.5 | F90: 640.85 | G90: 626 | H90: 610.2 | I90: 540272 | J90: 353935242.1 | K90: 2020-04-08 | L90: 30323 | M90: INE901L01018
A91: APOLLO | B91: EQ | C91: 45.5 | D91: 56 | E91: 45.25 | F91: 54.3 | G91: 53.55 | H91: 46.7 | I91: 68951 | J91: 3631629.4 | K91: 2020-04-08 | L91: 1694 | M91: INE713T01010
A92: APOLLOHOSP | B92: EQ | C92: 1225.9 | D92: 1338.4 | E92: 1211 | F92: 1263.95 | G92: 1261 | H92: 1225.95 | I92: 2070270 | J92: 2654141027 | K92: 2020-04-08 | L92: 156926 | M92: INE437A01024
A93: APOLLOPIPE | B93: EQ | C93: 279.5 | D93: 304 | E93: 262.95 | F93: 281.3 | G93: 281 | H93: 280.1 | I93: 12940 | J93: 3607793.25 | K93: 2020-04-08 | L93: 543 | M93: INE126J01016
A94: APOLLOTYRE | B94: EQ | C94: 83.5 | D94: 87.15 | E94: 82 | F94: 83.4 | G94: 83.15 | H94: 83.5 | I94: 2950752 | J94: 248872037.1 | K94: 2020-04-08 | L94: 19408 | M94: INE438A01022
A95: APOLSINHOT | B95: EQ | C95: 460.35 | D95: 460.4 | E95: 421.1 | F95: 439.8 | G95: 436 | H95: 438.6 | I95: 694 | J95: 306874.65 | K95: 2020-04-08 | L95: 84 | M95: INE451F01024
A96: APTECHT | B96: EQ | C96: 85.3 | D96: 87.7 | E96: 83.55 | F96: 84.6 | G96: 84.3 | H96: 85.3 | I96: 106721 | J96: 9133416.7 | K96: 2020-04-08 | L96: 2385 | M96: INE266F01018
A97: ARCHIDPLY | B97: EQ | C97: 16.55 | D97: 17 | E97: 16.45 | F97: 16.85 | G97: 16.95 | H97: 16.75 | I97: 4083 | J97: 68300.2 | K97: 2020-04-08 | L97: 63 | M97: INE877I01016
A98: ARCHIES | B98: EQ | C98: 9.4 | D98: 9.5 | E98: 9 | F98: 9.05 | G98: 9.15 | H98: 9.45 | I98: 24343 | J98: 224667.6 | K98: 2020-04-08 | L98: 150 | M98: INE731A01020
A99: ARCOTECH | B99: EQ | C99: 0.9 | D99: 0.95 | E99: 0.85 | F99: 0.9 | G99: 0.9 | H99: 0.9 | I99: 51482 | J99: 47500.05 | K99: 2020-04-08 | L99: 77 | M99: INE574I01035
A100: ARENTERP | B100: EQ | C100: 12.65 | D100: 12.65 | E100: 12.05 | F100: 12.05 | G100: 12.05 | H100: 12.65 | I100: 63 | J100: 765.15 | K100: 2020-04-08 | L100: 4 | M100: INE610C01014
A101: ARIES | B101: EQ | C101: 44.4 | D101: 47.6 | E101: 42.65 | F101: 43.6 | G101: 44 | H101: 44.4 | I101: 50875 | J101: 2250478.25 | K101: 2020-04-08 | L101: 1080 | M101: INE298I01015
A102: ARIHANT | B102: EQ | C102: 12.05 | D102: 12.55 | E102: 11.6 | F102: 12.15 | G102: 12.5 | H102: 12.05 | I102: 964 | J102: 11418.15 | K102: 2020-04-08 | L102: 27 | M102: INE413D01011
A103: ARIHANTSUP | B103: EQ | C103: 21.4 | D103: 21.45 | E103: 19.45 | F103: 19.5 | G103: 21 | H103: 20.45 | I103: 4362 | J103: 85414.05 | K103: 2020-04-08 | L103: 80 | M103: INE643K01018
A104: ARMANFIN | B104: EQ | C104: 340 | D104: 373.2 | E104: 337.7 | F104: 373.05 | G104: 373.2 | H104: 355.45 | I104: 50867 | J104: 18465582.65 | K104: 2020-04-08 | L104: 911 | M104: INE109C01017
A105: AROGRANITE | B105: EQ | C105: 21.95 | D105: 24.5 | E105: 20.85 | F105: 24.2 | G105: 24.5 | H105: 22.35 | I105: 26052 | J105: 602565.3 | K105: 2020-04-08 | L105: 183 | M105: INE210C01013
A106: ARROWGREEN | B106: BE | C106: 33.55 | D106: 35 | E106: 33.45 | F106: 33.45 | G106: 33.45 | H106: 33.85 | I106: 5735 | J106: 195198.5 | K106: 2020-04-08 | L106: 32 | M106: INE570D01018
A107: ARSHIYA | B107: EQ | C107: 7.1 | D107: 7.6 | E107: 7.1 | F107: 7.6 | G107: 7.6 | H107: 7.25 | I107: 23178 | J107: 175819.45 | K107: 2020-04-08 | L107: 63 | M107: INE968D01022
A108: ARSSINFRA | B108: EQ | C108: 11.25 | D108: 12.3 | E108: 10.9 | F108: 11.8 | G108: 11.85 | H108: 11.15 | I108: 16388 | J108: 189874.85 | K108: 2020-04-08 | L108: 107 | M108: INE267I01010
A109: ARTEMISMED | B109: EQ | C109: 140 | D109: 147 | E109: 136.3 | F109: 138 | G109: 137 | H109: 139.15 | I109: 1729 | J109: 245138.4 | K109: 2020-04-08 | L109: 31 | M109: INE025R01013
A110: ARVIND | B110: EQ | C110: 23.5 | D110: 24.4 | E110: 22.45 | F110: 23.75 | G110: 23.75 | H110: 22.2 | I110: 2137547 | J110: 50521243.45 | K110: 2020-04-08 | L110: 7057 | M110: INE034A01011
A111: ARVINDFASN | B111: EQ | C111: 139.8 | D111: 141.9 | E111: 132.2 | F111: 133.8 | G111: 134.75 | H111: 139.85 | I111: 46445 | J111: 6387304.5 | K111: 2020-04-08 | L111: 1243 | M111: INE955V01021
A112: ARVSMART | B112: EQ | C112: 64.05 | D112: 67 | E112: 64 | F112: 65.4 | G112: 65.5 | H112: 65 | I112: 10000 | J112: 656036.65 | K112: 2020-04-08 | L112: 320 | M112: INE034S01021
A113: ASAHIINDIA | B113: EQ | C113: 152 | D113: 158 | E113: 147.05 | F113: 155.5 | G113: 152.35 | H113: 153.2 | I113: 5605 | J113: 858978.65 | K113: 2020-04-08 | L113: 218 | M113: INE439A01020
A114: ASAHISONG | B114: EQ | C114: 80.8 | D114: 88.95 | E114: 80.05 | F114: 85.25 | G114: 86 | H114: 80.9 | I114: 8055 | J114: 692533.2 | K114: 2020-04-08 | L114: 314 | M114: INE228I01012
A115: ASAL | B115: EQ | C115: 14.8 | D115: 14.9 | E115: 14.5 | F115: 14.5 | G115: 14.5 | H115: 14.25 | I115: 8037 | J115: 118819.3 | K115: 2020-04-08 | L115: 36 | M115: INE900C01027
A116: ASALCBR | B116: EQ | C116: 164.9 | D116: 175 | E116: 158 | F116: 165.7 | G116: 165 | H116: 162.9 | I116: 31033 | J116: 5116102.05 | K116: 2020-04-08 | L116: 970 | M116: INE073G01016
A117: ASHAPURMIN | B117: EQ | C117: 22.1 | D117: 22.1 | E117: 22.05 | F117: 22.1 | G117: 22.1 | H117: 21.05 | I117: 8770 | J117: 193792 | K117: 2020-04-08 | L117: 43 | M117: INE348A01023
A118: ASHIANA | B118: EQ | C118: 52.9 | D118: 52.9 | E118: 49.1 | F118: 49.95 | G118: 50 | H118: 50 | I118: 69042 | J118: 3480534.3 | K118: 2020-04-08 | L118: 621 | M118: INE365D01021
A119: ASHIMASYN | B119: EQ | C119: 3.9 | D119: 3.9 | E119: 3.9 | F119: 3.9 | G119: 3.9 | H119: 3.55 | I119: 28914 | J119: 112764.6 | K119: 2020-04-08 | L119: 46 | M119: INE440A01010
A120: ASHOKA | B120: EQ | C120: 38.35 | D120: 42.7 | E120: 37.8 | F120: 42.7 | G120: 42.7 | H120: 38.85 | I120: 1577514 | J120: 65134101.3 | K120: 2020-04-08 | L120: 8475 | M120: INE442H01029
A121: ASHOKLEY | B121: EQ | C121: 39.85 | D121: 47.8 | E121: 38.75 | F121: 43.85 | G121: 43.6 | H121: 39.85 | I121: 76817768 | J121: 3355417806 | K121: 2020-04-08 | L121: 169889 | M121: INE208A01029
A122: ASIANHOTNR | B122: EQ | C122: 70 | D122: 71.8 | E122: 66 | F122: 71.55 | G122: 71.5 | H122: 65.4 | I122: 4982 | J122: 349215.55 | K122: 2020-04-08 | L122: 198 | M122: INE363A01022
A123: ASIANPAINT | B123: EQ | C123: 1623.8 | D123: 1687.8 | E123: 1600 | F123: 1608.95 | G123: 1608 | H123: 1623.8 | I123: 2382216 | J123: 3911658954 | K123: 2020-04-08 | L123: 101146 | M123: INE021A01026
A124: ASIANTILES | B124: EQ | C124: 156 | D124: 162.9 | E124: 155 | F124: 157.6 | G124: 156.5 | H124: 157.65 | I124: 19917 | J124: 3151924.4 | K124: 2020-04-08 | L124: 431 | M124: INE022I01019
A125: ASPINWALL | B125: EQ | C125: 93 | D125: 98.7 | E125: 83.55 | F125: 93 | G125: 93 | H125: 90 | I125: 413 | J125: 38837.15 | K125: 2020-04-08 | L125: 20 | M125: INE991I01015
A126: ASTEC | B126: EQ | C126: 450.65 | D126: 465.05 | E126: 440 | F126: 460.05 | G126: 460.3 | H126: 443.9 | I126: 5283 | J126: 2392645.5 | K126: 2020-04-08 | L126: 494 | M126: INE563J01010
A127: ASTERDM | B127: EQ | C127: 96 | D127: 103.5 | E127: 93.8 | F127: 99.25 | G127: 99 | H127: 94.55 | I127: 996205 | J127: 98978623.7 | K127: 2020-04-08 | L127: 4570 | M127: INE914M01019
A128: ASTRAL | B128: EQ | C128: 962 | D128: 986 | E128: 952 | F128: 955.45 | G128: 954 | H128: 973.85 | I128: 59212 | J128: 57381672.65 | K128: 2020-04-08 | L128: 7623 | M128: INE006I01046
A129: ASTRAMICRO | B129: EQ | C129: 56.9 | D129: 62.55 | E129: 55.85 | F129: 61.7 | G129: 62.55 | H129: 56.9 | I129: 253097 | J129: 15146656.55 | K129: 2020-04-08 | L129: 1961 | M129: INE386C01029
A130: ASTRAZEN | B130: EQ | C130: 2700 | D130: 2830 | E130: 2544 | F130: 2561.6 | G130: 2549 | H130: 2693.65 | I130: 38510 | J130: 104113109 | K130: 2020-04-08 | L130: 6647 | M130: INE203A01020
A131: ASTRON | B131: EQ | C131: 26.15 | D131: 29.9 | E131: 25.3 | F131: 27.5 | G131: 27.8 | H131: 27.65 | I131: 61618 | J131: 1693449.45 | K131: 2020-04-08 | L131: 1743 | M131: INE646X01014
A132: ATFL | B132: EQ | C132: 479.65 | D132: 499 | E132: 475 | F132: 481.55 | G132: 475 | H132: 479.65 | I132: 6104 | J132: 2975754.9 | K132: 2020-04-08 | L132: 411 | M132: INE209A01019
A133: ATLANTA | B133: EQ | C133: 3 | D133: 3.15 | E133: 3 | F133: 3.15 | G133: 3.15 | H133: 3 | I133: 8624 | J133: 26936.35 | K133: 2020-04-08 | L133: 28 | M133: INE285H01022
A134: ATLASCYCLE | B134: BE | C134: 30 | D134: 31.5 | E134: 29.5 | F134: 30.7 | G134: 30.7 | H134: 30 | I134: 2000 | J134: 60118.65 | K134: 2020-04-08 | L134: 42 | M134: INE446A01025
A135: ATNINTER | B135: BE | C135: 0.1 | D135: 0.1 | E135: 0.1 | F135: 0.1 | G135: 0.1 | H135: 0.1 | I135: 12716 | J135: 1271.6 | K135: 2020-04-08 | L135: 5 | M135: INE803A01027
A136: ATUL | B136: EQ | C136: 3930 | D136: 4005 | E136: 3908.35 | F136: 3951.85 | G136: 3954.95 | H136: 3927.1 | I136: 76768 | J136: 304824820.4 | K136: 2020-04-08 | L136: 11635 | M136: INE100A01010
A137: ATULAUTO | B137: EQ | C137: 151.35 | D137: 154.05 | E137: 146.8 | F137: 153.45 | G137: 153.95 | H137: 146.75 | I137: 13699 | J137: 2093863.3 | K137: 2020-04-08 | L137: 810 | M137: INE951D01028
A138: AUBANK | B138: EQ | C138: 461.2 | D138: 490 | E138: 457 | F138: 480.3 | G138: 473 | H138: 478.4 | I138: 1791057 | J138: 837589012.6 | K138: 2020-04-08 | L138: 59410 | M138: INE949L01017
A139: AURIONPRO | B139: EQ | C139: 41.75 | D139: 43.7 | E139: 40 | F139: 42.9 | G139: 42.9 | H139: 40.95 | I139: 8828 | J139: 376649.05 | K139: 2020-04-08 | L139: 213 | M139: INE132H01018
A140: AUROPHARMA | B140: EQ | C140: 432.5 | D140: 476.3 | E140: 426.3 | F140: 438.15 | G140: 438.9 | H140: 445.7 | I140: 13186213 | J140: 5925576015 | K140: 2020-04-08 | L140: 205238 | M140: INE406A01037
A141: AUSOMENT | B141: EQ | C141: 26.1 | D141: 26.1 | E141: 26.1 | F141: 26.1 | G141: 26.1 | H141: 25 | I141: 100 | J141: 2610 | K141: 2020-04-08 | L141: 1 | M141: INE218C01016
A142: AUTOAXLES | B142: EQ | C142: 413 | D142: 423.5 | E142: 398.05 | F142: 413.45 | G142: 416 | H142: 399.3 | I142: 5448 | J142: 2244823.45 | K142: 2020-04-08 | L142: 638 | M142: INE449A01011
A143: AUTOIND | B143: EQ | C143: 11.3 | D143: 11.35 | E143: 11.1 | F143: 11.35 | G143: 11.35 | H143: 10.85 | I143: 9358 | J143: 105383.05 | K143: 2020-04-08 | L143: 68 | M143: INE718H01014
A144: AUTOLITIND | B144: EQ | C144: 13.2 | D144: 14.4 | E144: 13.2 | F144: 13.8 | G144: 13.9 | H144: 13.75 | I144: 4699 | J144: 65525.8 | K144: 2020-04-08 | L144: 68 | M144: INE448A01013
A145: AVADHSUGAR | B145: EQ | C145: 143.55 | D145: 143.55 | E145: 143.55 | F145: 143.55 | G145: 143.55 | H145: 136.75 | I145: 13174 | J145: 1891127.7 | K145: 2020-04-08 | L145: 157 | M145: INE349W01017
A146: AVANTIFEED | B146: EQ | C146: 311 | D146: 341.55 | E146: 310.5 | F146: 341.35 | G146: 341.55 | H146: 310.5 | I146: 748404 | J146: 246839085.1 | K146: 2020-04-08 | L146: 23272 | M146: INE871C01038
A147: AVTNPL | B147: EQ | C147: 25.45 | D147: 27.8 | E147: 24.25 | F147: 27.25 | G147: 27 | H147: 25.05 | I147: 213540 | J147: 5643644.4 | K147: 2020-04-08 | L147: 1601 | M147: INE488D01021
A148: AXISBANK | B148: EQ | C148: 383.75 | D148: 427.7 | E148: 373.5 | F148: 391.35 | G148: 391.4 | H148: 388.85 | I148: 64930772 | J148: 2.575974593e+10 | K148: 2020-04-08 | L148: 769506 | M148: INE238A01034
A149: AXISCADES | B149: EQ | C149: 30.9 | D149: 31.5 | E149: 28.65 | F149: 31.4 | G149: 31.5 | H149: 30 | I149: 39670 | J149: 1232336.75 | K149: 2020-04-08 | L149: 621 | M149: INE555B01013
A150: AXISGOLD | B150: EQ | C150: 3969.9 | D150: 3989 | E150: 3925 | F150: 3973.3 | G150: 3983 | H150: 3919.55 | I150: 701 | J150: 2769851.6 | K150: 2020-04-08 | L150: 206 | M150: INF846K01347
A151: AXISNIFTY | B151: EQ | C151: 1000.01 | D151: 1000.01 | E151: 1000.01 | F151: 1000.01 | G151: 1000.01 | H151: 1007 | I151: 2 | J151: 2000.02 | K151: 2020-04-08 | L151: 1 | M151: INF846K01ZL0
A152: AYMSYNTEX | B152: EQ | C152: 15.5 | D152: 16.8 | E152: 15.5 | F152: 16.5 | G152: 16.5 | H152: 16.1 | I152: 2637 | J152: 43548.55 | K152: 2020-04-08 | L152: 26 | M152: INE193B01039
A153: BAFNAPH | B153: EQ | C153: 16.05 | D153: 16.05 | E153: 16.05 | F153: 16.05 | G153: 16.05 | H153: 15.3 | I153: 272 | J153: 4365.6 | K153: 2020-04-08 | L153: 8 | M153: INE878I01022
A154: BAGFILMS | B154: BE | C154: 1.75 | D154: 1.8 | E154: 1.75 | F154: 1.8 | G154: 1.8 | H154: 1.75 | I154: 3861 | J154: 6912.3 | K154: 2020-04-08 | L154: 20 | M154: INE116D01028
A155: BAJAJ-AUTO | B155: EQ | C155: 2180 | D155: 2383.45 | E155: 2168.55 | F155: 2241.7 | G155: 2260 | H155: 2280.05 | I155: 840875 | J155: 1933266167 | K155: 2020-04-08 | L155: 59866 | M155: INE917I01010
A156: BAJAJCON | B156: EQ | C156: 136 | D156: 148.65 | E156: 135.1 | F156: 137.95 | G156: 138 | H156: 138.15 | I156: 1031633 | J156: 145711259.1 | K156: 2020-04-08 | L156: 26102 | M156: INE933K01021
A157: BAJAJELEC | B157: EQ | C157: 277.3 | D157: 294.5 | E157: 277.3 | F157: 287.8 | G157: 289 | H157: 277.3 | I157: 58251 | J157: 16797537.55 | K157: 2020-04-08 | L157: 3821 | M157: INE193E01025
A158: BAJAJFINSV | B158: EQ | C158: 4575 | D158: 4950 | E158: 4537.8 | F158: 4608.5 | G158: 4604 | H158: 4724.9 | I158: 1113057 | J158: 5259493342 | K158: 2020-04-08 | L158: 158158 | M158: INE918I01018
A159: BAJAJHIND | B159: EQ | C159: 3.05 | D159: 3.05 | E159: 3.05 | F159: 3.05 | G159: 3.05 | H159: 2.95 | I159: 80900 | J159: 246745 | K159: 2020-04-08 | L159: 110 | M159: INE306A01021
A160: BAJAJHLDNG | B160: EQ | C160: 2027.95 | D160: 2073.85 | E160: 1925 | F160: 2024.75 | G160: 2025 | H160: 1978.9 | I160: 25453 | J160: 51363834.45 | K160: 2020-04-08 | L160: 6198 | M160: INE118A01012
A161: BAJFINANCE | B161: EQ | C161: 2184 | D161: 2374 | E161: 2144.15 | F161: 2332.9 | G161: 2329 | H161: 2253.35 | I161: 9109346 | J161: 2.088826331e+10 | K161: 2020-04-08 | L161: 516967 | M161: INE296A01024
A162: BALAJITELE | B162: EQ | C162: 43 | D162: 45 | E162: 40.8 | F162: 41.9 | G162: 42.15 | H162: 43.75 | I162: 194912 | J162: 8414452.4 | K162: 2020-04-08 | L162: 1677 | M162: INE794B01026
A163: BALAMINES | B163: EQ | C163: 277 | D163: 296 | E163: 260.4 | F163: 283.65 | G163: 284.45 | H163: 271.2 | I163: 70594 | J163: 20058887.5 | K163: 2020-04-08 | L163: 2337 | M163: INE050E01027
A164: BALAXI | B164: BE | C164: 82.7 | D164: 82.7 | E164: 75.05 | F164: 79.9 | G164: 79.9 | H164: 79 | I164: 1047 | J164: 78761.9 | K164: 2020-04-08 | L164: 24 | M164: INE618N01014
A165: BALKRISHNA | B165: EQ | C165: 8.6 | D165: 8.8 | E165: 8.35 | F165: 8.8 | G165: 8.8 | H165: 8.4 | I165: 7860 | J165: 67624.35 | K165: 2020-04-08 | L165: 49 | M165: INE875R01011
A166: BALKRISIND | B166: EQ | C166: 822 | D166: 862 | E166: 815 | F166: 821.35 | G166: 818.3 | H166: 823.55 | I166: 444079 | J166: 371870250.3 | K166: 2020-04-08 | L166: 24462 | M166: INE787D01026
A167: BALLARPUR | B167: EQ | C167: 0.4 | D167: 0.4 | E167: 0.3 | F167: 0.35 | G167: 0.35 | H167: 0.35 | I167: 9769871 | J167: 3419941.15 | K167: 2020-04-08 | L167: 514 | M167: INE294A01037
A168: BALMLAWRIE | B168: EQ | C168: 84 | D168: 87.9 | E168: 81 | F168: 84.75 | G168: 85.65 | H168: 85.5 | I168: 202053 | J168: 17357055.25 | K168: 2020-04-08 | L168: 3105 | M168: INE164A01016
A169: BALPHARMA | B169: EQ | C169: 38.9 | D169: 41.7 | E169: 38.9 | F169: 41.7 | G169: 41.7 | H169: 37.95 | I169: 40933 | J169: 1688199.5 | K169: 2020-04-08 | L169: 518 | M169: INE083D01012
A170: BALRAMCHIN | B170: EQ | C170: 123.85 | D170: 126.4 | E170: 123 | F170: 126.4 | G170: 126.4 | H170: 120.4 | I170: 642515 | J170: 80884980.2 | K170: 2020-04-08 | L170: 7125 | M170: INE119A01028
A171: BANARBEADS | B171: EQ | C171: 30.25 | D171: 32.5 | E171: 29.6 | F171: 29.75 | G171: 29.75 | H171: 31.5 | I171: 160 | J171: 4873.85 | K171: 2020-04-08 | L171: 26 | M171: INE655B01011
A172: BANARISUG | B172: EQ | C172: 900 | D172: 925 | E172: 880 | F172: 886.1 | G172: 880 | H172: 893.1 | I172: 410 | J172: 368979.1 | K172: 2020-04-08 | L172: 94 | M172: INE459A01010
A173: BANCOINDIA | B173: EQ | C173: 65.45 | D173: 67.5 | E173: 64.1 | F173: 65.95 | G173: 66 | H173: 65.45 | I173: 40062 | J173: 2654130.6 | K173: 2020-04-08 | L173: 1013 | M173: INE213C01025
A174: BANDHANBNK | B174: EQ | C174: 167.95 | D174: 209.05 | E174: 167.5 | F174: 193.75 | G174: 195.25 | H174: 167.25 | I174: 30692919 | J174: 5833285762 | K174: 2020-04-08 | L174: 332020 | M174: INE545U01014
A175: BANG | B175: EQ | C175: 12.05 | D175: 13.1 | E175: 11.9 | F175: 13.1 | G175: 13.1 | H175: 12.5 | I175: 1590 | J175: 20489 | K175: 2020-04-08 | L175: 31 | M175: INE863I01016
A176: BANKBARODA | B176: EQ | C176: 48 | D176: 51.5 | E176: 47.3 | F176: 48.35 | G176: 48.45 | H176: 48.15 | I176: 27159204 | J176: 1340103716 | K176: 2020-04-08 | L176: 77070 | M176: INE028A01039
A177: BANKBEES | B177: EQ | C177: 190 | D177: 205.4 | E177: 186.06 | F177: 191.28 | G177: 191.4 | H177: 192.12 | I177: 676832 | J177: 131368353.2 | K177: 2020-04-08 | L177: 10023 | M177: INF204KB15I9
A178: BANKINDIA | B178: EQ | C178: 32.7 | D178: 34.75 | E178: 32.5 | F178: 33.35 | G178: 33.25 | H178: 32.95 | I178: 1236627 | J178: 41574499.75 | K178: 2020-04-08 | L178: 6257 | M178: INE084A01016
A179: BANSWRAS | B179: EQ | C179: 77.4 | D179: 77.4 | E179: 70.2 | F179: 71.15 | G179: 70.2 | H179: 73.75 | I179: 22922 | J179: 1667255.55 | K179: 2020-04-08 | L179: 137 | M179: INE629D01012
A180: BASF | B180: EQ | C180: 1154 | D180: 1154 | E180: 1105 | F180: 1119.95 | G180: 1120.5 | H180: 1138.25 | I180: 26139 | J180: 29425244.35 | K180: 2020-04-08 | L180: 2640 | M180: INE373A01013
A181: BASML | B181: EQ | C181: 74.05 | D181: 84 | E181: 74.05 | F181: 80 | G181: 80 | H181: 78.7 | I181: 1648 | J181: 135366.45 | K181: 2020-04-08 | L181: 154 | M181: INE186H01014
A182: BATAINDIA | B182: EQ | C182: 1246.5 | D182: 1339 | E182: 1228 | F182: 1240.05 | G182: 1238.95 | H182: 1246.4 | I182: 1346088 | J182: 1726485633 | K182: 2020-04-08 | L182: 66274 | M182: INE176A01028
A183: BAYERCROP | B183: EQ | C183: 3500 | D183: 3946.6 | E183: 3499.3 | F183: 3818.15 | G183: 3772.15 | H183: 3510 | I183: 32833 | J183: 125437264 | K183: 2020-04-08 | L183: 6737 | M183: INE462A01022
A184: BBL | B184: EQ | C184: 590 | D184: 621.25 | E184: 590 | F184: 613.05 | G184: 621.25 | H184: 589.55 | I184: 9335 | J184: 5684085.45 | K184: 2020-04-08 | L184: 804 | M184: INE464A01028
A185: BBTC | B185: EQ | C185: 810 | D185: 854.3 | E185: 774 | F185: 784.2 | G185: 787.95 | H185: 788.4 | I185: 76612 | J185: 62014517.65 | K185: 2020-04-08 | L185: 5281 | M185: INE050A01025
A186: BCG | B186: EQ | C186: 3.6 | D186: 3.65 | E186: 3.55 | F186: 3.65 | G186: 3.65 | H186: 3.5 | I186: 305718 | J186: 1113234.95 | K186: 2020-04-08 | L186: 149 | M186: INE425B01027
A187: BCP | B187: EQ | C187: 10.75 | D187: 10.75 | E187: 10.5 | F187: 10.75 | G187: 10.75 | H187: 10.25 | I187: 8192 | J187: 87934.6 | K187: 2020-04-08 | L187: 28 | M187: INE905P01028
A188: BDL | B188: EQ | C188: 191 | D188: 229 | E188: 188.2 | F188: 218.2 | G188: 216.4 | H188: 191.4 | I188: 448405 | J188: 97968192.25 | K188: 2020-04-08 | L188: 13672 | M188: INE171Z01018
A189: BEARDSELL | B189: EQ | C189: 6.7 | D189: 7.3 | E189: 6.7 | F189: 7.3 | G189: 7.3 | H189: 7.05 | I189: 1250 | J189: 8417 | K189: 2020-04-08 | L189: 4 | M189: INE520H01022
A190: BEDMUTHA | B190: EQ | C190: 12.8 | D190: 13.05 | E190: 12.45 | F190: 12.45 | G190: 12.45 | H190: 13.1 | I190: 19584 | J190: 245429.15 | K190: 2020-04-08 | L190: 32 | M190: INE844K01012
A191: BEL | B191: EQ | C191: 69 | D191: 71.3 | E191: 65.1 | F191: 66.4 | G191: 66.5 | H191: 69 | I191: 16699885 | J191: 1138705070 | K191: 2020-04-08 | L191: 69587 | M191: INE263A01024
A192: BEML | B192: EQ | C192: 492 | D192: 523.5 | E192: 492 | F192: 503.6 | G192: 503 | H192: 475.95 | I192: 890527 | J192: 458689246.6 | K192: 2020-04-08 | L192: 23670 | M192: INE258A01016
A193: BEPL | B193: EQ | C193: 31 | D193: 32.75 | E193: 30.3 | F193: 31.25 | G193: 31.6 | H193: 30.25 | I193: 333595 | J193: 10578641.1 | K193: 2020-04-08 | L193: 3321 | M193: INE922A01025
A194: BERGEPAINT | B194: EQ | C194: 479.9 | D194: 487.65 | E194: 460 | F194: 463.5 | G194: 462 | H194: 479.2 | I194: 1729062 | J194: 817908730.6 | K194: 2020-04-08 | L194: 32950 | M194: INE463A01038
A195: BFINVEST | B195: EQ | C195: 258 | D195: 268.8 | E195: 244.6 | F195: 246.3 | G195: 248.95 | H195: 257.45 | I195: 4938 | J195: 1236639.95 | K195: 2020-04-08 | L195: 244 | M195: INE878K01010
A196: BFUTILITIE | B196: EQ | C196: 158.35 | D196: 158.35 | E196: 151.05 | F196: 154.05 | G196: 153.7 | H196: 150.85 | I196: 138134 | J196: 21700813.75 | K196: 2020-04-08 | L196: 1649 | M196: INE243D01012
A197: BGRENERGY | B197: EQ | C197: 22.1 | D197: 22.85 | E197: 20.95 | F197: 21.1 | G197: 21.15 | H197: 22.2 | I197: 172282 | J197: 3763089.75 | K197: 2020-04-08 | L197: 1108 | M197: INE661I01014
A198: BHAGERIA | B198: EQ | C198: 85 | D198: 91.05 | E198: 80.65 | F198: 81.6 | G198: 82.3 | H198: 84.2 | I198: 34795 | J198: 2944870.7 | K198: 2020-04-08 | L198: 925 | M198: INE354C01027
A199: BHAGYANGR | B199: EQ | C199: 14.05 | D199: 15.2 | E199: 14 | F199: 14.4 | G199: 14.4 | H199: 14.4 | I199: 1338 | J199: 19622.25 | K199: 2020-04-08 | L199: 50 | M199: INE458B01036
A200: BHAGYAPROP | B200: EQ | C200: 18 | D200: 20 | E200: 18 | F200: 20 | G200: 20 | H200: 19 | I200: 999 | J200: 19011 | K200: 2020-04-08 | L200: 5 | M200: INE363W01018
... 1470 more rows

Sheet Sheet1 (hidden)

Sheet Sheet3 (hidden)

Sheet Sheet4 (hidden)

Sheet Sheet5 (hidden)
